Workbook

Sheet 1. Introduction
D6: The financial assessment tool for electrification (FATE) is designed to establish the financial viability of mini-grid and solar home system (SHS) projects in rural areas of Nigeria. This tool is addressed to companies, project developers, financiers, and policymakers. The tool was elaborated in a dynamic format, linking all inputs and outputs together, making it easy for the end-user to evaluate electrification projects according to different criteria including revenues, expenses, and the company's financial situation. This tool was specially adapted for electrification plans of rural villages in Nigeria, where mini-grids and solar home systems are affordable solutions for the population. Within this context, the tool estimates the financial feasibility of electrification projects for rural villages using mini-grids and SHS. According to the population demand, some habitats will be connected to a mini-grid, while others will receive SHS. The mini-grid and SHS are assessed separately, but all the results are merged in the Simulation results sheet. The results are provided in the form of graphs displaying the project performance over time (expenses, revenues, net cash flow…), along with KPI calculations, including internal rate of return (IRR) and the net present value (NPV). The projects are assessed for 25 years, with an analysis conducted every year.
X21: The different partner's websites are available by clicking on their logo.
C26: COMMANDS
N28: Some sheets are hidden to avoid getting lost in the excessive content. To make them appear, simply check the box. Then when it is done, to access them, click on the icon representing the sheet.
D29: The majority of the data to be processed is located in the worksheet named "Control Table." This icon provides direct access to the page.
C37: GENERAL INSTRUCTIONS
C39: 1
D40: 1. Tools
F41: Click on the + icon at the left of the sheet to get more detailled instructions.
F42: This way, you can find out more about certain aspects and get instructions on how to use the tool.
P44: Choice 1
E45: Choice 2 | F45: <-- Click on it, then on the arrow on the right and the following options will appear | P45: Choice 2
E47: Comment | F47: <-- Place your mouse over the red corner and the comment will appear.
F49: <-- Click on it to make a specific choice
E51: These type of cell redirects you to certain place:
F54: Click on it, and it will take you to the user manual (PDF)
G55: The manual has been created to simplify the use of the tool, so it provides more detailed instructions compared to the prompts entered directly in the Excel tool.
F57: Click on it, and it will take you to the introduction- definition and abbreviation part.
F60: Click on it, and it will take you to general instruction (here).
F63: Click on it, and it will take you to the control table.
F66: Click on it, and it will take you to the simulations & results table.
F69: Click on it and it will take you to the last sheet you visited.
D71: 2. Type of cells
C73: Yellows cells | F73: These are the input cells the user has to fill with his data. They have a big impact on the calculation, the value should be chosen carefully.
C74: Light yellows cells | F74: These are the other input cells the user has to fill with his data.
C75: Green cells | F75: These are important values coming from calculations, they shall not be modified.
C76: White cells | F76: These cells are containing formulas. They shall not be modified
C77: Grey cells | F77: These cells are showing the intermediate results of the sheet. They shall not be modified.
C78: Purple cells | F78: These cells are showing the main results of the sheet. They shall not be modified.
C79: Pink cells | F79: These cells are showing the results input by the user in the "Control Table" as a reminder in other sheets. They shall not be modified.
F80: In general, all cells that are not yellow shall not be modified.
F82: The unit is always refering to the input cell of the corresponding line.
C84: LIST AND DEFINITION OF ABBREVIATIONS
D86: Technical abbreviations
C87: AC | E87: Alternating Current
C88: DC | E88: Direct Current
C89: kVA | E89: Kilo Volt-Ampere
C90: kW | E90: Kilo Watt
C91: kWh | E91: Kilo Watthour
C92: kWp | E92: Kilo Watt peak
C93: LV | E93: Low Voltage
C94: MV | E94: Medium Voltage
C95: PV | E95: Photovoltaics
C96: SHS | E96: Solar Home System
D98: Financial abbreviations
C99: CAPEX | E99: Capital Expenditure
D100: DCF | E100: Discounted Cash Flows
C101: FATE | E101: Financial Assessment Tool for Electrification
C102: IRR | E102: Internal Rate of Return
C103: KPI | E103: Key Performance Indicators
C104: NGN | E104: Nigerian Naira
C105: NPV | E105: Net Present Value
C106: OPEX | E106: Operational Expenditure
C107: PAYG | E107: Pay As You Go
D108: ROI | E108: Return On Investment
D110: Definitions
D112: CapEx | E112: Refer to substantial investments made by a company to enhance its future performance. Typically, capital expenditures are directed towards fixed assets such as property, plant, and equipment with the aim of bolstering the company's overall operations and effectiveness in the long run.
D115: Cumulative Cash flows | E115: Represent the accumulated sum of cash inflows and outflows throughout a specified duration. They provide a continuous record of the net impact resulting from cash receipts and expenditures up until a particular moment. By considering all preceding cash flows, cumulative cash flows offer a comprehensive perspective of the overall cash position and performance over the designated timeframe. They serve as a valuable tool for monitoring the cumulative influence of cash inflows and outflows on the financial status of an individual, company, or entity.
D119: DCF | E119: Discounted Cash Flows are a valuation approach utilized to assess the worth of an investment by discounting the projected future cash flows. This method applies to various assets or activities, including stocks, companies, projects, and more, making it extensively employed in the investment industry and corporate finance management. DCF analysis takes into account the time value of money, considering that a dollar received in the future holds less value than a dollar received today. By discounting the anticipated cash flows back to their present value using an appropriate discount rate, DCF enables decision-makers to evaluate the attractiveness and profitability of investment opportunities.
D124: LCOE | E124: The Levelized Cost of Electricity (LCOE) is a metric that enables the evaluation and comparison of the cost of electricity generation across diverse sources or technologies throughout a power plant's lifespan. It provides an average cost estimation for generating a single unit of electricity within a specific power generation project. Through LCOE calculations, different energy sources can be compared in terms of their cost competitiveness.
E127: The LCOE takes into consideration several factors, including initial capital expenses, operational and maintenance costs, potential fuel expenses (if applicable), and the projected energy output over the power plant's entire lifespan. The LCOE formula involves dividing the total lifecycle costs of a power plant by the projected amount of electricity generated throughout its operational years.
G130: To see examples of LCOE (on & off grid) in Nigeria, click on the + on the left.
W138: Ranking of LCOE in Nigeria
I151: On-grid values for different power sources | R151: Off-grid values for different power sources
D153: Investment | E153: Investment is the strategic allocation of funds, resources, or capital to generate long-term income, profit, or value growth. It involves deploying financial assets across a variety of instruments, projects, or assets to achieve desired financial objectives and acquire ownership or control. Investments encompass a broad range of opportunities, including stocks, bonds, real estate, businesses, and other assets that offer the potential for returns and value appreciation.
D157: IRR | E157: The internal rate of return (IRR) is a financial metric utilized for assessing the profitability of prospective investments. It represents the discount rate at which the net present value (NPV) of all cash flows becomes zero in a discounted cash flow analysis. The IRR serves as an annualized rate of growth expected from an investment. The calculation of IRR employs the same formula as NPV. It should be noted that IRR does not provide the actual monetary value of the project but rather the annual rate of return that renders the NPV equal to zero.
D161: KPI | E161: Is a metric used to measure the performance of work undertaken towards specific objectives, providing insights into whether those objectives are being achieved. They are critical statistics related to the work or project that help assess whether the marketing strategy being employed is effectively driving the defined goals. KPIs enable the tracking of overall results from the actions taken, revealing which strategies are effective. In this context, the chosen KPIs are NPV (Net Present Value), WACC (Weighted Average Cost of Capital), and project IRR (Internal Rate of Return).
D165: Mini Grid | E165: Is a localized electricity distribution system that serves a cluster of buildings or a small community. It encompasses a central power generation source, such as solar panels or a small diesel generator, along with energy storage systems and a distribution network. The primary objective of minigrids is to offer reliable and sustainable electricity to fulfill the power requirements of the connected community. They possess greater resilience and capacity to support higher energy demands compared to individual solar home systems. Compared to conventional grid infrastructure, minigrids are significantly smaller in scale. Typical minigrid plant sizes range from 10 to 35 kWp for solar capacity and less than 100 kWh for battery energy storage, serving 150 to 400 connections.
D171: Net Cash flows | E171: Depict the variance between cash inflows and cash outflows within a designated time period. They exemplify the net quantity of cash that is either generated or expended by an individual, company, or entity over the specified duration. Net cash flows hold significance in assessing the liquidity and financial well-being of an entity as they reflect the overall cash position and the capacity to fulfill financial obligations.
D175: NPV | E175: Net present value (NPV) is employed to determine the present worth of anticipated future cash flows from a company, project, or investment. In order to calculate NPV, one must estimate the timing and magnitude of future cash flows and select a discount rate that equals the minimum acceptable rate of return. The chosen discount rate can encompass the cost of capital or the potential returns from alternative investments with comparable risk. A positive NPV indicates that the project or investment will yield a rate of return exceeding the discount rate.
D179: OpEx | E179: Refer to the expenditures that a company bears in order to maintain its daily operations. These expenses specifically exclude any costs directly associated with the production of goods or services.
D182: PAYG | E182: This business model has emerged as a solution to tackle the issue of limited access to energy, aiming to offer affordable electricity generated from renewable energy sources. This model leverages available technologies in the respective areas to facilitate payments. The widespread adoption of mobile payment technologies, abundant solar resources, and decreasing costs of solar PV and batteries, alongside growing awareness of these technologies, have played a vital role in driving the implementation of this innovative business model.
G185: To see an explanatory diagram of PAYG, click on the + on the left.
P189: PAYG concept
P190: Schematic taken from the IRENA's report (2020), Innovation landscape brief:
P191: Pay-as-you-go models, International Renewable Energy Agency, Abu Dhabi.
Q192: (the diagram itself is based on Energipedia)
D203: Revenue | E203: Refer to the amounts of money or earnings generated by an individual, company, or entity during a specific period. They represent the financial inflows originating from various sources. They serve as a key indicator of the economic and financial performance of an entity.
D206: ROI | E206: The Return on Investment is a financial metric used to evaluate the profitability or efficiency of an investment. ROI measures the return or gain generated from an investment relative to its cost. The higher the ratio, the greater the benefit earned.
D209: SHS | E209: Is an independent solar power setup intended to fulfill the electricity requirements of an individual household or a small business. SHS primarily delivers DC power. It comprises solar panels, a battery for storing energy, and a charge controller. These systems are installed directly at the user's premises and provide electricity for lighting, charging small devices, and operating low-energy appliances. They are relatively smaller in size and are well-suited for off-grid locations or areas with restricted access to the primary power grid.
F213: SHS1 | G213: Solar Home System 1 directly refers to the fosera product: fosera SPARK. It is a package that includes a solar panel, lamps, USB outlets for phone charging, and optionally a radio. This system also includes the Open PAYGO feature. This system reaches 10Wp.
F216: SHS2 | G216: Solar Home System 2 directly refers to the fosera product: fosera IGNITE. It is a package that includes a solar panel, lamps, different oulet capacity (regular, configurable and high) outlet USB outlets for phone charging, and optionally a radio, fan, TV and torch. This system also includes the Open PAYGO feature. This system reaches 75 Wp.
D220: WACC | E220: Represents the combined cost of various sources of capital for a company, including common shares, preferred shares, and debt. Each type of capital's cost is weighted based on its proportion in the total capital structure, and these weights are then aggregated.

Sheet 2. Control table
A1: 1
C6: This sheet contains the commands for the entire Excel tool. By completing it, each user will be able to run a financial simulation for seven different scenarios | AO6: =AO4+1 -> 1 | AP6: A
D7: (Mini-grid, SHS1, SHS2, SHS1 + SHS2, Mini-grid + SHS1, Mini grid + SHS2, Total -Mini-grid + SHS1 + SHS2) | AO7: =AO6+1 -> 2 | AP7: B
C8: It is very important to complete this sheet with the utmost care to be able to produce a financial model that is adapted to each location. | AO8: 3 | AP8: C
C9: Users are reminded that this sheet is the only one on which data will be entered. Changes to other sheets will not be taken into account or will distort the results. | AO9: 4 | AP9: D
AO10: 5 | AP10: E
AO11: 6 | AP11: F
AO12: 7 | AP12: G
AO13: 8 | AP13: H
O14: Simply follow the x steps below to complete all the data required to operate the financial tool. | AO14: 9 | AP14: I
C15: To delete all the data you have entered so that you can re-enter it, click on the button on the right. | I15: To return to the initial values, click on the button on the right. | AO15: 10 | AP15: J
AO16: 11 | AP16: K
O17: When you have finished filling in the ENTIRE Control Table sheet, you can access the results. | AO17: 12 | AP17: L
AO18: 13 | AP18: M
AO19: 14 | AP19: N
AO20: 15 | AP20: O
AO22: =AO20+1 -> 16 | AP22: P
AO23: 17 | AP23: Q
AO24: 18 | AP24: R
AO25: 19 | AP25: S
AO26: 20 | AP26: T
C27: STEP 0. Fill in the company information | AO27: 21 | AP27: U
AO28: 22 | AP28: V
D29: Company name | AO29: 23 | AP29: W
D30: Project | AO30: 24 | AP30: X
D31: Country | AO31: =AO30+1 -> 25 | AP31: Y
D32: Contact details | AO32: 26 | AP32: Z
C38: STEP 1. Select either the default or the manual approach for the demand data.
O39: Corresponding cells
C40: In this section, you get to choose the demand data: the daily kWh consumption and the number of users. Default option: To showcase results from a pre-existing data set, simply choose "Default" from the drop-down menu. The default data is sourced from a genuine Nigerian village and is derived from the PeopleSUN project's WP3&WP4. It's advisable to utilize this approach initially, before making any alterations to the sheet. The initial cell values pertain exclusively to the selected village. Manual option: To customize the values, select the "Manual" option and fill in the yellow input cells. The data entered in those cells is for year 0 of the project and will evolve based on the indexation rate you choose in the Indexation & Financing section. Additionally, you can use the "full" manual mode to select demand data. For this, you will find drop-down lists in the mini-grid, SHS1, and SHS2 sections. If you opt for this option, ensure to fill in the demand cells (kWh consumption and the number of users) every year for the mini-grid and every five years for SHS. Please be aware that this tool doesn't size the mini-grid according to the manual data you can choose here. You have to change the size of the mini-grid by modifying the input cells in the CAPEX part of the mini-grid.
N41: =LOOKUP(COLUMN(I54),AO6:AO32,AP6:AP32) -> I | O41: =ROW(I54) -> 54
D54: Select the approach for the user demand data | I54: Default
C56: STEP 1 BIS. Facultative - If you chose the manual approach, Please enter manually the demand data for the beginning of the project.
F58: SHS1 | G58: Solar Home System 1 directly refers to the fosera product: fosera SPARK. It is a package that includes a solar panel, lamps, USB outlets for phone charging, and optionally a radio. This system also includes the Open PAYGO feature. This system reaches 10Wp.
F62: SHS2 | G62: Solar Home System 2 directly refers to the fosera product: fosera IGNITE. It is a package that includes a solar panel, lamps, different oulet capacity (regular, configurable and high) outlet USB outlets for phone charging, and optionally a radio, fan, TV and torch. This system also includes the Open PAYGO feature. This system reaches 75 Wp.
O66: Corresponding cells
C68: The demand data you choose here is for the beginning of the project. Enter the number of users for SHS1 and SHS2. | N68: =LOOKUP(COLUMN(H78),AO6:AO32,$AP$6:$AP$32) -> H | O68: =ROW(H78 ) -> 78 | P68: until | Q68: =ROW(H79) -> 79
C69: For the mini-grid, there are 4 categories of customers: 1) Residential 2) Community 3) Commercial Small Scale 4) Commercial Large Scale & Anchor Load
C70: Enter the electricity demand in kWh/year and the number of users for each of those 4 categories. | N70: =LOOKUP(COLUMN(M78),$AO$6:$AO$32,$AP$6:$AP$32) -> M | O70: =ROW(M78 ) -> 78 | P70: until | Q70: =ROW(M81) -> 81
N71: =LOOKUP(COLUMN(N78),$AO$6:$AO$32,$AP$6:$AP$32) -> N | O71: =ROW(N78 ) -> 78 | P71: until | Q71: =ROW(N81) -> 81
C72: This demand data is sent in the corresponding sheets: Mini grid, SHS1 25 years and SHS2 25 years.
D74: Demand data entry
D76: For SHS 1 & 2 enter in the following table | J76: For Mini Grid enter in the following table
D77: Type of Technology | H77: Number of Users | J77: Type of Consumer Sector | M77: Demand in kWh/day | N77: Number of Users
D78: SHS 1 | H78: 200 | J78: Residential | M78: 62 | N78: 24
D79: SHS 2 | H79: 150 | J79: Community | M79: 105 | N79: 18
J80: Commercial Small Scale | M80: 21 | N80: 7
J81: Commercial large Scale & Anchor Load | M81: 68 | N81: 17
T84: FALSE
C86: STEP 2. Enter the mini-grid OPEX.
O87: Corresponding cells
D88: Enter the operational costs for the mini-grid.
D89: These are set for the beginning of the project. | N89: =LOOKUP(COLUMN(H94),$AO$6:$AO$32,$AP$6:$AP$32) -> H | O89: =ROW(H94) -> 94 | P89: until | Q89: =ROW(H99) -> 99
D91: Minigrid
D93: Operational Costs
G94: Diesel fuel price [NGN/L] | H94: 809
G95: Diesel fuel consumption [L/year] | H95: 2500
G96: Service & Maintenance [NGN/year] | H96: 150000
G97: Local operational management [NGN/year] | H97: 200000
G98: Insurance [NGN/year] | H98: 350000
G99: Miscellaneous [NGN/year] | H99: 700000
C102: STEP 3. Enter the mini-grid CAPEX.
O103: Corresponding cells
D104: There are 3 types of capital investments for a mini-grid: power generation, power distribution, and customer connection.
D105: For some types of equipment, you have to enter the price, but also the quantity. Please make sure the quantities are consistent from one asset to another.
D106: Enter the costs and quantities for power generation assets. | N106: =LOOKUP(COLUMN(H115),$AO$6:$AO$32,$AP$6:$AP$32) -> H | O106: =ROW(H115) -> 115 | P106: until | Q106: =ROW(H124) -> 124
D107: Enter the costs and quantities for power distribution assets. | N107: =LOOKUP(COLUMN(N115),$AO$6:$AO$32,$AP$6:$AP$32) -> N | O107: =ROW(N115) -> 115 | P107: until | Q107: =ROW(N121) -> 121
D108: Enter the shipping and installation costs for power generation and distribution. | N108: =LOOKUP(COLUMN(H125),$AO$6:$AO$32,$AP$6:$AP$32) -> H | O108: =ROW(H125) -> 125 | P108: until | Q108: =ROW(H126) -> 126
N109: =LOOKUP(COLUMN(N115),$AO$6:$AO$32,$AP$6:$AP$32) -> N | O109: =ROW(N122) -> 122 | P109: until | Q109: =ROW(N123) -> 123
D110: Enter the cost for connecting a new user to the mini-grid. | N110: =LOOKUP(COLUMN(N126),$AO$6:$AO$32,$AP$6:$AP$32) -> N | O110: =ROW(N126) -> 126
D112: Minigrid
D114: Power Generation | J114: Power Distribution
D115: Solar PV [kWp] | H115: 60 | J115: Low Voltage Distribution grid [km] | N115: 3.8
D116: Solar PV (incl. mounting system) [NGN/kWp] | H116: 300000 | J116: LV distribution grid [NGN/km] | N116: 1241000
D117: Battery [kWh] | H117: 180 | J117: Medium Voltage distribution grid MV [km] | N117: 2.7
D118: Battery (incl. rack) [NGN/kWh] | H118: 85250 | J118: MV distribution grid [NGN/km] | N118: 4517000
D119: Inverters (battery and PV) or charge controller [kVA] | H119: 27 | J119: Power house [NGN] | N119: 1734000
D120: Inverters (battery and PV) or charge controller [NGN/kVA] | H120: 160000 | J120: Fencing [NGN] | N120: 500000
D121: Diesel genset incl. tank [kW] | H121: 60 | J121: Foundations and Poles [NGN] | N121: 1335960
D122: Diesel genset incl tank [NGN/kW] | H122: 120000 | J122: Shipping [NGN] | N122: 890000
D123: Distribution box, lightning protection, etc. | H123: 1 | J123: Installation [NGN] | N123: 3152200
D124: Distribution box, lightning protect, etc.[NGN] | H124: 4325000
D125: Installation costs [NGN] | H125: 2475000 | J125: Customer connection
D126: Shipping costs [NGN] | H126: 7000000 | J126: Grid connection cost [NGN/user] | N126: 40000
C129: STEP 4. Enter the mini-grid Revenue.
N130: Corresponding cells
D131: This section synthesizes what the users have to pay to the owner of the mini-grid. The owner can make sure his project is profitable by choosing the correct prices.
D132: Enter the mini-grid electricity tariff for the 4 categories of users. | N132: =LOOKUP(COLUMN(H140),$AO$6:$AO$32,$AP$6:$AP$32) -> H | O132: =ROW(H140) -> 140 | P132: until | Q132: =ROW(H143) -> 143
D133: Enter the mini-grid connection fee for new customers. | N133: =LOOKUP(COLUMN(H146),$AO$6:$AO$32,$AP$6:$AP$32) -> H | O133: =ROW(H146) -> 146 | P133: until | Q133: =ROW(H149) -> 149
D134: Enter the fixed electricity charges for the 4 categories of users. | N134: =LOOKUP(COLUMN(N140),$AO$6:$AO$32,$AP$6:$AP$32) -> N | O134: =ROW(N140) -> 140 | P134: until | Q134: =ROW(N143) -> 143
D135: Enter the metering costs for the 4 categories of users. | N135: =LOOKUP(COLUMN(N146),$AO$6:$AO$32,$AP$6:$AP$32) -> N | O135: =ROW(N146) -> 146 | P135: until | Q135: =ROW(N149) -> 149
D137: Minigrid
D139: Consumer Sector Wise Tariff [NGN/kWh] | J139: Consumer Sector Wise fixed costs [NGN/year/user]
D140: Residential | H140: 64 | J140: Residential | N140: 120
D141: Community | H141: 64 | J141: Community | N141: 110
D142: Commercial Small Scale | H142: 70 | J142: Commercial Small Scale | N142: 130
D143: Commercial Large Scale & Anchor Load | H143: 80 | J143: Commercial Large Scale & Anchor Load | N143: 150
D145: Consumer Sector Wise connection fee [NGN/user] | J145: Consumer Sector Wise metering costs [NGN/year/user]
D146: Residential | H146: 5000 | J146: Residential | N146: 160
D147: Community | H147: 4000 | J147: Community | N147: 150
D148: Commercial Small Scale | H148: 6000 | J148: Commercial Small Scale | N148: 170
D149: Commercial Large Scale & Anchor Load | H149: 8000 | J149: Commercial Large Scale & Anchor Load | N149: 180
C152: STEP 5. Fill in the Mini-grid Depreciation information.
N153: Corresponding cells
D154: Enter the expected salvage value, which is the remaining value of a product after its active life. | N154: =LOOKUP(COLUMN(H163),$AO$6:$AO$32,$AP$6:$AP$32) -> H | O154: =ROW(H163) -> 163
D155: In the power generation section, select "Yes" or "No" in the drop-down lists to choose if the corresponding asset requires reinvestments during the project. | N155: =LOOKUP(COLUMN(G167),$AO$6:$AO$32,$AP$6:$AP$32) -> G | O155: =ROW(G167) -> 167 | P155: until | Q155: =ROW(G173) -> 173
D156: In the power generation section, enter the expected life spans of assets. | N156: =LOOKUP(COLUMN(H167),$AO$6:$AO$32,$AP$6:$AP$32) -> H | O156: =ROW(H167) -> 167 | P156: until | Q156: =ROW(H173) -> 173
D157: Do the same thing for the power distribution section. | N157: =LOOKUP(COLUMN(M167),$AO$6:$AO$32,$AP$6:$AP$32) -> M | O157: =ROW(M167) -> 167 | P157: until | Q157: =ROW(M173) -> 173
N158: =LOOKUP(COLUMN(N167),$AO$6:$AO$32,$AP$6:$AP$32) -> N | O158: =ROW(N167) -> 167 | P158: until | Q158: =ROW(N173) -> 173
D159: All the required data for mini-grid financial forecasting is now filled. You can analyse the results displayed on the Mini-grid sheet.
D161: Depreciation sheet
D163: Expected salvage value [%] | H163: 0.05
D165: Depreciation of generation assets | J165: Depreciation of distribution and fixed assets
G166: Reinvestment Required [Yes/No] | H166: Depreciation duration [year] | M166: Reinvestment Required [Yes/No] | N166: Depreciation duration [year]
F167: Solar PV (incl. mounting system) [NGN] | G167: Yes | H167: 25 | L167: LV distribution grid [NGN] | M167: Yes | N167: 25
F168: Battery (incl. rack) [NGN] | G168: Yes | H168: 6 | L168: MV distribution grid [NGN] | M168: Yes | N168: 25
D169: Inverters (battery and PV) or charge controller [NGN] | G169: Yes | H169: 10 | L169: Power house [NGN] | M169: Yes | N169: 25
F170: Diesel genset incl tank xx kVA [NGN] | G170: Yes | H170: 10 | L170: Fencing [NGN] | M170: Yes | N170: 25
D171: Distribution box, lightning protect, etc.[NGN] | G171: Yes | H171: 8 | L171: Foundations [NGN] | M171: Yes | N171: 25
F172: Installation costs [NGN] | G172: No | H172: 10 | L172: Shipping [NGN] | M172: No | N172: 25
F173: Shipping costs [NGN] | G173: No | H173: 10 | L173: Installation [NGN] | M173: No | N173: 25
T181: FALSE
F182: Solar Home System 1 directly refers to the fosera product: fosera SPARK. It is a package that includes a solar panel, lamps, USB outlets for phone charging, and optionally a radio. This system also includes the Open PAYGO feature. This system reaches 10Wp.
C187: STEP 6. Enter the number of SHS1 users and their type of loan.
O188: Corresponding cells
D189: To choose the number of users, select "Yes" or "No" in the drop-down list.
D190: If you select "No", the number of SHS1 changes automatically based on the value you entered for the expected increase in the number of SHS users in the Indexation section. | N190: =LOOKUP(COLUMN(H198),$AO$6:$AO$32,$AP$6:$AP$32) -> H | O190: =ROW(H198) -> 198
D191: If you select "Yes", you can enter the number of SHS manually for each 5-year cycle.
D192: If you have selected "Yes", please enter the number of users in the input cells. | N192: =LOOKUP(COLUMN(H201),$AO$6:$AO$32,$AP$6:$AP$32) -> H | O192: =ROW(H201) -> 201 | P192: until | Q192: =ROW(H204) -> 204
D193: The PAYG is based on a 24-installments model that are paid back each month.
D194: Enter the expected percentage of installments missing each month. | N194: =LOOKUP(COLUMN(H207),$AO$6:$AO$32,$AP$6:$AP$32) -> H | O194: =ROW(H207) -> 207
D196: Consumer Sector Wise number of users
D198: Do you want to enter the number of new user manually ? | H198: No
E200: If you have ticked Yes, please click on the + on the left to fill in the values you require.
G201: Year 6 | H201: 88
G202: Year 11 | H202: 53
G203: Year 16 | H203: 26
G204: Year 21 | H204: 7
D206: PAYG (based on 24 months)
D207: Percentage of people missing the PAYG payment each month | H207: 0.1
C209: STEP 7. Enter the OPEX for SHS1 25 years
O210: Corresponding cells
E212: For the new users of SHS,
D213: Enter the standard platform fee. This is a fixed monthly fee paid to the PAYG platform no matter how many users there is (as long as there are PAYG | N213: =LOOKUP(COLUMN(H227),$AO$6:$AO$32,$AP$6:$AP$32) -> H | O213: =ROW(H227) -> 227
D214: installments left).
D215: Enter the activation fee per user. This is a fee to pay to the PAYG provider every month which is proportionnal to the number of user that paid a PAYG | N215: =LOOKUP(COLUMN(H228),$AO$6:$AO$32,$AP$6:$AP$32) -> H | O215: =ROW(H228) -> 228
D216: installment that month.
D217: Enter the SMS fee | N217: =LOOKUP(COLUMN(H229),$AO$6:$AO$32,$AP$6:$AP$32) -> H | O217: =ROW(H229) -> 229
D218: Enter the other operational costs. These can come from warranties and repairs of the SHS. This is the only source of OPEX that is not about PAYG. | N218: =LOOKUP(COLUMN(H232),$AO$6:$AO$32,$AP$6:$AP$32) -> H | O218: =ROW(H232) -> 232
E219: For the battery replacement, repeat the same steps as for the new users of SHS | N219: =LOOKUP(COLUMN(N227),$AO$6:$AO$32,$AP$6:$AP$32) -> N | O219: =ROW(N227) -> 227 | P219: until | Q219: =ROW(N229) -> 229
N220: =LOOKUP(COLUMN(N232),$AO$6:$AO$32,$AP$6:$AP$32) -> N | O220: =ROW(N232) -> 232
D222: Operational Costs
F224: New SHS Users | L224: Battery Replacement
D226: PAYG costs | J226: PAYG costs
D227: PAYG standard platform fee [NGN/month] | H227: 37000 | J227: PAYG standard platform fee [NGN/month] | N227: 37000
D228: PAYG activation fee per user [NGN/month/user] | H228: 130 | J228: PAYG activation fee per user [NGN/month/user] | N228: 130
D229: SMS per user [NGN/month/user] | H229: 150 | J229: SMS per user [NGN/month/user] | N229: 150
D231: Other operational costs | J231: Other operational costs
D232: Other costs (warranty + repairs) [NGN/month] | H232: 5000 | J232: Other costs (warranty + repairs) [NGN/month] | N232: 5000
C234: STEP 8. Enter the CAPEX for SHS1 25 years
O235: Corresponding cells
D237: Enter the price of the solar home system model. The model chosen here is SPARK from Fosera. | N237: =LOOKUP(COLUMN(H244),$AO$6:$AO$32,$AP$6:$AP$32) -> H | O237: =ROW(H244) -> 244
D238: Enter the PAYG onboarding price. | N238: =LOOKUP(COLUMN(H245),$AO$6:$AO$32,$AP$6:$AP$32) -> H | O238: =ROW(H245) -> 245
D239: Enter the installation cost (as a percentage of the SHS cost) and also the other cost, if any. | N239: =LOOKUP(COLUMN(H246),$AO$6:$AO$32,$AP$6:$AP$32) -> H | O239: =ROW(H246) -> 246 | P239: until | Q239: =ROW(H247) -> 247
D240: Enter the battery cost | N240: =LOOKUP(COLUMN(H248),$AO$6:$AO$32,$AP$6:$AP$32) -> H | O240: =ROW(H248) -> 248
D242: Capital Investments
D244: Fosera SPARK (incl. mounting system) [NGN/unit] | H244: 60000
D245: PAYG Onboarding fee [NGN] | H245: 220000
D246: Shipping costs | H246: 0.1
D247: Other costs [NGN] | H247: 50000
G248: Battery | H248: 10000
C250: STEP 9. Enter the Revenue inputs for SHS1
O251: Corresponding cells
D252: The revenue comes from one type of loan: PAYG (Pay As You Go)
D253: Enter the percentage of the project cost that is paid through the initial down payment for an SHS with PAYG. | N253: =LOOKUP(COLUMN(H260),$AO$6:$AO$32,$AP$6:$AP$32) -> H | O253: =ROW(H260) -> 260
D254: Enter the interest rate (which represents the profit) for a PAYG loan for the whole SHS life span. | N254: =LOOKUP(COLUMN(H261),$AO$6:$AO$32,$AP$6:$AP$32) -> H | O254: =ROW(H261) -> 261
D256: All the required data for SHS1 financial forecasting is now completely filled. You can analyse the results displayed at the bottom of the SHS1 25 years sheet.
D258: Revenue
D260: Total project cost paid at the down payment (PAYG) [%] | H260: 0.1
D261: Interest rate (PAYG for the 5 years) [%] | H261: 0.6
C263: STEP 10. Fill in the SHS1 5 years information
O264: Corresponding cells
D265: This sheet gives a monthly analysis of SHS1 cash flows. As it focuses only on the first SHS cycle, there is no manual option for entering the number of users.
D266: Apart from that, this is the same input cells so you can follow steps 8 to 12 again.
E267: Enter the number of SHS1 users and their type of loan. | N267: =LOOKUP(COLUMN(H279),$AO$6:$AO$32,$AP$6:$AP$32) -> H | O267: =ROW(H279) -> 279
E268: Enter the Operational Cost | N268: =LOOKUP(COLUMN(H290),$AO$6:$AO$32,$AP$6:$AP$32) -> H | O268: =ROW(H286) -> 286 | P268: until | Q268: =ROW(H288) -> 288
N269: =LOOKUP(COLUMN(H291),$AO$6:$AO$32,$AP$6:$AP$32) -> H | O269: =ROW(H291) -> 291
E270: Enter the Capital Investments | N270: =LOOKUP(COLUMN(N278),$AO$6:$AO$32,$AP$6:$AP$32) -> N | O270: =ROW(N278) -> 278 | P270: until | Q270: =ROW(N281) -> 281
E271: Enter the different revenue | N271: =LOOKUP(COLUMN(N286),$AO$6:$AO$32,$AP$6:$AP$32) -> N | O271: =ROW(N286) -> 286 | P271: until | Q271: =ROW(N287) -> 287
D272: The results give a more detailed approach. But as this sheet is not linked to the dashboard, you can skip it if you don't need this detailed monthly analysis.
D274: SHS1 5 YEARS
D276: Consumer Sector Wise number of users | J276: Capital Investments
D278: PAYG (based on 24 months) | M278: Fosera SPARK (incl. mounting system) [NGN/unit] | N278: 60000
D279: Percentage of people missing PAYG payment each month | H279: 0.1 | M279: PAYG Onboarding fee [NGN] | N279: 220000
M280: Shipping costs | N280: 0.1
D281: Operational Costs | M281: Other costs [NGN] | N281: 50000
F283: New SHS Users
J284: Revenue
D285: PAYG costs | T285: FALSE
G286: PAYG standard platform fee [NGN/month] | H286: 37000 | M286: Total project cost paid at the down payment (PAYG) [%] | N286: 0.1
... 132 more rows

Sheet Data Simulation results (hidden)
G1: DATA SIMULATION RESULT
A3: Current scenario | B3: ='3. Simulation results'!$H$23 -> Total
A5: Scenario
B7: Scenario list | C7: Filtered scenario list | E7: This summarises the different scenarios that are taken into account when deciding whether or not to exclude a type of system.
B8: =IF('2. Control table'!$T$84=FALSE,"Mini grid","") -> Mini grid | C8: =_xlfn._xlws.FILTER(B8:B14, B8:B14<>"") -> Mini grid
B9: =IF('2. Control table'!T181=FALSE,"SHS1","") -> SHS1 | C9: SHS1
B10: =IF('2. Control table'!T298=FALSE,"SHS2","") -> SHS2 | C10: SHS2
B11: =IF(OR('2. Control table'!$T$181=TRUE,'2. Control table'!T298=TRUE),"","SHS1 + SHS2") -> SHS1 + SHS2 | C11: SHS1 + SHS2
B12: =IF(OR('2. Control table'!$T$181=TRUE,'2. Control table'!T84=TRUE),"","Mini grid + SHS1") -> Mini grid + SHS1 | C12: Mini grid + SHS1
B13: =IF(OR('2. Control table'!$T$84=TRUE,'2. Control table'!T298=TRUE),"","Mini grid + SHS2") -> Mini grid + SHS2 | C13: Mini grid + SHS2
B14: =IF(OR('2. Control table'!$T$181=TRUE,'2. Control table'!T298=TRUE,'2. Control table'!$T$84=TRUE),"","Total") -> Total | C14: Total
A16: Graphs
B18: The purpose of this sheet is to collect the data needed to construct the various graphs of the Simulation and Results sheet. It should be noted that the graphs are inspired by the Kutool extension ( but are not
A22: Number of users
C23: ='11. Summary of values'!H10 -> 2024 | D23: ='11. Summary of values'!I10 -> 2025 | E23: ='11. Summary of values'!J10 -> 2026 | F23: ='11. Summary of values'!K10 -> 2027 | G23: ='11. Summary of values'!L10 -> 2028 | H23: ='11. Summary of values'!M10 -> 2029 | I23: ='11. Summary of values'!N10 -> 2030 | J23: ='11. Summary of values'!O10 -> 2031 | K23: ='11. Summary of values'!P10 -> 2032 | L23: ='11. Summary of values'!Q10 -> 2033 | M23: ='11. Summary of values'!R10 -> 2034 | N23: ='11. Summary of values'!S10 -> 2035 | O23: ='11. Summary of values'!T10 -> 2036 | P23: ='11. Summary of values'!U10 -> 2037 | Q23: ='11. Summary of values'!V10 -> 2038 | R23: ='11. Summary of values'!W10 -> 2039 | S23: ='11. Summary of values'!X10 -> 2040 | T23: ='11. Summary of values'!Y10 -> 2041 | U23: ='11. Summary of values'!Z10 -> 2042 | V23: ='11. Summary of values'!AA10 -> 2043 | W23: ='11. Summary of values'!AB10 -> 2044 | X23: ='11. Summary of values'!AC10 -> 2045 | Y23: ='11. Summary of values'!AD10 -> 2046 | Z23: ='11. Summary of values'!AE10 -> 2047 | AA23: ='11. Summary of values'!AF10 -> 2048
A24: ='11. Summary of values'!F12 -> Mini grid | C24: =IF('Data Simulation results'!$AB24,'11. Summary of values'!H12,NA()) -> 67.32 | D24: =IF('Data Simulation results'!$AB24,'11. Summary of values'!I12,NA()) -> 68.6664 | E24: =IF('Data Simulation results'!$AB24,'11. Summary of values'!J12,NA()) -> 70.039728 | F24: =IF('Data Simulation results'!$AB24,'11. Summary of values'!K12,NA()) -> 71.44052256 | G24: =IF('Data Simulation results'!$AB24,'11. Summary of values'!L12,NA()) -> 72.86933301 | H24: =IF('Data Simulation results'!$AB24,'11. Summary of values'!M12,NA()) -> 74.32671967 | I24: =IF('Data Simulation results'!$AB24,'11. Summary of values'!N12,NA()) -> 75.81325406 | J24: =IF('Data Simulation results'!$AB24,'11. Summary of values'!O12,NA()) -> 77.32951915 | K24: =IF('Data Simulation results'!$AB24,'11. Summary of values'!P12,NA()) -> 78.87610953 | L24: =IF('Data Simulation results'!$AB24,'11. Summary of values'!Q12,NA()) -> 80.45363172 | M24: =IF('Data Simulation results'!$AB24,'11. Summary of values'!R12,NA()) -> 82.06270435 | N24: =IF('Data Simulation results'!$AB24,'11. Summary of values'!S12,NA()) -> 83.70395844 | O24: =IF('Data Simulation results'!$AB24,'11. Summary of values'!T12,NA()) -> 85.37803761 | P24: =IF('Data Simulation results'!$AB24,'11. Summary of values'!U12,NA()) -> 87.08559836 | Q24: =IF('Data Simulation results'!$AB24,'11. Summary of values'!V12,NA()) -> 88.82731033 | R24: =IF('Data Simulation results'!$AB24,'11. Summary of values'!W12,NA()) -> 90.60385654 | S24: =IF('Data Simulation results'!$AB24,'11. Summary of values'!X12,NA()) -> 92.41593367 | T24: =IF('Data Simulation results'!$AB24,'11. Summary of values'!Y12,NA()) -> 94.26425234 | U24: =IF('Data Simulation results'!$AB24,'11. Summary of values'!Z12,NA()) -> 96.14953739 | V24: =IF('Data Simulation results'!$AB24,'11. Summary of values'!AA12,NA()) -> 98.07252813 | W24: =IF('Data Simulation results'!$AB24,'11. Summary of values'!AB12,NA()) -> 100.0339787 | X24: =IF('Data Simulation results'!$AB24,'11. Summary of values'!AC12,NA()) -> 102.0346583 | Y24: =IF('Data Simulation results'!$AB24,'11. Summary of values'!AD12,NA()) -> 104.0753514 | Z24: =IF('Data Simulation results'!$AB24,'11. Summary of values'!AE12,NA()) -> 106.1568585 | AA24: =IF('Data Simulation results'!$AB24,'11. Summary of values'!AF12,NA()) -> 108.2799956 | AB24: ='3. Simulation results'!K68 -> TRUE
A25: ='11. Summary of values'!F13 -> SHS1 | C25: =IF('Data Simulation results'!$AB25,'11. Summary of values'!H13,NA()) -> 106 | D25: =IF('Data Simulation results'!$AB25,'11. Summary of values'!I13,NA()) -> 106 | E25: =IF('Data Simulation results'!$AB25,'11. Summary of values'!J13,NA()) -> 106 | F25: =IF('Data Simulation results'!$AB25,'11. Summary of values'!K13,NA()) -> 106 | G25: =IF('Data Simulation results'!$AB25,'11. Summary of values'!L13,NA()) -> 106 | H25: =IF('Data Simulation results'!$AB25,'11. Summary of values'!M13,NA()) -> 94 | I25: =IF('Data Simulation results'!$AB25,'11. Summary of values'!N13,NA()) -> 94 | J25: =IF('Data Simulation results'!$AB25,'11. Summary of values'!O13,NA()) -> 94 | K25: =IF('Data Simulation results'!$AB25,'11. Summary of values'!P13,NA()) -> 94 | L25: =IF('Data Simulation results'!$AB25,'11. Summary of values'!Q13,NA()) -> 94 | M25: =IF('Data Simulation results'!$AB25,'11. Summary of values'!R13,NA()) -> 85 | N25: =IF('Data Simulation results'!$AB25,'11. Summary of values'!S13,NA()) -> 85 | O25: =IF('Data Simulation results'!$AB25,'11. Summary of values'!T13,NA()) -> 85 | P25: =IF('Data Simulation results'!$AB25,'11. Summary of values'!U13,NA()) -> 85 | Q25: =IF('Data Simulation results'!$AB25,'11. Summary of values'!V13,NA()) -> 85 | R25: =IF('Data Simulation results'!$AB25,'11. Summary of values'!W13,NA()) -> 76.84686827 | S25: =IF('Data Simulation results'!$AB25,'11. Summary of values'!X13,NA()) -> 76.84686827 | T25: =IF('Data Simulation results'!$AB25,'11. Summary of values'!Y13,NA()) -> 76.84686827 | U25: =IF('Data Simulation results'!$AB25,'11. Summary of values'!Z13,NA()) -> 76.84686827 | V25: =IF('Data Simulation results'!$AB25,'11. Summary of values'!AA13,NA()) -> 76.84686827 | W25: =IF('Data Simulation results'!$AB25,'11. Summary of values'!AB13,NA()) -> 68.99828377 | X25: =IF('Data Simulation results'!$AB25,'11. Summary of values'!AC13,NA()) -> 68.99828377 | Y25: =IF('Data Simulation results'!$AB25,'11. Summary of values'!AD13,NA()) -> 68.99828377 | Z25: =IF('Data Simulation results'!$AB25,'11. Summary of values'!AE13,NA()) -> 68.99828377 | AA25: =IF('Data Simulation results'!$AB25,'11. Summary of values'!AF13,NA()) -> 68.99828377 | AB25: ='3. Simulation results'!K70 -> TRUE
A26: ='11. Summary of values'!F14 -> SHS2 | C26: =IF('Data Simulation results'!$AB26,'11. Summary of values'!H14,NA()) -> 70 | D26: =IF('Data Simulation results'!$AB26,'11. Summary of values'!I14,NA()) -> 70 | E26: =IF('Data Simulation results'!$AB26,'11. Summary of values'!J14,NA()) -> 70 | F26: =IF('Data Simulation results'!$AB26,'11. Summary of values'!K14,NA()) -> 70 | G26: =IF('Data Simulation results'!$AB26,'11. Summary of values'!L14,NA()) -> 70 | H26: =IF('Data Simulation results'!$AB26,'11. Summary of values'!M14,NA()) -> 62 | I26: =IF('Data Simulation results'!$AB26,'11. Summary of values'!N14,NA()) -> 62 | J26: =IF('Data Simulation results'!$AB26,'11. Summary of values'!O14,NA()) -> 62 | K26: =IF('Data Simulation results'!$AB26,'11. Summary of values'!P14,NA()) -> 62 | L26: =IF('Data Simulation results'!$AB26,'11. Summary of values'!Q14,NA()) -> 62 | M26: =IF('Data Simulation results'!$AB26,'11. Summary of values'!R14,NA()) -> 56 | N26: =IF('Data Simulation results'!$AB26,'11. Summary of values'!S14,NA()) -> 56 | O26: =IF('Data Simulation results'!$AB26,'11. Summary of values'!T14,NA()) -> 56 | P26: =IF('Data Simulation results'!$AB26,'11. Summary of values'!U14,NA()) -> 56 | Q26: =IF('Data Simulation results'!$AB26,'11. Summary of values'!V14,NA()) -> 56 | R26: =IF('Data Simulation results'!$AB26,'11. Summary of values'!W14,NA()) -> 50.82852498 | S26: =IF('Data Simulation results'!$AB26,'11. Summary of values'!X14,NA()) -> 50.82852498 | T26: =IF('Data Simulation results'!$AB26,'11. Summary of values'!Y14,NA()) -> 50.82852498 | U26: =IF('Data Simulation results'!$AB26,'11. Summary of values'!Z14,NA()) -> 50.82852498 | V26: =IF('Data Simulation results'!$AB26,'11. Summary of values'!AA14,NA()) -> 50.82852498 | W26: =IF('Data Simulation results'!$AB26,'11. Summary of values'!AB14,NA()) -> 46.29027371 | X26: =IF('Data Simulation results'!$AB26,'11. Summary of values'!AC14,NA()) -> 46.29027371 | Y26: =IF('Data Simulation results'!$AB26,'11. Summary of values'!AD14,NA()) -> 46.29027371 | Z26: =IF('Data Simulation results'!$AB26,'11. Summary of values'!AE14,NA()) -> 46.29027371 | AA26: =IF('Data Simulation results'!$AB26,'11. Summary of values'!AF14,NA()) -> 46.29027371 | AB26: ='3. Simulation results'!K72 -> TRUE
A27: ='11. Summary of values'!F15 -> Mini grid + SHS1 | C27: =IF('Data Simulation results'!$AD27,'11. Summary of values'!H15,NA()) -> 176 | D27: =IF('Data Simulation results'!$AD27,'11. Summary of values'!I15,NA()) -> 176 | E27: =IF('Data Simulation results'!$AD27,'11. Summary of values'!J15,NA()) -> 176 | F27: =IF('Data Simulation results'!$AD27,'11. Summary of values'!K15,NA()) -> 176 | G27: =IF('Data Simulation results'!$AD27,'11. Summary of values'!L15,NA()) -> 176 | H27: =IF('Data Simulation results'!$AD27,'11. Summary of values'!M15,NA()) -> 156 | I27: =IF('Data Simulation results'!$AD27,'11. Summary of values'!N15,NA()) -> 156 | J27: =IF('Data Simulation results'!$AD27,'11. Summary of values'!O15,NA()) -> 156 | K27: =IF('Data Simulation results'!$AD27,'11. Summary of values'!P15,NA()) -> 156 | L27: =IF('Data Simulation results'!$AD27,'11. Summary of values'!Q15,NA()) -> 156 | M27: =IF('Data Simulation results'!$AD27,'11. Summary of values'!R15,NA()) -> 141 | N27: =IF('Data Simulation results'!$AD27,'11. Summary of values'!S15,NA()) -> 141 | O27: =IF('Data Simulation results'!$AD27,'11. Summary of values'!T15,NA()) -> 141 | P27: =IF('Data Simulation results'!$AD27,'11. Summary of values'!U15,NA()) -> 141 | Q27: =IF('Data Simulation results'!$AD27,'11. Summary of values'!V15,NA()) -> 141 | R27: =IF('Data Simulation results'!$AD27,'11. Summary of values'!W15,NA()) -> 127.6753933 | S27: =IF('Data Simulation results'!$AD27,'11. Summary of values'!X15,NA()) -> 127.6753933 | T27: =IF('Data Simulation results'!$AD27,'11. Summary of values'!Y15,NA()) -> 127.6753933 | U27: =IF('Data Simulation results'!$AD27,'11. Summary of values'!Z15,NA()) -> 127.6753933 | V27: =IF('Data Simulation results'!$AD27,'11. Summary of values'!AA15,NA()) -> 127.6753933 | W27: =IF('Data Simulation results'!$AD27,'11. Summary of values'!AB15,NA()) -> 115.2885575 | X27: =IF('Data Simulation results'!$AD27,'11. Summary of values'!AC15,NA()) -> 115.2885575 | Y27: =IF('Data Simulation results'!$AD27,'11. Summary of values'!AD15,NA()) -> 115.2885575 | Z27: =IF('Data Simulation results'!$AD27,'11. Summary of values'!AE15,NA()) -> 115.2885575 | AA27: =IF('Data Simulation results'!$AD27,'11. Summary of values'!AF15,NA()) -> 115.2885575 | AD27: ='3. Simulation results'!K74 -> TRUE
A28: ='11. Summary of values'!F16 -> Mini grid + SHS2 | C28: =IF('Data Simulation results'!$AD28,'11. Summary of values'!H16,NA()) -> 173.32 | D28: =IF('Data Simulation results'!$AD28,'11. Summary of values'!I16,NA()) -> 174.6664 | E28: =IF('Data Simulation results'!$AD28,'11. Summary of values'!J16,NA()) -> 176.039728 | F28: =IF('Data Simulation results'!$AD28,'11. Summary of values'!K16,NA()) -> 177.4405226 | G28: =IF('Data Simulation results'!$AD28,'11. Summary of values'!L16,NA()) -> 178.869333 | H28: =IF('Data Simulation results'!$AD28,'11. Summary of values'!M16,NA()) -> 168.3267197 | I28: =IF('Data Simulation results'!$AD28,'11. Summary of values'!N16,NA()) -> 169.8132541 | J28: =IF('Data Simulation results'!$AD28,'11. Summary of values'!O16,NA()) -> 171.3295191 | K28: =IF('Data Simulation results'!$AD28,'11. Summary of values'!P16,NA()) -> 172.8761095 | L28: =IF('Data Simulation results'!$AD28,'11. Summary of values'!Q16,NA()) -> 174.4536317 | M28: =IF('Data Simulation results'!$AD28,'11. Summary of values'!R16,NA()) -> 167.0627044 | N28: =IF('Data Simulation results'!$AD28,'11. Summary of values'!S16,NA()) -> 168.7039584 | O28: =IF('Data Simulation results'!$AD28,'11. Summary of values'!T16,NA()) -> 170.3780376 | P28: =IF('Data Simulation results'!$AD28,'11. Summary of values'!U16,NA()) -> 172.0855984 | Q28: =IF('Data Simulation results'!$AD28,'11. Summary of values'!V16,NA()) -> 173.8273103 | R28: =IF('Data Simulation results'!$AD28,'11. Summary of values'!W16,NA()) -> 167.4507248 | S28: =IF('Data Simulation results'!$AD28,'11. Summary of values'!X16,NA()) -> 169.2628019 | T28: =IF('Data Simulation results'!$AD28,'11. Summary of values'!Y16,NA()) -> 171.1111206 | U28: =IF('Data Simulation results'!$AD28,'11. Summary of values'!Z16,NA()) -> 172.9964057 | V28: =IF('Data Simulation results'!$AD28,'11. Summary of values'!AA16,NA()) -> 174.9193964 | W28: =IF('Data Simulation results'!$AD28,'11. Summary of values'!AB16,NA()) -> 169.0322625 | X28: =IF('Data Simulation results'!$AD28,'11. Summary of values'!AC16,NA()) -> 171.032942 | Y28: =IF('Data Simulation results'!$AD28,'11. Summary of values'!AD16,NA()) -> 173.0736352 | Z28: =IF('Data Simulation results'!$AD28,'11. Summary of values'!AE16,NA()) -> 175.1551422 | AA28: =IF('Data Simulation results'!$AD28,'11. Summary of values'!AF16,NA()) -> 177.2782794 | AD28: ='3. Simulation results'!K76 -> TRUE
A29: ='11. Summary of values'!F17 -> SHS1 + SHS2 | C29: =IF('Data Simulation results'!$AD29,'11. Summary of values'!H17,NA()) -> 137.32 | D29: =IF('Data Simulation results'!$AD29,'11. Summary of values'!I17,NA()) -> 138.6664 | E29: =IF('Data Simulation results'!$AD29,'11. Summary of values'!J17,NA()) -> 140.039728 | F29: =IF('Data Simulation results'!$AD29,'11. Summary of values'!K17,NA()) -> 141.4405226 | G29: =IF('Data Simulation results'!$AD29,'11. Summary of values'!L17,NA()) -> 142.869333 | H29: =IF('Data Simulation results'!$AD29,'11. Summary of values'!M17,NA()) -> 136.3267197 | I29: =IF('Data Simulation results'!$AD29,'11. Summary of values'!N17,NA()) -> 137.8132541 | J29: =IF('Data Simulation results'!$AD29,'11. Summary of values'!O17,NA()) -> 139.3295191 | K29: =IF('Data Simulation results'!$AD29,'11. Summary of values'!P17,NA()) -> 140.8761095 | L29: =IF('Data Simulation results'!$AD29,'11. Summary of values'!Q17,NA()) -> 142.4536317 | M29: =IF('Data Simulation results'!$AD29,'11. Summary of values'!R17,NA()) -> 138.0627044 | N29: =IF('Data Simulation results'!$AD29,'11. Summary of values'!S17,NA()) -> 139.7039584 | O29: =IF('Data Simulation results'!$AD29,'11. Summary of values'!T17,NA()) -> 141.3780376 | P29: =IF('Data Simulation results'!$AD29,'11. Summary of values'!U17,NA()) -> 143.0855984 | Q29: =IF('Data Simulation results'!$AD29,'11. Summary of values'!V17,NA()) -> 144.8273103 | R29: =IF('Data Simulation results'!$AD29,'11. Summary of values'!W17,NA()) -> 141.4323815 | S29: =IF('Data Simulation results'!$AD29,'11. Summary of values'!X17,NA()) -> 143.2444586 | T29: =IF('Data Simulation results'!$AD29,'11. Summary of values'!Y17,NA()) -> 145.0927773 | U29: =IF('Data Simulation results'!$AD29,'11. Summary of values'!Z17,NA()) -> 146.9780624 | V29: =IF('Data Simulation results'!$AD29,'11. Summary of values'!AA17,NA()) -> 148.9010531 | W29: =IF('Data Simulation results'!$AD29,'11. Summary of values'!AB17,NA()) -> 146.3242524 | X29: =IF('Data Simulation results'!$AD29,'11. Summary of values'!AC17,NA()) -> 148.324932 | Y29: =IF('Data Simulation results'!$AD29,'11. Summary of values'!AD17,NA()) -> 150.3656251 | Z29: =IF('Data Simulation results'!$AD29,'11. Summary of values'!AE17,NA()) -> 152.4471322 | AA29: =IF('Data Simulation results'!$AD29,'11. Summary of values'!AF17,NA()) -> 154.5702693 | AD29: ='3. Simulation results'!K76 -> TRUE
A30: ='11. Summary of values'!F18 -> Total | C30: =IF('Data Simulation results'!$AB30,'11. Summary of values'!H18,NA()) -> 243.32 | D30: =IF('Data Simulation results'!$AB30,'11. Summary of values'!I18,NA()) -> 244.6664 | E30: =IF('Data Simulation results'!$AB30,'11. Summary of values'!J18,NA()) -> 246.039728 | F30: =IF('Data Simulation results'!$AB30,'11. Summary of values'!K18,NA()) -> 247.4405226 | G30: =IF('Data Simulation results'!$AB30,'11. Summary of values'!L18,NA()) -> 248.869333 | H30: =IF('Data Simulation results'!$AB30,'11. Summary of values'!M18,NA()) -> 230.3267197 | I30: =IF('Data Simulation results'!$AB30,'11. Summary of values'!N18,NA()) -> 231.8132541 | J30: =IF('Data Simulation results'!$AB30,'11. Summary of values'!O18,NA()) -> 233.3295191 | K30: =IF('Data Simulation results'!$AB30,'11. Summary of values'!P18,NA()) -> 234.8761095 | L30: =IF('Data Simulation results'!$AB30,'11. Summary of values'!Q18,NA()) -> 236.4536317 | M30: =IF('Data Simulation results'!$AB30,'11. Summary of values'!R18,NA()) -> 223.0627044 | N30: =IF('Data Simulation results'!$AB30,'11. Summary of values'!S18,NA()) -> 224.7039584 | O30: =IF('Data Simulation results'!$AB30,'11. Summary of values'!T18,NA()) -> 226.3780376 | P30: =IF('Data Simulation results'!$AB30,'11. Summary of values'!U18,NA()) -> 228.0855984 | Q30: =IF('Data Simulation results'!$AB30,'11. Summary of values'!V18,NA()) -> 229.8273103 | R30: =IF('Data Simulation results'!$AB30,'11. Summary of values'!W18,NA()) -> 218.2792498 | S30: =IF('Data Simulation results'!$AB30,'11. Summary of values'!X18,NA()) -> 220.0913269 | T30: =IF('Data Simulation results'!$AB30,'11. Summary of values'!Y18,NA()) -> 221.9396456 | U30: =IF('Data Simulation results'!$AB30,'11. Summary of values'!Z18,NA()) -> 223.8249306 | V30: =IF('Data Simulation results'!$AB30,'11. Summary of values'!AA18,NA()) -> 225.7479214 | W30: =IF('Data Simulation results'!$AB30,'11. Summary of values'!AB18,NA()) -> 215.3225362 | X30: =IF('Data Simulation results'!$AB30,'11. Summary of values'!AC18,NA()) -> 217.3232157 | Y30: =IF('Data Simulation results'!$AB30,'11. Summary of values'!AD18,NA()) -> 219.3639089 | Z30: =IF('Data Simulation results'!$AB30,'11. Summary of values'!AE18,NA()) -> 221.4454159 | AA30: =IF('Data Simulation results'!$AB30,'11. Summary of values'!AF18,NA()) -> 223.5685531 | AB30: ='3. Simulation results'!K78 -> TRUE
A32: Use of SHS
B34: ='11. Summary of values'!G170 -> 2023 | C34: ='11. Summary of values'!H170 -> 2024 | D34: ='11. Summary of values'!I170 -> 2025 | E34: ='11. Summary of values'!J170 -> 2026 | F34: ='11. Summary of values'!K170 -> 2027 | G34: ='11. Summary of values'!L170 -> 2028 | H34: ='11. Summary of values'!M170 -> 2029 | I34: ='11. Summary of values'!N170 -> 2030 | J34: ='11. Summary of values'!O170 -> 2031 | K34: ='11. Summary of values'!P170 -> 2032 | L34: ='11. Summary of values'!Q170 -> 2033 | M34: ='11. Summary of values'!R170 -> 2034 | N34: ='11. Summary of values'!S170 -> 2035 | O34: ='11. Summary of values'!T170 -> 2036 | P34: ='11. Summary of values'!U170 -> 2037 | Q34: ='11. Summary of values'!V170 -> 2038 | R34: ='11. Summary of values'!W170 -> 2039 | S34: ='11. Summary of values'!X170 -> 2040 | T34: ='11. Summary of values'!Y170 -> 2041 | U34: ='11. Summary of values'!Z170 -> 2042 | V34: ='11. Summary of values'!AA170 -> 2043 | W34: ='11. Summary of values'!AB170 -> 2044 | X34: ='11. Summary of values'!AC170 -> 2045 | Y34: ='11. Summary of values'!AD170 -> 2046 | Z34: ='11. Summary of values'!AE170 -> 2047 | AA34: ='11. Summary of values'!AF170 -> 2048
A35: ='11. Summary of values'!B171 -> Number of users | B35: =IF('Data Simulation results'!$AB35,'11. Summary of values'!G171,NA()) -> 0 | C35: =IF('Data Simulation results'!$AB35,'11. Summary of values'!H171,NA()) -> 243.32 | D35: =IF('Data Simulation results'!$AB35,'11. Summary of values'!I171,NA()) -> 244.6664 | E35: =IF('Data Simulation results'!$AB35,'11. Summary of values'!J171,NA()) -> 246.039728 | F35: =IF('Data Simulation results'!$AB35,'11. Summary of values'!K171,NA()) -> 247.4405226 | G35: =IF('Data Simulation results'!$AB35,'11. Summary of values'!L171,NA()) -> 248.869333 | H35: =IF('Data Simulation results'!$AB35,'11. Summary of values'!M171,NA()) -> 230.3267197 | I35: =IF('Data Simulation results'!$AB35,'11. Summary of values'!N171,NA()) -> 231.8132541 | J35: =IF('Data Simulation results'!$AB35,'11. Summary of values'!O171,NA()) -> 233.3295191 | K35: =IF('Data Simulation results'!$AB35,'11. Summary of values'!P171,NA()) -> 234.8761095 | L35: =IF('Data Simulation results'!$AB35,'11. Summary of values'!Q171,NA()) -> 236.4536317 | M35: =IF('Data Simulation results'!$AB35,'11. Summary of values'!R171,NA()) -> 223.0627044 | N35: =IF('Data Simulation results'!$AB35,'11. Summary of values'!S171,NA()) -> 224.7039584 | O35: =IF('Data Simulation results'!$AB35,'11. Summary of values'!T171,NA()) -> 226.3780376 | P35: =IF('Data Simulation results'!$AB35,'11. Summary of values'!U171,NA()) -> 228.0855984 | Q35: =IF('Data Simulation results'!$AB35,'11. Summary of values'!V171,NA()) -> 229.8273103 | R35: =IF('Data Simulation results'!$AB35,'11. Summary of values'!W171,NA()) -> 218.2792498 | S35: =IF('Data Simulation results'!$AB35,'11. Summary of values'!X171,NA()) -> 220.0913269 | T35: =IF('Data Simulation results'!$AB35,'11. Summary of values'!Y171,NA()) -> 221.9396456 | U35: =IF('Data Simulation results'!$AB35,'11. Summary of values'!Z171,NA()) -> 223.8249306 | V35: =IF('Data Simulation results'!$AB35,'11. Summary of values'!AA171,NA()) -> 225.7479214 | W35: =IF('Data Simulation results'!$AB35,'11. Summary of values'!AB171,NA()) -> 215.3225362 | X35: =IF('Data Simulation results'!$AB35,'11. Summary of values'!AC171,NA()) -> 217.3232157 | Y35: =IF('Data Simulation results'!$AB35,'11. Summary of values'!AD171,NA()) -> 219.3639089 | Z35: =IF('Data Simulation results'!$AB35,'11. Summary of values'!AE171,NA()) -> 221.4454159 | AA35: =IF('Data Simulation results'!$AB35,'11. Summary of values'!AF171,NA()) -> 223.5685531 | AB35: ='3. Simulation results'!T72 -> TRUE
A36: ='11. Summary of values'!B172 -> Total SHS installed | B36: =IF('Data Simulation results'!$AB36,'11. Summary of values'!G172,NA()) -> 0 | C36: =IF('Data Simulation results'!$AB36,'11. Summary of values'!H172,NA()) -> 176 | D36: =IF('Data Simulation results'!$AB36,'11. Summary of values'!I172,NA()) -> 179 | E36: =IF('Data Simulation results'!$AB36,'11. Summary of values'!J172,NA()) -> 182 | F36: =IF('Data Simulation results'!$AB36,'11. Summary of values'!K172,NA()) -> 185 | G36: =IF('Data Simulation results'!$AB36,'11. Summary of values'!L172,NA()) -> 188 | H36: =IF('Data Simulation results'!$AB36,'11. Summary of values'!M172,NA()) -> 194 | I36: =IF('Data Simulation results'!$AB36,'11. Summary of values'!N172,NA()) -> 197 | J36: =IF('Data Simulation results'!$AB36,'11. Summary of values'!O172,NA()) -> 200 | K36: =IF('Data Simulation results'!$AB36,'11. Summary of values'!P172,NA()) -> 203 | L36: =IF('Data Simulation results'!$AB36,'11. Summary of values'!Q172,NA()) -> 206 | M36: =IF('Data Simulation results'!$AB36,'11. Summary of values'!R172,NA()) -> 213 | N36: =IF('Data Simulation results'!$AB36,'11. Summary of values'!S172,NA()) -> 216 | O36: =IF('Data Simulation results'!$AB36,'11. Summary of values'!T172,NA()) -> 219 | P36: =IF('Data Simulation results'!$AB36,'11. Summary of values'!U172,NA()) -> 222 | Q36: =IF('Data Simulation results'!$AB36,'11. Summary of values'!V172,NA()) -> 225 | R36: =IF('Data Simulation results'!$AB36,'11. Summary of values'!W172,NA()) -> 227.6753933 | S36: =IF('Data Simulation results'!$AB36,'11. Summary of values'!X172,NA()) -> 230.6753933 | T36: =IF('Data Simulation results'!$AB36,'11. Summary of values'!Y172,NA()) -> 233.6753933 | U36: =IF('Data Simulation results'!$AB36,'11. Summary of values'!Z172,NA()) -> 236.6753933 | V36: =IF('Data Simulation results'!$AB36,'11. Summary of values'!AA172,NA()) -> 239.6753933 | W36: =IF('Data Simulation results'!$AB36,'11. Summary of values'!AB172,NA()) -> 240.9639507 | X36: =IF('Data Simulation results'!$AB36,'11. Summary of values'!AC172,NA()) -> 243.9639507 | Y36: =IF('Data Simulation results'!$AB36,'11. Summary of values'!AD172,NA()) -> 246.9639507 | Z36: =IF('Data Simulation results'!$AB36,'11. Summary of values'!AE172,NA()) -> 249.9639507 | AA36: =IF('Data Simulation results'!$AB36,'11. Summary of values'!AF172,NA()) -> 252.9639507 | AB36: ='3. Simulation results'!T74 -> TRUE
A37: ='11. Summary of values'!B173 -> Quantity of new users | B37: =IF('Data Simulation results'!$AB37,'11. Summary of values'!G173,NA()) -> 0 | C37: =IF('Data Simulation results'!$AB37,'11. Summary of values'!H173,NA()) -> 176 | D37: =IF('Data Simulation results'!$AB37,'11. Summary of values'!I173,NA()) -> 179 | E37: =IF('Data Simulation results'!$AB37,'11. Summary of values'!J173,NA()) -> 183 | F37: =IF('Data Simulation results'!$AB37,'11. Summary of values'!K173,NA()) -> 186 | G37: =IF('Data Simulation results'!$AB37,'11. Summary of values'!L173,NA()) -> 191 | H37: =IF('Data Simulation results'!$AB37,'11. Summary of values'!M173,NA()) -> 18 | I37: =IF('Data Simulation results'!$AB37,'11. Summary of values'!N173,NA()) -> 21 | J37: =IF('Data Simulation results'!$AB37,'11. Summary of values'!O173,NA()) -> 24 | K37: =IF('Data Simulation results'!$AB37,'11. Summary of values'!P173,NA()) -> 27 | L37: =IF('Data Simulation results'!$AB37,'11. Summary of values'!Q173,NA()) -> 30 | M37: =IF('Data Simulation results'!$AB37,'11. Summary of values'!R173,NA()) -> 19 | N37: =IF('Data Simulation results'!$AB37,'11. Summary of values'!S173,NA()) -> 22 | O37: =IF('Data Simulation results'!$AB37,'11. Summary of values'!T173,NA()) -> 25 | P37: =IF('Data Simulation results'!$AB37,'11. Summary of values'!U173,NA()) -> 28 | Q37: =IF('Data Simulation results'!$AB37,'11. Summary of values'!V173,NA()) -> 31 | R37: =IF('Data Simulation results'!$AB37,'11. Summary of values'!W173,NA()) -> 15 | S37: =IF('Data Simulation results'!$AB37,'11. Summary of values'!X173,NA()) -> 18 | T37: =IF('Data Simulation results'!$AB37,'11. Summary of values'!Y173,NA()) -> 21 | U37: =IF('Data Simulation results'!$AB37,'11. Summary of values'!Z173,NA()) -> 24 | V37: =IF('Data Simulation results'!$AB37,'11. Summary of values'!AA173,NA()) -> 27 | W37: =IF('Data Simulation results'!$AB37,'11. Summary of values'!AB173,NA()) -> 13 | X37: =IF('Data Simulation results'!$AB37,'11. Summary of values'!AC173,NA()) -> 16 | Y37: =IF('Data Simulation results'!$AB37,'11. Summary of values'!AD173,NA()) -> 19 | Z37: =IF('Data Simulation results'!$AB37,'11. Summary of values'!AE173,NA()) -> 22 | AA37: =IF('Data Simulation results'!$AB37,'11. Summary of values'!AF173,NA()) -> 25 | AB37: ='3. Simulation results'!T76 -> TRUE
A38: ='11. Summary of values'!B174 -> Battery changed | B38: =IF('Data Simulation results'!$AB38,'11. Summary of values'!G174,NA()) -> 0 | C38: =IF('Data Simulation results'!$AB38,'11. Summary of values'!H174,NA()) -> 0 | D38: =IF('Data Simulation results'!$AB38,'11. Summary of values'!I174,NA()) -> 0 | E38: =IF('Data Simulation results'!$AB38,'11. Summary of values'!J174,NA()) -> 0 | F38: =IF('Data Simulation results'!$AB38,'11. Summary of values'!K174,NA()) -> 0 | G38: =IF('Data Simulation results'!$AB38,'11. Summary of values'!L174,NA()) -> 0 | H38: =IF('Data Simulation results'!$AB38,'11. Summary of values'!M174,NA()) -> 141 | I38: =IF('Data Simulation results'!$AB38,'11. Summary of values'!N174,NA()) -> 141 | J38: =IF('Data Simulation results'!$AB38,'11. Summary of values'!O174,NA()) -> 141 | K38: =IF('Data Simulation results'!$AB38,'11. Summary of values'!P174,NA()) -> 141 | L38: =IF('Data Simulation results'!$AB38,'11. Summary of values'!Q174,NA()) -> 141 | M38: =IF('Data Simulation results'!$AB38,'11. Summary of values'!R174,NA()) -> 125 | N38: =IF('Data Simulation results'!$AB38,'11. Summary of values'!S174,NA()) -> 125 | O38: =IF('Data Simulation results'!$AB38,'11. Summary of values'!T174,NA()) -> 125 | P38: =IF('Data Simulation results'!$AB38,'11. Summary of values'!U174,NA()) -> 125 | Q38: =IF('Data Simulation results'!$AB38,'11. Summary of values'!V174,NA()) -> 125 | R38: =IF('Data Simulation results'!$AB38,'11. Summary of values'!W174,NA()) -> 113 | S38: =IF('Data Simulation results'!$AB38,'11. Summary of values'!X174,NA()) -> 113 | T38: =IF('Data Simulation results'!$AB38,'11. Summary of values'!Y174,NA()) -> 113 | U38: =IF('Data Simulation results'!$AB38,'11. Summary of values'!Z174,NA()) -> 113 | V38: =IF('Data Simulation results'!$AB38,'11. Summary of values'!AA174,NA()) -> 113 | W38: =IF('Data Simulation results'!$AB38,'11. Summary of values'!AB174,NA()) -> 102 | X38: =IF('Data Simulation results'!$AB38,'11. Summary of values'!AC174,NA()) -> 102 | Y38: =IF('Data Simulation results'!$AB38,'11. Summary of values'!AD174,NA()) -> 102 | Z38: =IF('Data Simulation results'!$AB38,'11. Summary of values'!AE174,NA()) -> 102 | AA38: =IF('Data Simulation results'!$AB38,'11. Summary of values'!AF174,NA()) -> 102 | AB38: ='3. Simulation results'!T78 -> TRUE
A41: Revenue
B43: ='11. Summary of values'!G10 -> 2023 | C43: ='11. Summary of values'!H10 -> 2024 | D43: ='11. Summary of values'!I10 -> 2025 | E43: ='11. Summary of values'!J10 -> 2026 | F43: ='11. Summary of values'!K10 -> 2027 | G43: ='11. Summary of values'!L10 -> 2028 | H43: ='11. Summary of values'!M10 -> 2029 | I43: ='11. Summary of values'!N10 -> 2030 | J43: ='11. Summary of values'!O10 -> 2031 | K43: ='11. Summary of values'!P10 -> 2032 | L43: ='11. Summary of values'!Q10 -> 2033 | M43: ='11. Summary of values'!R10 -> 2034 | N43: ='11. Summary of values'!S10 -> 2035 | O43: ='11. Summary of values'!T10 -> 2036 | P43: ='11. Summary of values'!U10 -> 2037 | Q43: ='11. Summary of values'!V10 -> 2038 | R43: ='11. Summary of values'!W10 -> 2039 | S43: ='11. Summary of values'!X10 -> 2040 | T43: ='11. Summary of values'!Y10 -> 2041 | U43: ='11. Summary of values'!Z10 -> 2042 | V43: ='11. Summary of values'!AA10 -> 2043 | W43: ='11. Summary of values'!AB10 -> 2044 | X43: ='11. Summary of values'!AC10 -> 2045 | Y43: ='11. Summary of values'!AD10 -> 2046 | Z43: ='11. Summary of values'!AE10 -> 2047 | AA43: ='11. Summary of values'!AF10 -> 2048
A44: ='11. Summary of values'!F64 -> Mini grid | B44: =IF('Data Simulation results'!$AB44,'11. Summary of values'!G64,NA()) -> 370000 | C44: =IF('Data Simulation results'!$AB44,'11. Summary of values'!H64,NA()) -> 7745079.938 | D44: =IF('Data Simulation results'!$AB44,'11. Summary of values'!I64,NA()) -> 9040757.967 | E44: =IF('Data Simulation results'!$AB44,'11. Summary of values'!J64,NA()) -> 10480086.53 | F44: =IF('Data Simulation results'!$AB44,'11. Summary of values'!K64,NA()) -> 12219923.01 | G44: =IF('Data Simulation results'!$AB44,'11. Summary of values'!L64,NA()) -> 14222011.58 | H44: =IF('Data Simulation results'!$AB44,'11. Summary of values'!M64,NA()) -> 16535211.94 | I44: =IF('Data Simulation results'!$AB44,'11. Summary of values'!N64,NA()) -> 19284424.56 | J44: =IF('Data Simulation results'!$AB44,'11. Summary of values'!O64,NA()) -> 22397766.06 | K44: =IF('Data Simulation results'!$AB44,'11. Summary of values'!P64,NA()) -> 26116711.8 | L44: =IF('Data Simulation results'!$AB44,'11. Summary of values'!Q64,NA()) -> 30431408.29 | M44: =IF('Data Simulation results'!$AB44,'11. Summary of values'!R64,NA()) -> 35410625.81 | N44: =IF('Data Simulation results'!$AB44,'11. Summary of values'!S64,NA()) -> 41281235.35 | O44: =IF('Data Simulation results'!$AB44,'11. Summary of values'!T64,NA()) -> 48060220.75 | P44: =IF('Data Simulation results'!$AB44,'11. Summary of values'!U64,NA()) -> 56020769.65 | Q44: =IF('Data Simulation results'!$AB44,'11. Summary of values'!V64,NA()) -> 65266416.4 | R44: =IF('Data Simulation results'!$AB44,'11. Summary of values'!W64,NA()) -> 76106157.54 | S44: =IF('Data Simulation results'!$AB44,'11. Summary of values'!X64,NA()) -> 88673457.5 | T44: =IF('Data Simulation results'!$AB44,'11. Summary of values'!Y64,NA()) -> 103282483.5 | U44: =IF('Data Simulation results'!$AB44,'11. Summary of values'!Z64,NA()) -> 120452675.4 | V44: =IF('Data Simulation results'!$AB44,'11. Summary of values'!AA64,NA()) -> 140369501.9 | W44: =IF('Data Simulation results'!$AB44,'11. Summary of values'!AB64,NA()) -> 163665822.3 | X44: =IF('Data Simulation results'!$AB44,'11. Summary of values'!AC64,NA()) -> 190741512.7 | Y44: =IF('Data Simulation results'!$AB44,'11. Summary of values'!AD64,NA()) -> 222400896.5 | Z44: =IF('Data Simulation results'!$AB44,'11. Summary of values'!AE64,NA()) -> 259233208.7 | AA44: =IF('Data Simulation results'!$AB44,'11. Summary of values'!AF64,NA()) -> 302264935.8 | AB44: ='3. Simulation results'!K89 -> TRUE
A45: ='11. Summary of values'!F65 -> SHS1 | B45: =IF('Data Simulation results'!$AB45,'11. Summary of values'!G65,NA()) -> 931093.32 | C45: =IF('Data Simulation results'!$AB45,'11. Summary of values'!H65,NA()) -> 6008187.084 | D45: =IF('Data Simulation results'!$AB45,'11. Summary of values'!I65,NA()) -> 6008187.084 | E45: =IF('Data Simulation results'!$AB45,'11. Summary of values'!J65,NA()) -> 1391369.64 | F45: =IF('Data Simulation results'!$AB45,'11. Summary of values'!K65,NA()) -> 0 | G45: =IF('Data Simulation results'!$AB45,'11. Summary of values'!L65,NA()) -> 686175.9379 | H45: =IF('Data Simulation results'!$AB45,'11. Summary of values'!M65,NA()) -> 4406213.186 | I45: =IF('Data Simulation results'!$AB45,'11. Summary of values'!N65,NA()) -> 4406213.186 | J45: =IF('Data Simulation results'!$AB45,'11. Summary of values'!O65,NA()) -> 1068507.133 | K45: =IF('Data Simulation results'!$AB45,'11. Summary of values'!P65,NA()) -> 0 | L45: =IF('Data Simulation results'!$AB45,'11. Summary of values'!Q65,NA()) -> 1062782.65 | M45: =IF('Data Simulation results'!$AB45,'11. Summary of values'!R65,NA()) -> 6860535.645 | N45: =IF('Data Simulation results'!$AB45,'11. Summary of values'!S65,NA()) -> 6860535.645 | O45: =IF('Data Simulation results'!$AB45,'11. Summary of values'!T65,NA()) -> 1582998.878 | P45: =IF('Data Simulation results'!$AB45,'11. Summary of values'!U65,NA()) -> 0 | Q45: =IF('Data Simulation results'!$AB45,'11. Summary of values'!V65,NA()) -> 1543097.412 | R45: =IF('Data Simulation results'!$AB45,'11. Summary of values'!W65,NA()) -> 9913204.18 | S45: =IF('Data Simulation results'!$AB45,'11. Summary of values'!X65,NA()) -> 9913204.18 | T45: =IF('Data Simulation results'!$AB45,'11. Summary of values'!Y65,NA()) -> 2394194.38 | U45: =IF('Data Simulation results'!$AB45,'11. Summary of values'!Z65,NA()) -> 0 | V45: =IF('Data Simulation results'!$AB45,'11. Summary of values'!AA65,NA()) -> 2435011.987 | W45: =IF('Data Simulation results'!$AB45,'11. Summary of values'!AB65,NA()) -> 15544298.39 | X45: =IF('Data Simulation results'!$AB45,'11. Summary of values'!AC65,NA()) -> 15544298.39 | Y45: =IF('Data Simulation results'!$AB45,'11. Summary of values'!AD65,NA()) -> 3975575.832 | Z45: =IF('Data Simulation results'!$AB45,'11. Summary of values'!AE65,NA()) -> 0 | AA45: =IF('Data Simulation results'!$AB45,'11. Summary of values'!AF65,NA()) -> 0 | AB45: ='3. Simulation results'!K91 -> TRUE
A46: ='11. Summary of values'!F66 -> SHS2 | B46: =IF('Data Simulation results'!$AB46,'11. Summary of values'!G66,NA()) -> 1762675 | C46: =IF('Data Simulation results'!$AB46,'11. Summary of values'!H66,NA()) -> 11422134 | D46: =IF('Data Simulation results'!$AB46,'11. Summary of values'!I66,NA()) -> 11422134 | E46: =IF('Data Simulation results'!$AB46,'11. Summary of values'!J66,NA()) -> 2538252 | F46: =IF('Data Simulation results'!$AB46,'11. Summary of values'!K66,NA()) -> 0 | G46: =IF('Data Simulation results'!$AB46,'11. Summary of values'!L66,NA()) -> 4321606.936 | H46: =IF('Data Simulation results'!$AB46,'11. Summary of values'!M66,NA()) -> 25541921.36 | I46: =IF('Data Simulation results'!$AB46,'11. Summary of values'!N66,NA()) -> 25541921.36 | J46: =IF('Data Simulation results'!$AB46,'11. Summary of values'!O66,NA()) -> 6323031.743 | K46: =IF('Data Simulation results'!$AB46,'11. Summary of values'!P66,NA()) -> 0 | L46: =IF('Data Simulation results'!$AB46,'11. Summary of values'!Q66,NA()) -> 5546999.591 | M46: =IF('Data Simulation results'!$AB46,'11. Summary of values'!R66,NA()) -> 35513044.85 | N46: =IF('Data Simulation results'!$AB46,'11. Summary of values'!S66,NA()) -> 35513044.85 | O46: =IF('Data Simulation results'!$AB46,'11. Summary of values'!T66,NA()) -> 8850704.415 | P46: =IF('Data Simulation results'!$AB46,'11. Summary of values'!U66,NA()) -> 0 | Q46: =IF('Data Simulation results'!$AB46,'11. Summary of values'!V66,NA()) -> 7675153.886 | R46: =IF('Data Simulation results'!$AB46,'11. Summary of values'!W66,NA()) -> 48502362.49 | S46: =IF('Data Simulation results'!$AB46,'11. Summary of values'!X66,NA()) -> 48502362.49 | T46: =IF('Data Simulation results'!$AB46,'11. Summary of values'!Y66,NA()) -> 14127876.9 | U46: =IF('Data Simulation results'!$AB46,'11. Summary of values'!Z66,NA()) -> 0 | V46: =IF('Data Simulation results'!$AB46,'11. Summary of values'!AA66,NA()) -> 12652762.18 | W46: =IF('Data Simulation results'!$AB46,'11. Summary of values'!AB66,NA()) -> 79768904.86 | X46: =IF('Data Simulation results'!$AB46,'11. Summary of values'!AC66,NA()) -> 79768904.86 | Y46: =IF('Data Simulation results'!$AB46,'11. Summary of values'!AD66,NA()) -> 19955892.01 | Z46: =IF('Data Simulation results'!$AB46,'11. Summary of values'!AE66,NA()) -> 0 | AA46: =IF('Data Simulation results'!$AB46,'11. Summary of values'!AF66,NA()) -> 0 | AB46: ='3. Simulation results'!K93 -> TRUE
A47: ='11. Summary of values'!F67 -> SHS1 + SHS2 | B47: =IF('Data Simulation results'!$AB47,'11. Summary of values'!G67,NA()) -> 2693768.32 | C47: =IF('Data Simulation results'!$AB47,'11. Summary of values'!H67,NA()) -> 17430321.08 | D47: =IF('Data Simulation results'!$AB47,'11. Summary of values'!I67,NA()) -> 17430321.08 | E47: =IF('Data Simulation results'!$AB47,'11. Summary of values'!J67,NA()) -> 3929621.64 | F47: =IF('Data Simulation results'!$AB47,'11. Summary of values'!K67,NA()) -> 0 | G47: =IF('Data Simulation results'!$AB47,'11. Summary of values'!L67,NA()) -> 5007782.874 | H47: =IF('Data Simulation results'!$AB47,'11. Summary of values'!M67,NA()) -> 29948134.55 | I47: =IF('Data Simulation results'!$AB47,'11. Summary of values'!N67,NA()) -> 29948134.55 | J47: =IF('Data Simulation results'!$AB47,'11. Summary of values'!O67,NA()) -> 7391538.876 | K47: =IF('Data Simulation results'!$AB47,'11. Summary of values'!P67,NA()) -> 0 | L47: =IF('Data Simulation results'!$AB47,'11. Summary of values'!Q67,NA()) -> 6609782.242 | M47: =IF('Data Simulation results'!$AB47,'11. Summary of values'!R67,NA()) -> 42373580.5 | N47: =IF('Data Simulation results'!$AB47,'11. Summary of values'!S67,NA()) -> 42373580.5 | O47: =IF('Data Simulation results'!$AB47,'11. Summary of values'!T67,NA()) -> 10433703.29 | P47: =IF('Data Simulation results'!$AB47,'11. Summary of values'!U67,NA()) -> 0 | Q47: =IF('Data Simulation results'!$AB47,'11. Summary of values'!V67,NA()) -> 9218251.298 | R47: =IF('Data Simulation results'!$AB47,'11. Summary of values'!W67,NA()) -> 58415566.67 | S47: =IF('Data Simulation results'!$AB47,'11. Summary of values'!X67,NA()) -> 58415566.67 | T47: =IF('Data Simulation results'!$AB47,'11. Summary of values'!Y67,NA()) -> 16522071.28 | U47: =IF('Data Simulation results'!$AB47,'11. Summary of values'!Z67,NA()) -> 0 | V47: =IF('Data Simulation results'!$AB47,'11. Summary of values'!AA67,NA()) -> 15087774.17 | W47: =IF('Data Simulation results'!$AB47,'11. Summary of values'!AB67,NA()) -> 95313203.25 | X47: =IF('Data Simulation results'!$AB47,'11. Summary of values'!AC67,NA()) -> 95313203.25 | Y47: =IF('Data Simulation results'!$AB47,'11. Summary of values'!AD67,NA()) -> 23931467.84 | Z47: =IF('Data Simulation results'!$AB47,'11. Summary of values'!AE67,NA()) -> 0 | AA47: =IF('Data Simulation results'!$AB47,'11. Summary of values'!AF67,NA()) -> 0 | AB47: ='3. Simulation results'!K95 -> TRUE
A48: ='11. Summary of values'!F68 -> Mini grid + SHS1 | B48: =IF('Data Simulation results'!$AB48,'11. Summary of values'!G68,NA()) -> 1301093.32 | C48: =IF('Data Simulation results'!$AB48,'11. Summary of values'!H68,NA()) -> 13753267.02 | D48: =IF('Data Simulation results'!$AB48,'11. Summary of values'!I68,NA()) -> 15048945.05 | E48: =IF('Data Simulation results'!$AB48,'11. Summary of values'!J68,NA()) -> 11871456.17 | F48: =IF('Data Simulation results'!$AB48,'11. Summary of values'!K68,NA()) -> 12219923.01 | G48: =IF('Data Simulation results'!$AB48,'11. Summary of values'!L68,NA()) -> 14908187.52 | H48: =IF('Data Simulation results'!$AB48,'11. Summary of values'!M68,NA()) -> 20941425.13 | I48: =IF('Data Simulation results'!$AB48,'11. Summary of values'!N68,NA()) -> 23690637.74 | J48: =IF('Data Simulation results'!$AB48,'11. Summary of values'!O68,NA()) -> 23466273.19 | K48: =IF('Data Simulation results'!$AB48,'11. Summary of values'!P68,NA()) -> 26116711.8 | L48: =IF('Data Simulation results'!$AB48,'11. Summary of values'!Q68,NA()) -> 31494190.95 | M48: =IF('Data Simulation results'!$AB48,'11. Summary of values'!R68,NA()) -> 42271161.46 | N48: =IF('Data Simulation results'!$AB48,'11. Summary of values'!S68,NA()) -> 48141770.99 | O48: =IF('Data Simulation results'!$AB48,'11. Summary of values'!T68,NA()) -> 49643219.63 | P48: =IF('Data Simulation results'!$AB48,'11. Summary of values'!U68,NA()) -> 56020769.65 | Q48: =IF('Data Simulation results'!$AB48,'11. Summary of values'!V68,NA()) -> 66809513.82 | R48: =IF('Data Simulation results'!$AB48,'11. Summary of values'!W68,NA()) -> 86019361.72 | S48: =IF('Data Simulation results'!$AB48,'11. Summary of values'!X68,NA()) -> 98586661.68 | T48: =IF('Data Simulation results'!$AB48,'11. Summary of values'!Y68,NA()) -> 105676677.9 | U48: =IF('Data Simulation results'!$AB48,'11. Summary of values'!Z68,NA()) -> 120452675.4 | V48: =IF('Data Simulation results'!$AB48,'11. Summary of values'!AA68,NA()) -> 142804513.9 | W48: =IF('Data Simulation results'!$AB48,'11. Summary of values'!AB68,NA()) -> 179210120.7 | X48: =IF('Data Simulation results'!$AB48,'11. Summary of values'!AC68,NA()) -> 206285811.1 | Y48: =IF('Data Simulation results'!$AB48,'11. Summary of values'!AD68,NA()) -> 226376472.3 | Z48: =IF('Data Simulation results'!$AB48,'11. Summary of values'!AE68,NA()) -> 259233208.7 | AA48: =IF('Data Simulation results'!$AB48,'11. Summary of values'!AF68,NA()) -> 302264935.8 | AB48: ='3. Simulation results'!K97 -> TRUE
A49: ='11. Summary of values'!F69 -> Mini grid + SHS2 | B49: =IF('Data Simulation results'!$AB49,'11. Summary of values'!G69,NA()) -> 2132675 | C49: =IF('Data Simulation results'!$AB49,'11. Summary of values'!H69,NA()) -> 19167213.94 | D49: =IF('Data Simulation results'!$AB49,'11. Summary of values'!I69,NA()) -> 20462891.97 | E49: =IF('Data Simulation results'!$AB49,'11. Summary of values'!J69,NA()) -> 13018338.53 | F49: =IF('Data Simulation results'!$AB49,'11. Summary of values'!K69,NA()) -> 12219923.01 | G49: =IF('Data Simulation results'!$AB49,'11. Summary of values'!L69,NA()) -> 18543618.52 | H49: =IF('Data Simulation results'!$AB49,'11. Summary of values'!M69,NA()) -> 42077133.31 | I49: =IF('Data Simulation results'!$AB49,'11. Summary of values'!N69,NA()) -> 44826345.92 | J49: =IF('Data Simulation results'!$AB49,'11. Summary of values'!O69,NA()) -> 28720797.8 | K49: =IF('Data Simulation results'!$AB49,'11. Summary of values'!P69,NA()) -> 26116711.8 | L49: =IF('Data Simulation results'!$AB49,'11. Summary of values'!Q69,NA()) -> 35978407.89 | M49: =IF('Data Simulation results'!$AB49,'11. Summary of values'!R69,NA()) -> 70923670.66 | N49: =IF('Data Simulation results'!$AB49,'11. Summary of values'!S69,NA()) -> 76794280.2 | O49: =IF('Data Simulation results'!$AB49,'11. Summary of values'!T69,NA()) -> 56910925.16 | P49: =IF('Data Simulation results'!$AB49,'11. Summary of values'!U69,NA()) -> 56020769.65 | Q49: =IF('Data Simulation results'!$AB49,'11. Summary of values'!V69,NA()) -> 72941570.29 | R49: =IF('Data Simulation results'!$AB49,'11. Summary of values'!W69,NA()) -> 124608520 | S49: =IF('Data Simulation results'!$AB49,'11. Summary of values'!X69,NA()) -> 137175820 | T49: =IF('Data Simulation results'!$AB49,'11. Summary of values'!Y69,NA()) -> 117410360.4 | U49: =IF('Data Simulation results'!$AB49,'11. Summary of values'!Z69,NA()) -> 120452675.4 | V49: =IF('Data Simulation results'!$AB49,'11. Summary of values'!AA69,NA()) -> 153022264.1 | W49: =IF('Data Simulation results'!$AB49,'11. Summary of values'!AB69,NA()) -> 243434727.1 | X49: =IF('Data Simulation results'!$AB49,'11. Summary of values'!AC69,NA()) -> 270510417.6 | Y49: =IF('Data Simulation results'!$AB49,'11. Summary of values'!AD69,NA()) -> 242356788.5 | Z49: =IF('Data Simulation results'!$AB49,'11. Summary of values'!AE69,NA()) -> 259233208.7 | AA49: =IF('Data Simulation results'!$AB49,'11. Summary of values'!AF69,NA()) -> 302264935.8 | AB49: ='3. Simulation results'!K99 -> TRUE
A50: ='11. Summary of values'!F70 -> Total | B50: =IF('Data Simulation results'!$AB50,'11. Summary of values'!G70,NA()) -> 3063768.32 | C50: =IF('Data Simulation results'!$AB50,'11. Summary of values'!H70,NA()) -> 25175401.02 | D50: =IF('Data Simulation results'!$AB50,'11. Summary of values'!I70,NA()) -> 26471079.05 | E50: =IF('Data Simulation results'!$AB50,'11. Summary of values'!J70,NA()) -> 14409708.17 | F50: =IF('Data Simulation results'!$AB50,'11. Summary of values'!K70,NA()) -> 12219923.01 | G50: =IF('Data Simulation results'!$AB50,'11. Summary of values'!L70,NA()) -> 19229794.45 | H50: =IF('Data Simulation results'!$AB50,'11. Summary of values'!M70,NA()) -> 46483346.49 | I50: =IF('Data Simulation results'!$AB50,'11. Summary of values'!N70,NA()) -> 49232559.11 | J50: =IF('Data Simulation results'!$AB50,'11. Summary of values'!O70,NA()) -> 29789304.93 | K50: =IF('Data Simulation results'!$AB50,'11. Summary of values'!P70,NA()) -> 26116711.8 | L50: =IF('Data Simulation results'!$AB50,'11. Summary of values'!Q70,NA()) -> 37041190.54 | M50: =IF('Data Simulation results'!$AB50,'11. Summary of values'!R70,NA()) -> 77784206.31 | N50: =IF('Data Simulation results'!$AB50,'11. Summary of values'!S70,NA()) -> 83654815.84 | O50: =IF('Data Simulation results'!$AB50,'11. Summary of values'!T70,NA()) -> 58493924.04 | P50: =IF('Data Simulation results'!$AB50,'11. Summary of values'!U70,NA()) -> 56020769.65 | Q50: =IF('Data Simulation results'!$AB50,'11. Summary of values'!V70,NA()) -> 74484667.7 | R50: =IF('Data Simulation results'!$AB50,'11. Summary of values'!W70,NA()) -> 134521724.2 | S50: =IF('Data Simulation results'!$AB50,'11. Summary of values'!X70,NA()) -> 147089024.2 | T50: =IF('Data Simulation results'!$AB50,'11. Summary of values'!Y70,NA()) -> 119804554.7 | U50: =IF('Data Simulation results'!$AB50,'11. Summary of values'!Z70,NA()) -> 120452675.4 | V50: =IF('Data Simulation results'!$AB50,'11. Summary of values'!AA70,NA()) -> 155457276.1 | W50: =IF('Data Simulation results'!$AB50,'11. Summary of values'!AB70,NA()) -> 258979025.5 | X50: =IF('Data Simulation results'!$AB50,'11. Summary of values'!AC70,NA()) -> 286054716 | Y50: =IF('Data Simulation results'!$AB50,'11. Summary of values'!AD70,NA()) -> 246332364.3 | Z50: =IF('Data Simulation results'!$AB50,'11. Summary of values'!AE70,NA()) -> 259233208.7 | AA50: =IF('Data Simulation results'!$AB50,'11. Summary of values'!AF70,NA()) -> 302264935.8 | AB50: ='3. Simulation results'!K101 -> TRUE
A52: Investment
B54: Sum Opex | C54: Sum Capex | D54: Total Investment
A55: ='11. Summary of values'!F64 -> Mini grid | B55: =SUM('11. Summary of values'!G46:AF46) -> 485441929.4 | C55: =SUM('11. Summary of values'!G55:AF55) -> 633749919.3 | D55: =B55+C55 -> 1119191849
A56: ='11. Summary of values'!F65 -> SHS1 | B56: =SUM('11. Summary of values'!G47:AF47) -> 42647446.95 | C56: =SUM('11. Summary of values'!G56:AF56) -> 22859117.8 | D56: =B56+C56 -> 65506564.75
A57: ='11. Summary of values'!F66 -> SHS2 | B57: =SUM('11. Summary of values'!G48:AF48) -> 78489679.06 | C57: =SUM('11. Summary of values'!G57:AF57) -> 49140409.12 | D57: 127630088.2
A58: ='11. Summary of values'!F67 -> SHS1 + SHS2 | B58: =SUM('11. Summary of values'!G49:AF49) -> 121137126 | C58: =SUM('11. Summary of values'!G58:AF58) -> 71999526.92 | D58: 193136652.9
A59: ='11. Summary of values'!F68 -> Mini grid + SHS1 | B59: =SUM('11. Summary of values'!G50:AF50) -> 528089376.3 | C59: =SUM('11. Summary of values'!G59:AF59) -> 656609037.1 | D59: 1184698413
A60: ='11. Summary of values'!F69 -> Mini grid + SHS2 | B60: =SUM('11. Summary of values'!G51:AF51) -> 563931608.4 | C60: =SUM('11. Summary of values'!G60:AF60) -> 682890328.4 | D60: 1246821937
A61: ='11. Summary of values'!F70 -> Total | B61: =SUM('11. Summary of values'!G52:AF52) -> 606579055.4 | C61: =SUM('11. Summary of values'!G61:AF61) -> 705749446.2 | D61: 1312328502
B63: Opex | C63: Capex | D63: Investment
A64: Investment Current scenario | B64: =INDEX($B$55:$B$61,MATCH($B$3,$A$55:$A$61,0)) -> 606579055.4 | C64: =INDEX($C$55:$C$61,MATCH($B$3,$A$55:$A$61,0)) -> 705749446.2 | D64: =INDEX($D$55:$D$61,MATCH($B$3,$A$55:$A$61,0)) -> 1312328502
A67: Diagram construction
C68: Invesment | D68: Capex & Opex | F68: Caption
B69: Minigrid Invesment | C69: =IF($B$3="Mini grid",$D$55,IF(OR($B$3="SHS1",$B$3="SHS2",$B$3="SHS1 + SHS2"),NA(),$D$55)) -> 1119191849 | D69: =IF($B$3="Mini grid",C55,IF(OR($B$3="SHS1",$B$3="SHS2",$B$3="SHS1 + SHS2"),NA(),C55)) -> 633749919.3 | F69: Mini-grid
D70: =IF($B$3="Mini grid",B55,IF(OR($B$3="SHS1",$B$3="SHS2",$B$3="SHS1 + SHS2"),NA(),B55)) -> 485441929.4 | F70: SHS1
B71: SHS1 | C71: =IF($B$3="SHS1",D56,IF(OR($B$3="Mini grid", $B$3="SHS2",$B$3="Mini grid + SHS2"),NA(),D56)) -> 65506564.75 | D71: =IF($B$3="SHS1",C56,IF(OR($B$3="Mini grid", $B$3="SHS2",$B$3="Mini grid + SHS2"),NA(),C56)) -> 22859117.8 | F71: SHS2
D72: =IF($B$3="SHS1",B56,IF(OR($B$3="Mini grid", $B$3="SHS2",$B$3="Mini grid + SHS2"),NA(),B56)) -> 42647446.95
B73: SHS2 | C73: =IF($B$3="SHS2",D57,IF(OR($B$3="SHS1", $B$3="Mini grid",$B$3="Mini grid + SHS1"),NA(),D57)) -> 127630088.2 | D73: =IF($B$3="SHS2",C57,IF(OR($B$3="SHS1", $B$3="Mini grid",$B$3="Mini grid + SHS1"),NA(),C57)) -> 49140409.12
D74: =IF($B$3="SHS2",B57,IF(OR($B$3="SHS1", $B$3="Mini grid",$B$3="Mini grid + SHS1"),NA(),B57)) -> 78489679.06
A76: OPEX
B77: ='11. Summary of values'!G10 -> 2023 | C77: ='11. Summary of values'!H10 -> 2024 | D77: ='11. Summary of values'!I10 -> 2025 | E77: ='11. Summary of values'!J10 -> 2026 | F77: ='11. Summary of values'!K10 -> 2027 | G77: ='11. Summary of values'!L10 -> 2028 | H77: ='11. Summary of values'!M10 -> 2029 | I77: ='11. Summary of values'!N10 -> 2030 | J77: ='11. Summary of values'!O10 -> 2031 | K77: ='11. Summary of values'!P10 -> 2032 | L77: ='11. Summary of values'!Q10 -> 2033 | M77: ='11. Summary of values'!R10 -> 2034 | N77: ='11. Summary of values'!S10 -> 2035 | O77: ='11. Summary of values'!T10 -> 2036 | P77: ='11. Summary of values'!U10 -> 2037 | Q77: ='11. Summary of values'!V10 -> 2038 | R77: ='11. Summary of values'!W10 -> 2039 | S77: ='11. Summary of values'!X10 -> 2040 | T77: ='11. Summary of values'!Y10 -> 2041 | U77: ='11. Summary of values'!Z10 -> 2042 | V77: ='11. Summary of values'!AA10 -> 2043 | W77: ='11. Summary of values'!AB10 -> 2044 | X77: ='11. Summary of values'!AC10 -> 2045 | Y77: ='11. Summary of values'!AD10 -> 2046 | Z77: ='11. Summary of values'!AE10 -> 2047 | AA77: ='11. Summary of values'!AF10 -> 2048
A79: Total Opex
A80: ='11. Summary of values'!F46 -> Mini grid | B80: =IF('Data Simulation results'!$AB80,'11. Summary of values'!G46,NA()) -> 0 | C80: =IF('Data Simulation results'!$AB80,'11. Summary of values'!H46,NA()) -> 3639355 | D80: =IF('Data Simulation results'!$AB80,'11. Summary of values'!I46,NA()) -> 4069252.234 | E80: =IF('Data Simulation results'!$AB80,'11. Summary of values'!J46,NA()) -> 4550807.883 | F80: =IF('Data Simulation results'!$AB80,'11. Summary of values'!K46,NA()) -> 5090327.027 | G80: =IF('Data Simulation results'!$AB80,'11. Summary of values'!L46,NA()) -> 5694894.974 | H80: =IF('Data Simulation results'!$AB80,'11. Summary of values'!M46,NA()) -> 6372474.957 | I80: =IF('Data Simulation results'!$AB80,'11. Summary of values'!N46,NA()) -> 7132018.191 | J80: =IF('Data Simulation results'!$AB80,'11. Summary of values'!O46,NA()) -> 7983587.854 | K80: =IF('Data Simulation results'!$AB80,'11. Summary of values'!P46,NA()) -> 8938498.785 | L80: =IF('Data Simulation results'!$AB80,'11. Summary of values'!Q46,NA()) -> 10009474.89 | M80: =IF('Data Simulation results'!$AB80,'11. Summary of values'!R46,NA()) -> 11210826.54 | N80: =IF('Data Simulation results'!$AB80,'11. Summary of values'!S46,NA()) -> 12558650.47 | O80: =IF('Data Simulation results'!$AB80,'11. Summary of values'!T46,NA()) -> 14071055.12 | P80: =IF('Data Simulation results'!$AB80,'11. Summary of values'!U46,NA()) -> 15768414.68 | Q80: =IF('Data Simulation results'!$AB80,'11. Summary of values'!V46,NA()) -> 17673655.38 | R80: =IF('Data Simulation results'!$AB80,'11. Summary of values'!W46,NA()) -> 19812578.38 | S80: =IF('Data Simulation results'!$AB80,'11. Summary of values'!X46,NA()) -> 22214223.76 | T80: =IF('Data Simulation results'!$AB80,'11. Summary of values'!Y46,NA()) -> 24911281 | U80: =IF('Data Simulation results'!$AB80,'11. Summary of values'!Z46,NA()) -> 27940551.91 | V80: =IF('Data Simulation results'!$AB80,'11. Summary of values'!AA46,NA()) -> 31343472.64 | W80: =IF('Data Simulation results'!$AB80,'11. Summary of values'!AB46,NA()) -> 35166702.54 | X80: =IF('Data Simulation results'!$AB80,'11. Summary of values'!AC46,NA()) -> 39462788.4 | Y80: =IF('Data Simulation results'!$AB80,'11. Summary of values'!AD46,NA()) -> 44290913.63 | Z80: =IF('Data Simulation results'!$AB80,'11. Summary of values'!AE46,NA()) -> 49717743.65 | AA80: =IF('Data Simulation results'!$AB80,'11. Summary of values'!AF46,NA()) -> 55818379.48 | AB80: ='3. Simulation results'!K134 -> TRUE
A81: ='11. Summary of values'!F47 -> SHS1 | B81: =IF('Data Simulation results'!$AB81,'11. Summary of values'!G47,NA()) -> 0 | C81: =IF('Data Simulation results'!$AB81,'11. Summary of values'!H47,NA()) -> 829200 | D81: =IF('Data Simulation results'!$AB81,'11. Summary of values'!I47,NA()) -> 912120 | E81: =IF('Data Simulation results'!$AB81,'11. Summary of values'!J47,NA()) -> 303613.2 | F81: =IF('Data Simulation results'!$AB81,'11. Summary of values'!K47,NA()) -> 0 | G81: =IF('Data Simulation results'!$AB81,'11. Summary of values'!L47,NA()) -> 0 | H81: =IF('Data Simulation results'!$AB81,'11. Summary of values'!M47,NA()) -> 2097270.542 | I81: =IF('Data Simulation results'!$AB81,'11. Summary of values'!N47,NA()) -> 2306997.597 | J81: =IF('Data Simulation results'!$AB81,'11. Summary of values'!O47,NA()) -> 820799.6425 | K81: =IF('Data Simulation results'!$AB81,'11. Summary of values'!P47,NA()) -> 0 | L81: =IF('Data Simulation results'!$AB81,'11. Summary of values'!Q47,NA()) -> 0 | M81: =IF('Data Simulation results'!$AB81,'11. Summary of values'!R47,NA()) -> 3307955.384 | N81: =IF('Data Simulation results'!$AB81,'11. Summary of values'!S47,NA()) -> 3638750.922 | O81: =IF('Data Simulation results'!$AB81,'11. Summary of values'!T47,NA()) -> 1300815.794 | P81: =IF('Data Simulation results'!$AB81,'11. Summary of values'!U47,NA()) -> 0 | Q81: =IF('Data Simulation results'!$AB81,'11. Summary of values'!V47,NA()) -> 0 | R81: =IF('Data Simulation results'!$AB81,'11. Summary of values'!W47,NA()) -> 5227097.06 | S81: =IF('Data Simulation results'!$AB81,'11. Summary of values'!X47,NA()) -> 3879652.76 | T81: =IF('Data Simulation results'!$AB81,'11. Summary of values'!Y47,NA()) -> 1499964.602 | U81: =IF('Data Simulation results'!$AB81,'11. Summary of values'!Z47,NA()) -> 0 | V81: =IF('Data Simulation results'!$AB81,'11. Summary of values'!AA47,NA()) -> 0 | W81: =IF('Data Simulation results'!$AB81,'11. Summary of values'!AB47,NA()) -> 8421714.742 | X81: =IF('Data Simulation results'!$AB81,'11. Summary of values'!AC47,NA()) -> 5878206.67 | Y81: =IF('Data Simulation results'!$AB81,'11. Summary of values'!AD47,NA()) -> 2223288.037 | Z81: =IF('Data Simulation results'!$AB81,'11. Summary of values'!AE47,NA()) -> 0 | AA81: =IF('Data Simulation results'!$AB81,'11. Summary of values'!AF47,NA()) -> 0 | AB81: ='3. Simulation results'!K136 -> TRUE
A82: ='11. Summary of values'!F48 -> SHS2 | B82: =IF('Data Simulation results'!$AB82,'11. Summary of values'!G48,NA()) -> 0 | C82: =IF('Data Simulation results'!$AB82,'11. Summary of values'!H48,NA()) -> 793500 | D82: =IF('Data Simulation results'!$AB82,'11. Summary of values'!I48,NA()) -> 872850 | E82: =IF('Data Simulation results'!$AB82,'11. Summary of values'!J48,NA()) -> 290400 | F82: =IF('Data Simulation results'!$AB82,'11. Summary of values'!K48,NA()) -> 0 | G82: =IF('Data Simulation results'!$AB82,'11. Summary of values'!L48,NA()) -> 0 | H82: =IF('Data Simulation results'!$AB82,'11. Summary of values'!M48,NA()) -> 3481117.365 | I82: =IF('Data Simulation results'!$AB82,'11. Summary of values'!N48,NA()) -> 3829229.102 | J82: =IF('Data Simulation results'!$AB82,'11. Summary of values'!O48,NA()) -> 1383589.141 | K82: =IF('Data Simulation results'!$AB82,'11. Summary of values'!P48,NA()) -> 0 | L82: =IF('Data Simulation results'!$AB82,'11. Summary of values'!Q48,NA()) -> 0 | M82: =IF('Data Simulation results'!$AB82,'11. Summary of values'!R48,NA()) -> 5431296.711 | N82: =IF('Data Simulation results'!$AB82,'11. Summary of values'!S48,NA()) -> 5974426.383 | O82: =IF('Data Simulation results'!$AB82,'11. Summary of values'!T48,NA()) -> 2143546.581 | P82: =IF('Data Simulation results'!$AB82,'11. Summary of values'!U48,NA()) -> 0 | Q82: =IF('Data Simulation results'!$AB82,'11. Summary of values'!V48,NA()) -> 0 | R82: =IF('Data Simulation results'!$AB82,'11. Summary of values'!W48,NA()) -> 8462060.479 | S82: =IF('Data Simulation results'!$AB82,'11. Summary of values'!X48,NA()) -> 9308266.527 | T82: =IF('Data Simulation results'!$AB82,'11. Summary of values'!Y48,NA()) -> 3646800.311 | U82: =IF('Data Simulation results'!$AB82,'11. Summary of values'!Z48,NA()) -> 0 | V82: =IF('Data Simulation results'!$AB82,'11. Summary of values'!AA48,NA()) -> 0 | W82: =IF('Data Simulation results'!$AB82,'11. Summary of values'!AB48,NA()) -> 13724099.9 | X82: =IF('Data Simulation results'!$AB82,'11. Summary of values'!AC48,NA()) -> 14349252.83 | Y82: =IF('Data Simulation results'!$AB82,'11. Summary of values'!AD48,NA()) -> 4799243.731 | Z82: =IF('Data Simulation results'!$AB82,'11. Summary of values'!AE48,NA()) -> 0 | AA82: =IF('Data Simulation results'!$AB82,'11. Summary of values'!AF48,NA()) -> 0 | AB82: ='3. Simulation results'!K138 -> TRUE
A83: ='11. Summary of values'!F49 -> SHS1 + SHS2 | B83: =IF('Data Simulation results'!$AB83,'11. Summary of values'!G49,NA()) -> 0 | C83: =IF('Data Simulation results'!$AB83,'11. Summary of values'!H49,NA()) -> 1622700 | D83: =IF('Data Simulation results'!$AB83,'11. Summary of values'!I49,NA()) -> 1784970 | E83: =IF('Data Simulation results'!$AB83,'11. Summary of values'!J49,NA()) -> 594013.2 | F83: =IF('Data Simulation results'!$AB83,'11. Summary of values'!K49,NA()) -> 0 | G83: =IF('Data Simulation results'!$AB83,'11. Summary of values'!L49,NA()) -> 0 | H83: =IF('Data Simulation results'!$AB83,'11. Summary of values'!M49,NA()) -> 5578387.907 | I83: =IF('Data Simulation results'!$AB83,'11. Summary of values'!N49,NA()) -> 6136226.698 | J83: =IF('Data Simulation results'!$AB83,'11. Summary of values'!O49,NA()) -> 2204388.784 | K83: =IF('Data Simulation results'!$AB83,'11. Summary of values'!P49,NA()) -> 0 | L83: =IF('Data Simulation results'!$AB83,'11. Summary of values'!Q49,NA()) -> 0 | M83: =IF('Data Simulation results'!$AB83,'11. Summary of values'!R49,NA()) -> 8739252.095 | N83: =IF('Data Simulation results'!$AB83,'11. Summary of values'!S49,NA()) -> 9613177.305 | O83: =IF('Data Simulation results'!$AB83,'11. Summary of values'!T49,NA()) -> 3444362.375 | P83: =IF('Data Simulation results'!$AB83,'11. Summary of values'!U49,NA()) -> 0 | Q83: =IF('Data Simulation results'!$AB83,'11. Summary of values'!V49,NA()) -> 0 | R83: =IF('Data Simulation results'!$AB83,'11. Summary of values'!W49,NA()) -> 13689157.54 | S83: =IF('Data Simulation results'!$AB83,'11. Summary of values'!X49,NA()) -> 13187919.29 | T83: =IF('Data Simulation results'!$AB83,'11. Summary of values'!Y49,NA()) -> 5146764.912 | U83: =IF('Data Simulation results'!$AB83,'11. Summary of values'!Z49,NA()) -> 0 | V83: =IF('Data Simulation results'!$AB83,'11. Summary of values'!AA49,NA()) -> 0 | W83: =IF('Data Simulation results'!$AB83,'11. Summary of values'!AB49,NA()) -> 22145814.64 | X83: =IF('Data Simulation results'!$AB83,'11. Summary of values'!AC49,NA()) -> 20227459.5 | Y83: =IF('Data Simulation results'!$AB83,'11. Summary of values'!AD49,NA()) -> 7022531.769 | Z83: =IF('Data Simulation results'!$AB83,'11. Summary of values'!AE49,NA()) -> 0 | AA83: =IF('Data Simulation results'!$AB83,'11. Summary of values'!AF49,NA()) -> 0 | AB83: ='3. Simulation results'!K140 -> TRUE
A84: ='11. Summary of values'!F50 -> Mini grid + SHS1 | B84: =IF('Data Simulation results'!$AB84,'11. Summary of values'!G50,NA()) -> 0 | C84: =IF('Data Simulation results'!$AB84,'11. Summary of values'!H50,NA()) -> 4468555 | D84: =IF('Data Simulation results'!$AB84,'11. Summary of values'!I50,NA()) -> 4981372.234 | E84: =IF('Data Simulation results'!$AB84,'11. Summary of values'!J50,NA()) -> 4854421.083 | F84: =IF('Data Simulation results'!$AB84,'11. Summary of values'!K50,NA()) -> 5090327.027 | G84: =IF('Data Simulation results'!$AB84,'11. Summary of values'!L50,NA()) -> 5694894.974 | H84: =IF('Data Simulation results'!$AB84,'11. Summary of values'!M50,NA()) -> 8469745.5 | I84: =IF('Data Simulation results'!$AB84,'11. Summary of values'!N50,NA()) -> 9439015.788 | J84: =IF('Data Simulation results'!$AB84,'11. Summary of values'!O50,NA()) -> 8804387.496 | K84: =IF('Data Simulation results'!$AB84,'11. Summary of values'!P50,NA()) -> 8938498.785 | L84: =IF('Data Simulation results'!$AB84,'11. Summary of values'!Q50,NA()) -> 10009474.89 | M84: =IF('Data Simulation results'!$AB84,'11. Summary of values'!R50,NA()) -> 14518781.92 | N84: =IF('Data Simulation results'!$AB84,'11. Summary of values'!S50,NA()) -> 16197401.39 | O84: =IF('Data Simulation results'!$AB84,'11. Summary of values'!T50,NA()) -> 15371870.92 | P84: =IF('Data Simulation results'!$AB84,'11. Summary of values'!U50,NA()) -> 15768414.68 | Q84: =IF('Data Simulation results'!$AB84,'11. Summary of values'!V50,NA()) -> 17673655.38 | R84: =IF('Data Simulation results'!$AB84,'11. Summary of values'!W50,NA()) -> 25039675.44 | S84: =IF('Data Simulation results'!$AB84,'11. Summary of values'!X50,NA()) -> 26093876.52 | T84: =IF('Data Simulation results'!$AB84,'11. Summary of values'!Y50,NA()) -> 26411245.61 | U84: =IF('Data Simulation results'!$AB84,'11. Summary of values'!Z50,NA()) -> 27940551.91 | V84: =IF('Data Simulation results'!$AB84,'11. Summary of values'!AA50,NA()) -> 31343472.64 | W84: =IF('Data Simulation results'!$AB84,'11. Summary of values'!AB50,NA()) -> 43588417.28 | X84: =IF('Data Simulation results'!$AB84,'11. Summary of values'!AC50,NA()) -> 45340995.07 | Y84: =IF('Data Simulation results'!$AB84,'11. Summary of values'!AD50,NA()) -> 46514201.67 | Z84: =IF('Data Simulation results'!$AB84,'11. Summary of values'!AE50,NA()) -> 49717743.65 | AA84: =IF('Data Simulation results'!$AB84,'11. Summary of values'!AF50,NA()) -> 55818379.48 | AB84: ='3. Simulation results'!K142 -> TRUE
A85: ='11. Summary of values'!F51 -> Mini grid + SHS2 | B85: =IF('Data Simulation results'!$AB85,'11. Summary of values'!G51,NA()) -> 0 | C85: =IF('Data Simulation results'!$AB85,'11. Summary of values'!H51,NA()) -> 4432855 | D85: =IF('Data Simulation results'!$AB85,'11. Summary of values'!I51,NA()) -> 4942102.234 | E85: =IF('Data Simulation results'!$AB85,'11. Summary of values'!J51,NA()) -> 4841207.883 | F85: =IF('Data Simulation results'!$AB85,'11. Summary of values'!K51,NA()) -> 5090327.027 | G85: =IF('Data Simulation results'!$AB85,'11. Summary of values'!L51,NA()) -> 5694894.974 | H85: =IF('Data Simulation results'!$AB85,'11. Summary of values'!M51,NA()) -> 9853592.322 | I85: =IF('Data Simulation results'!$AB85,'11. Summary of values'!N51,NA()) -> 10961247.29 | J85: =IF('Data Simulation results'!$AB85,'11. Summary of values'!O51,NA()) -> 9367176.995 | K85: =IF('Data Simulation results'!$AB85,'11. Summary of values'!P51,NA()) -> 8938498.785 | L85: =IF('Data Simulation results'!$AB85,'11. Summary of values'!Q51,NA()) -> 10009474.89 | M85: =IF('Data Simulation results'!$AB85,'11. Summary of values'!R51,NA()) -> 16642123.25 | N85: =IF('Data Simulation results'!$AB85,'11. Summary of values'!S51,NA()) -> 18533076.85 | O85: =IF('Data Simulation results'!$AB85,'11. Summary of values'!T51,NA()) -> 16214601.7 | P85: =IF('Data Simulation results'!$AB85,'11. Summary of values'!U51,NA()) -> 15768414.68 | Q85: =IF('Data Simulation results'!$AB85,'11. Summary of values'!V51,NA()) -> 17673655.38 | R85: =IF('Data Simulation results'!$AB85,'11. Summary of values'!W51,NA()) -> 28274638.86 | S85: =IF('Data Simulation results'!$AB85,'11. Summary of values'!X51,NA()) -> 31522490.28 | T85: =IF('Data Simulation results'!$AB85,'11. Summary of values'!Y51,NA()) -> 28558081.31 | U85: =IF('Data Simulation results'!$AB85,'11. Summary of values'!Z51,NA()) -> 27940551.91 | V85: =IF('Data Simulation results'!$AB85,'11. Summary of values'!AA51,NA()) -> 31343472.64 | W85: =IF('Data Simulation results'!$AB85,'11. Summary of values'!AB51,NA()) -> 48890802.44 | X85: =IF('Data Simulation results'!$AB85,'11. Summary of values'!AC51,NA()) -> 53812041.22 | Y85: =IF('Data Simulation results'!$AB85,'11. Summary of values'!AD51,NA()) -> 49090157.36 | Z85: =IF('Data Simulation results'!$AB85,'11. Summary of values'!AE51,NA()) -> 49717743.65 | AA85: =IF('Data Simulation results'!$AB85,'11. Summary of values'!AF51,NA()) -> 55818379.48 | AB85: ='3. Simulation results'!K144 -> TRUE
A86: ='11. Summary of values'!F52 -> Total | B86: =IF('Data Simulation results'!$AB86,'11. Summary of values'!G52,NA()) -> 0 | C86: =IF('Data Simulation results'!$AB86,'11. Summary of values'!H52,NA()) -> 5262055 | D86: =IF('Data Simulation results'!$AB86,'11. Summary of values'!I52,NA()) -> 5854222.234 | E86: =IF('Data Simulation results'!$AB86,'11. Summary of values'!J52,NA()) -> 5144821.083 | F86: =IF('Data Simulation results'!$AB86,'11. Summary of values'!K52,NA()) -> 5090327.027 | G86: =IF('Data Simulation results'!$AB86,'11. Summary of values'!L52,NA()) -> 5694894.974 | H86: =IF('Data Simulation results'!$AB86,'11. Summary of values'!M52,NA()) -> 11950862.86 | I86: =IF('Data Simulation results'!$AB86,'11. Summary of values'!N52,NA()) -> 13268244.89 | J86: =IF('Data Simulation results'!$AB86,'11. Summary of values'!O52,NA()) -> 10187976.64 | K86: =IF('Data Simulation results'!$AB86,'11. Summary of values'!P52,NA()) -> 8938498.785 | L86: =IF('Data Simulation results'!$AB86,'11. Summary of values'!Q52,NA()) -> 10009474.89 | M86: =IF('Data Simulation results'!$AB86,'11. Summary of values'!R52,NA()) -> 19950078.63 | N86: =IF('Data Simulation results'!$AB86,'11. Summary of values'!S52,NA()) -> 22171827.77 | O86: =IF('Data Simulation results'!$AB86,'11. Summary of values'!T52,NA()) -> 17515417.5 | P86: =IF('Data Simulation results'!$AB86,'11. Summary of values'!U52,NA()) -> 15768414.68 | Q86: =IF('Data Simulation results'!$AB86,'11. Summary of values'!V52,NA()) -> 17673655.38 | R86: =IF('Data Simulation results'!$AB86,'11. Summary of values'!W52,NA()) -> 33501735.92 | S86: =IF('Data Simulation results'!$AB86,'11. Summary of values'!X52,NA()) -> 35402143.04 | T86: =IF('Data Simulation results'!$AB86,'11. Summary of values'!Y52,NA()) -> 30058045.92 | U86: =IF('Data Simulation results'!$AB86,'11. Summary of values'!Z52,NA()) -> 27940551.91 | V86: =IF('Data Simulation results'!$AB86,'11. Summary of values'!AA52,NA()) -> 31343472.64 | W86: =IF('Data Simulation results'!$AB86,'11. Summary of values'!AB52,NA()) -> 57312517.18 | X86: =IF('Data Simulation results'!$AB86,'11. Summary of values'!AC52,NA()) -> 59690247.89 | Y86: =IF('Data Simulation results'!$AB86,'11. Summary of values'!AD52,NA()) -> 51313445.4 | Z86: =IF('Data Simulation results'!$AB86,'11. Summary of values'!AE52,NA()) -> 49717743.65 | AA86: =IF('Data Simulation results'!$AB86,'11. Summary of values'!AF52,NA()) -> 55818379.48 | AB86: ='3. Simulation results'!K146 -> TRUE
A88: Total Opex- Not changing values
A89: ='11. Summary of values'!F55 -> Mini grid | B89: ='11. Summary of values'!G46 -> 0 | C89: ='11. Summary of values'!H46 -> 3639355 | D89: ='11. Summary of values'!I46 -> 4069252.234 | E89: ='11. Summary of values'!J46 -> 4550807.883 | F89: ='11. Summary of values'!K46 -> 5090327.027 | G89: ='11. Summary of values'!L46 -> 5694894.974 | H89: ='11. Summary of values'!M46 -> 6372474.957 | I89: ='11. Summary of values'!N46 -> 7132018.191 | J89: ='11. Summary of values'!O46 -> 7983587.854 | K89: ='11. Summary of values'!P46 -> 8938498.785 | L89: ='11. Summary of values'!Q46 -> 10009474.89 | M89: ='11. Summary of values'!R46 -> 11210826.54 | N89: ='11. Summary of values'!S46 -> 12558650.47 | O89: ='11. Summary of values'!T46 -> 14071055.12 | P89: ='11. Summary of values'!U46 -> 15768414.68 | Q89: ='11. Summary of values'!V46 -> 17673655.38 | R89: ='11. Summary of values'!W46 -> 19812578.38 | S89: ='11. Summary of values'!X46 -> 22214223.76 | T89: ='11. Summary of values'!Y46 -> 24911281 | U89: ='11. Summary of values'!Z46 -> 27940551.91 | V89: ='11. Summary of values'!AA46 -> 31343472.64 | W89: ='11. Summary of values'!AB46 -> 35166702.54 | X89: ='11. Summary of values'!AC46 -> 39462788.4 | Y89: ='11. Summary of values'!AD46 -> 44290913.63 | Z89: ='11. Summary of values'!AE46 -> 49717743.65 | AA89: ='11. Summary of values'!AF46 -> 55818379.48
A90: ='11. Summary of values'!F56 -> SHS1 | B90: ='11. Summary of values'!G47 -> 0 | C90: ='11. Summary of values'!H47 -> 829200 | D90: ='11. Summary of values'!I47 -> 912120 | E90: ='11. Summary of values'!J47 -> 303613.2 | F90: ='11. Summary of values'!K47 -> 0 | G90: ='11. Summary of values'!L47 -> 0 | H90: ='11. Summary of values'!M47 -> 2097270.542 | I90: ='11. Summary of values'!N47 -> 2306997.597 | J90: ='11. Summary of values'!O47 -> 820799.6425 | K90: ='11. Summary of values'!P47 -> 0 | L90: ='11. Summary of values'!Q47 -> 0 | M90: ='11. Summary of values'!R47 -> 3307955.384 | N90: ='11. Summary of values'!S47 -> 3638750.922 | O90: ='11. Summary of values'!T47 -> 1300815.794 | P90: ='11. Summary of values'!U47 -> 0 | Q90: ='11. Summary of values'!V47 -> 0 | R90: ='11. Summary of values'!W47 -> 5227097.06 | S90: ='11. Summary of values'!X47 -> 3879652.76 | T90: ='11. Summary of values'!Y47 -> 1499964.602 | U90: ='11. Summary of values'!Z47 -> 0 | V90: ='11. Summary of values'!AA47 -> 0 | W90: ='11. Summary of values'!AB47 -> 8421714.742 | X90: ='11. Summary of values'!AC47 -> 5878206.67 | Y90: ='11. Summary of values'!AD47 -> 2223288.037 | Z90: ='11. Summary of values'!AE47 -> 0 | AA90: ='11. Summary of values'!AF47 -> 0
A91: ='11. Summary of values'!F57 -> SHS2 | B91: ='11. Summary of values'!G48 -> 0 | C91: ='11. Summary of values'!H48 -> 793500 | D91: ='11. Summary of values'!I48 -> 872850 | E91: ='11. Summary of values'!J48 -> 290400 | F91: ='11. Summary of values'!K48 -> 0 | G91: ='11. Summary of values'!L48 -> 0 | H91: ='11. Summary of values'!M48 -> 3481117.365 | I91: ='11. Summary of values'!N48 -> 3829229.102 | J91: ='11. Summary of values'!O48 -> 1383589.141 | K91: ='11. Summary of values'!P48 -> 0 | L91: ='11. Summary of values'!Q48 -> 0 | M91: ='11. Summary of values'!R48 -> 5431296.711 | N91: ='11. Summary of values'!S48 -> 5974426.383 | O91: ='11. Summary of values'!T48 -> 2143546.581 | P91: ='11. Summary of values'!U48 -> 0 | Q91: ='11. Summary of values'!V48 -> 0 | R91: ='11. Summary of values'!W48 -> 8462060.479 | S91: ='11. Summary of values'!X48 -> 9308266.527 | T91: ='11. Summary of values'!Y48 -> 3646800.311 | U91: ='11. Summary of values'!Z48 -> 0 | V91: ='11. Summary of values'!AA48 -> 0 | W91: ='11. Summary of values'!AB48 -> 13724099.9 | X91: ='11. Summary of values'!AC48 -> 14349252.83 | Y91: ='11. Summary of values'!AD48 -> 4799243.731 | Z91: ='11. Summary of values'!AE48 -> 0 | AA91: ='11. Summary of values'!AF48 -> 0
A92: ='11. Summary of values'!F58 -> SHS1 + SHS2 | B92: ='11. Summary of values'!G49 -> 0 | C92: ='11. Summary of values'!H49 -> 1622700 | D92: ='11. Summary of values'!I49 -> 1784970 | E92: ='11. Summary of values'!J49 -> 594013.2 | F92: ='11. Summary of values'!K49 -> 0 | G92: ='11. Summary of values'!L49 -> 0 | H92: ='11. Summary of values'!M49 -> 5578387.907 | I92: ='11. Summary of values'!N49 -> 6136226.698 | J92: ='11. Summary of values'!O49 -> 2204388.784 | K92: ='11. Summary of values'!P49 -> 0 | L92: ='11. Summary of values'!Q49 -> 0 | M92: ='11. Summary of values'!R49 -> 8739252.095 | N92: ='11. Summary of values'!S49 -> 9613177.305 | O92: ='11. Summary of values'!T49 -> 3444362.375 | P92: ='11. Summary of values'!U49 -> 0 | Q92: ='11. Summary of values'!V49 -> 0 | R92: ='11. Summary of values'!W49 -> 13689157.54 | S92: ='11. Summary of values'!X49 -> 13187919.29 | T92: ='11. Summary of values'!Y49 -> 5146764.912 | U92: ='11. Summary of values'!Z49 -> 0 | V92: ='11. Summary of values'!AA49 -> 0 | W92: ='11. Summary of values'!AB49 -> 22145814.64 | X92: ='11. Summary of values'!AC49 -> 20227459.5 | Y92: ='11. Summary of values'!AD49 -> 7022531.769 | Z92: ='11. Summary of values'!AE49 -> 0 | AA92: ='11. Summary of values'!AF49 -> 0
A93: ='11. Summary of values'!F59 -> Mini grid + SHS1 | B93: ='11. Summary of values'!G50 -> 0 | C93: ='11. Summary of values'!H50 -> 4468555 | D93: ='11. Summary of values'!I50 -> 4981372.234 | E93: ='11. Summary of values'!J50 -> 4854421.083 | F93: ='11. Summary of values'!K50 -> 5090327.027 | G93: ='11. Summary of values'!L50 -> 5694894.974 | H93: ='11. Summary of values'!M50 -> 8469745.5 | I93: ='11. Summary of values'!N50 -> 9439015.788 | J93: ='11. Summary of values'!O50 -> 8804387.496 | K93: ='11. Summary of values'!P50 -> 8938498.785 | L93: ='11. Summary of values'!Q50 -> 10009474.89 | M93: ='11. Summary of values'!R50 -> 14518781.92 | N93: ='11. Summary of values'!S50 -> 16197401.39 | O93: ='11. Summary of values'!T50 -> 15371870.92 | P93: ='11. Summary of values'!U50 -> 15768414.68 | Q93: ='11. Summary of values'!V50 -> 17673655.38 | R93: ='11. Summary of values'!W50 -> 25039675.44 | S93: ='11. Summary of values'!X50 -> 26093876.52 | T93: ='11. Summary of values'!Y50 -> 26411245.61 | U93: ='11. Summary of values'!Z50 -> 27940551.91 | V93: ='11. Summary of values'!AA50 -> 31343472.64 | W93: ='11. Summary of values'!AB50 -> 43588417.28 | X93: ='11. Summary of values'!AC50 -> 45340995.07 | Y93: ='11. Summary of values'!AD50 -> 46514201.67 | Z93: ='11. Summary of values'!AE50 -> 49717743.65 | AA93: ='11. Summary of values'!AF50 -> 55818379.48
A94: ='11. Summary of values'!F60 -> Mini grid + SHS2 | B94: ='11. Summary of values'!G51 -> 0 | C94: ='11. Summary of values'!H51 -> 4432855 | D94: ='11. Summary of values'!I51 -> 4942102.234 | E94: ='11. Summary of values'!J51 -> 4841207.883 | F94: ='11. Summary of values'!K51 -> 5090327.027 | G94: ='11. Summary of values'!L51 -> 5694894.974 | H94: ='11. Summary of values'!M51 -> 9853592.322 | I94: ='11. Summary of values'!N51 -> 10961247.29 | J94: ='11. Summary of values'!O51 -> 9367176.995 | K94: ='11. Summary of values'!P51 -> 8938498.785 | L94: ='11. Summary of values'!Q51 -> 10009474.89 | M94: ='11. Summary of values'!R51 -> 16642123.25 | N94: ='11. Summary of values'!S51 -> 18533076.85 | O94: ='11. Summary of values'!T51 -> 16214601.7 | P94: ='11. Summary of values'!U51 -> 15768414.68 | Q94: ='11. Summary of values'!V51 -> 17673655.38 | R94: ='11. Summary of values'!W51 -> 28274638.86 | S94: ='11. Summary of values'!X51 -> 31522490.28 | T94: ='11. Summary of values'!Y51 -> 28558081.31 | U94: ='11. Summary of values'!Z51 -> 27940551.91 | V94: ='11. Summary of values'!AA51 -> 31343472.64 | W94: ='11. Summary of values'!AB51 -> 48890802.44 | X94: ='11. Summary of values'!AC51 -> 53812041.22 | Y94: ='11. Summary of values'!AD51 -> 49090157.36 | Z94: ='11. Summary of values'!AE51 -> 49717743.65 | AA94: ='11. Summary of values'!AF51 -> 55818379.48
A95: ='11. Summary of values'!F61 -> Total | B95: ='11. Summary of values'!G52 -> 0 | C95: ='11. Summary of values'!H52 -> 5262055 | D95: ='11. Summary of values'!I52 -> 5854222.234 | E95: ='11. Summary of values'!J52 -> 5144821.083 | F95: ='11. Summary of values'!K52 -> 5090327.027 | G95: ='11. Summary of values'!L52 -> 5694894.974 | H95: ='11. Summary of values'!M52 -> 11950862.86 | I95: ='11. Summary of values'!N52 -> 13268244.89 | J95: ='11. Summary of values'!O52 -> 10187976.64 | K95: ='11. Summary of values'!P52 -> 8938498.785 | L95: ='11. Summary of values'!Q52 -> 10009474.89 | M95: ='11. Summary of values'!R52 -> 19950078.63 | N95: ='11. Summary of values'!S52 -> 22171827.77 | O95: ='11. Summary of values'!T52 -> 17515417.5 | P95: ='11. Summary of values'!U52 -> 15768414.68 | Q95: ='11. Summary of values'!V52 -> 17673655.38 | R95: ='11. Summary of values'!W52 -> 33501735.92 | S95: ='11. Summary of values'!X52 -> 35402143.04 | T95: ='11. Summary of values'!Y52 -> 30058045.92 | U95: ='11. Summary of values'!Z52 -> 27940551.91 | V95: ='11. Summary of values'!AA52 -> 31343472.64 | W95: ='11. Summary of values'!AB52 -> 57312517.18 | X95: ='11. Summary of values'!AC52 -> 59690247.89 | Y95: ='11. Summary of values'!AD52 -> 51313445.4 | Z95: ='11. Summary of values'!AE52 -> 49717743.65 | AA95: ='11. Summary of values'!AF52 -> 55818379.48
A97: Total PAYG cost -SHS
A98: SHS1 | B98: ='Data SHS1 25 years'!G55 -> 0 | C98: ='Data SHS1 25 years'!H55 -> 763200 | D98: ='Data SHS1 25 years'!I55 -> 839520 | E98: ='Data SHS1 25 years'!J55 -> 223753.2 | F98: ='Data SHS1 25 years'!K55 -> 0 | G98: ='Data SHS1 25 years'!L55 -> 0 | H98: ='Data SHS1 25 years'!M55 -> 1884683.222 | I98: ='Data SHS1 25 years'!N55 -> 2073151.545 | J98: ='Data SHS1 25 years'!O55 -> 563568.9853 | K98: ='Data SHS1 25 years'!P55 -> 0 | L98: ='Data SHS1 25 years'!Q55 -> 0 | M98: ='Data SHS1 25 years'!R55 -> 2965581.379 | N98: ='Data SHS1 25 years'!S55 -> 3262139.517 | O98: ='Data SHS1 25 years'!T55 -> 886543.2479 | P98: ='Data SHS1 25 years'!U55 -> 0 | Q98: ='Data SHS1 25 years'!V55 -> 0 | R98: ='Data SHS1 25 years'!W55 -> 4675700.301 | S98: ='Data SHS1 25 years'!X55 -> 3273116.326 | T98: ='Data SHS1 25 years'!Y55 -> 832774.5242 | U98: ='Data SHS1 25 years'!Z55 -> 0 | V98: ='Data SHS1 25 years'!AA55 -> 0 | W98: ='Data SHS1 25 years'!AB55 -> 7533684.749 | X98: ='Data SHS1 25 years'!AC55 -> 4901373.678 | Y98: ='Data SHS1 25 years'!AD55 -> 1148771.745 | Z98: ='Data SHS1 25 years'!AE55 -> 0 | AA98: ='Data SHS1 25 years'!AF55 -> 0
A99: SHS2 | B99: ='Data SHS2 25 years'!G53 -> 0 | C99: ='Data SHS2 25 years'!H53 -> 727500 | D99: ='Data SHS2 25 years'!I53 -> 800250 | E99: ='Data SHS2 25 years'!J53 -> 210540 | F99: ='Data SHS2 25 years'!K53 -> 0 | G99: ='Data SHS2 25 years'!L53 -> 0 | H99: ='Data SHS2 25 years'!M53 -> 1828734.105 | I99: ='Data SHS2 25 years'!N53 -> 2011607.516 | J99: ='Data SHS2 25 years'!O53 -> 699589.4389 | K99: ='Data SHS2 25 years'!P53 -> 0 | L99: ='Data SHS2 25 years'!Q53 -> 0 | M99: ='Data SHS2 25 years'!R53 -> 2886835.358 | N99: ='Data SHS2 25 years'!S53 -> 3175518.894 | O99: ='Data SHS2 25 years'!T53 -> 1098449.932 | P99: ='Data SHS2 25 years'!U53 -> 0 | Q99: ='Data SHS2 25 years'!V53 -> 0 | R99: ='Data SHS2 25 years'!W53 -> 4552156.193 | S99: ='Data SHS2 25 years'!X53 -> 5007371.812 | T99: ='Data SHS2 25 years'!Y53 -> 1963661.706 | U99: ='Data SHS2 25 years'!Z53 -> 0 | V99: ='Data SHS2 25 years'!AA53 -> 0 | W99: ='Data SHS2 25 years'!AB53 -> 7351475.57 | X99: ='Data SHS2 25 years'!AC53 -> 7737970.442 | Y99: ='Data SHS2 25 years'!AD53 -> 2330298.342 | Z99: ='Data SHS2 25 years'!AE53 -> 0 | AA99: ='Data SHS2 25 years'!AF53 -> 0
A100: SHS1 + SHS2 | B100: =B98+B99 -> 0 | C100: =C98+C99 -> 1490700 | D100: 1639770 | E100: 434293.2 | F100: 0 | G100: 0 | H100: 3713417.327 | I100: 4084759.06 | J100: 1263158.424 | K100: 0 | L100: 0 | M100: 5852416.737 | N100: 6437658.411 | O100: 1984993.18 | P100: 0 | Q100: 0 | R100: 9227856.494 | S100: 8280488.138 | T100: 2796436.23 | U100: 0 | V100: 0 | W100: 14885160.32 | X100: 12639344.12 | Y100: 3479070.088 | Z100: 0 | AA100: 0
A101: Mini grid + SHS1 | B101: =B98 -> 0 | C101: =C98 -> 763200 | D101: 839520 | E101: 223753.2 | F101: 0 | G101: 0 | H101: 1884683.222 | I101: 2073151.545 | J101: 563568.9853 | K101: 0 | L101: 0 | M101: 2965581.379 | N101: 3262139.517 | O101: 886543.2479 | P101: 0 | Q101: 0 | R101: 4675700.301 | S101: 3273116.326 | T101: 832774.5242 | U101: 0 | V101: 0 | W101: 7533684.749 | X101: 4901373.678 | Y101: 1148771.745 | Z101: 0 | AA101: 0
A102: Mini grid + SHS2 | B102: =B99 -> 0 | C102: =C99 -> 727500 | D102: 800250 | E102: 210540 | F102: 0 | G102: 0 | H102: 1828734.105 | I102: 2011607.516 | J102: 699589.4389 | K102: 0 | L102: 0 | M102: 2886835.358 | N102: 3175518.894 | O102: 1098449.932 | P102: 0 | Q102: 0 | R102: 4552156.193 | S102: 5007371.812 | T102: 1963661.706 | U102: 0 | V102: 0 | W102: 7351475.57 | X102: 7737970.442 | Y102: 2330298.342 | Z102: 0 | AA102: 0
A103: Total | B103: =SUM(B98:B99) -> 0 | C103: 1490700 | D103: 1639770 | E103: 434293.2 | F103: 0 | G103: 0 | H103: 3713417.327 | I103: 4084759.06 | J103: 1263158.424 | K103: 0 | L103: 0 | M103: 5852416.737 | N103: 6437658.411 | O103: 1984993.18 | P103: 0 | Q103: 0 | R103: 9227856.494 | S103: 8280488.138 | T103: 2796436.23 | U103: 0 | V103: 0 | W103: 14885160.32 | X103: 12639344.12 | Y103: 3479070.088 | Z103: 0 | AA103: 0
A105: Other operationnal cost- SHS
A106: SHS1 | B106: ='Data SHS1 25 years'!G62 -> 0 | C106: ='Data SHS1 25 years'!H62 -> 66000 | D106: ='Data SHS1 25 years'!I62 -> 72600 | E106: ='Data SHS1 25 years'!J62 -> 79860 | F106: ='Data SHS1 25 years'!K62 -> 0 | G106: ='Data SHS1 25 years'!L62 -> 0 | H106: ='Data SHS1 25 years'!M62 -> 212587.32 | I106: ='Data SHS1 25 years'!N62 -> 233846.052 | J106: ='Data SHS1 25 years'!O62 -> 257230.6572 | K106: ='Data SHS1 25 years'!P62 -> 0 | L106: ='Data SHS1 25 years'!Q62 -> 0 | M106: ='Data SHS1 25 years'!R62 -> 342374.0047 | N106: ='Data SHS1 25 years'!S62 -> 376611.4052 | O106: ='Data SHS1 25 years'!T62 -> 414272.5457 | P106: ='Data SHS1 25 years'!U62 -> 0 | Q106: ='Data SHS1 25 years'!V62 -> 0 | R106: ='Data SHS1 25 years'!W62 -> 551396.7584 | S106: ='Data SHS1 25 years'!X62 -> 606536.4342 | T106: ='Data SHS1 25 years'!Y62 -> 667190.0776 | U106: ='Data SHS1 25 years'!Z62 -> 0 | V106: ='Data SHS1 25 years'!AA62 -> 0 | W106: ='Data SHS1 25 years'!AB62 -> 888029.9933 | X106: ='Data SHS1 25 years'!AC62 -> 976832.9926 | Y106: ='Data SHS1 25 years'!AD62 -> 1074516.292 | Z106: ='Data SHS1 25 years'!AE62 -> 0 | AA106: ='Data SHS1 25 years'!AF62 -> 0
A107: SHS2 | B107: ='Data SHS2 25 years'!G60 -> 0 | C107: ='Data SHS2 25 years'!H60 -> 66000 | D107: ='Data SHS2 25 years'!I60 -> 72600 | E107: ='Data SHS2 25 years'!J60 -> 79860 | F107: ='Data SHS2 25 years'!K60 -> 0 | G107: ='Data SHS2 25 years'!L60 -> 0 | H107: ='Data SHS2 25 years'!M60 -> 1652383.26 | I107: ='Data SHS2 25 years'!N60 -> 1817621.586 | J107: ='Data SHS2 25 years'!O60 -> 683999.7021 | K107: ='Data SHS2 25 years'!P60 -> 0 | L107: ='Data SHS2 25 years'!Q60 -> 0 | M107: ='Data SHS2 25 years'!R60 -> 2544461.353 | N107: ='Data SHS2 25 years'!S60 -> 2798907.489 | O107: ='Data SHS2 25 years'!T60 -> 1045096.649 | P107: ='Data SHS2 25 years'!U60 -> 0 | Q107: ='Data SHS2 25 years'!V60 -> 0 | R107: ='Data SHS2 25 years'!W60 -> 3909904.287 | S107: ='Data SHS2 25 years'!X60 -> 4300894.715 | T107: ='Data SHS2 25 years'!Y60 -> 1683138.605 | U107: ='Data SHS2 25 years'!Z60 -> 0 | V107: ='Data SHS2 25 years'!AA60 -> 0 | W107: ='Data SHS2 25 years'!AB60 -> 6372624.327 | X107: ='Data SHS2 25 years'!AC60 -> 6611282.388 | Y107: ='Data SHS2 25 years'!AD60 -> 2468945.389 | Z107: ='Data SHS2 25 years'!AE60 -> 0 | AA107: ='Data SHS2 25 years'!AF60 -> 0
A108: SHS1 + SHS2 | B108: =SUM(B106:B107) -> 0 | C108: =SUM(C106:C107) -> 132000 | D108: 145200 | E108: 159720 | F108: 0 | G108: 0 | H108: 1864970.58 | I108: 2051467.638 | J108: 941230.3593 | K108: 0 | L108: 0 | M108: 2886835.358 | N108: 3175518.894 | O108: 1459369.195 | P108: 0 | Q108: 0 | R108: 4461301.045 | S108: 4907431.149 | T108: 2350328.683 | U108: 0 | V108: 0 | W108: 7260654.32 | X108: 7588115.38 | Y108: 3543461.681 | Z108: 0 | AA108: 0
A109: Mini grid + SHS1 | B109: =B106 -> 0 | C109: =C106 -> 66000 | D109: 72600 | E109: 79860 | F109: 0 | G109: 0 | H109: 212587.32 | I109: 233846.052 | J109: 257230.6572 | K109: 0 | L109: 0 | M109: 342374.0047 | N109: 376611.4052 | O109: 414272.5457 | P109: 0 | Q109: 0 | R109: 551396.7584 | S109: 606536.4342 | T109: 667190.0776 | U109: 0 | V109: 0 | W109: 888029.9933 | X109: 976832.9926 | Y109: 1074516.292 | Z109: 0 | AA109: 0
A110: Mini grid + SHS2 | B110: =B107 -> 0 | C110: =C107 -> 66000 | D110: 72600 | E110: 79860 | F110: 0 | G110: 0 | H110: 1652383.26 | I110: 1817621.586 | J110: 683999.7021 | K110: 0 | L110: 0 | M110: 2544461.353 | N110: 2798907.489 | O110: 1045096.649 | P110: 0 | Q110: 0 | R110: 3909904.287 | S110: 4300894.715 | T110: 1683138.605 | U110: 0 | V110: 0 | W110: 6372624.327 | X110: 6611282.388 | Y110: 2468945.389 | Z110: 0 | AA110: 0
A111: Total | B111: =SUM(B106:B108) -> 0 | C111: =SUM(C106:C108) -> 264000 | D111: 290400 | E111: 319440 | F111: 0 | G111: 0 | H111: 3729941.16 | I111: 4102935.276 | J111: 1882460.719 | K111: 0 | L111: 0 | M111: 5773670.716 | N111: 6351037.788 | O111: 2918738.39 | P111: 0 | Q111: 0 | R111: 8922602.09 | S111: 9814862.299 | T111: 4700657.365 | U111: 0 | V111: 0 | W111: 14521308.64 | X111: 15176230.76 | Y111: 7086923.362 | Z111: 0 | AA111: 0
A113: Total Battery
A114: SHS1 | B114: ='Data SHS1 25 years'!G67 -> 0 | C114: ='Data SHS1 25 years'!H67 -> 0 | D114: ='Data SHS1 25 years'!I67 -> 0 | E114: ='Data SHS1 25 years'!J67 -> 0 | F114: ='Data SHS1 25 years'!K67 -> 0 | G114: ='Data SHS1 25 years'!L67 -> 0 | H114: ='Data SHS1 25 years'!M67 -> 1232619.934 | I114: ='Data SHS1 25 years'!N67 -> 1355881.927 | J114: ='Data SHS1 25 years'!O67 -> 462781.3369 | K114: ='Data SHS1 25 years'!P67 -> 0 | L114: ='Data SHS1 25 years'!Q67 -> 0 | M114: ='Data SHS1 25 years'!R67 -> 1906711.957 | N114: ='Data SHS1 25 years'!S67 -> 2097383.153 | O114: ='Data SHS1 25 years'!T67 -> 724223.7322 | P114: ='Data SHS1 25 years'!U67 -> 0 | Q114: ='Data SHS1 25 years'!V67 -> 0 | R114: ='Data SHS1 25 years'!W67 -> 2986565.351 | S114: ='Data SHS1 25 years'!X67 -> 3285221.886 | T114: ='Data SHS1 25 years'!Y67 -> 1132403.523 | U114: ='Data SHS1 25 years'!Z67 -> 0 | V114: ='Data SHS1 25 years'!AA67 -> 0 | W114: ='Data SHS1 25 years'!AB67 -> 4832458.969 | X114: ='Data SHS1 25 years'!AC67 -> 4941927.047 | Y114: ='Data SHS1 25 years'!AD67 -> 1631327.244 | Z114: ='Data SHS1 25 years'!AE67 -> 0 | AA114: ='Data SHS1 25 years'!AF67 -> 0
A115: SHS2 | B115: ='Data SHS2 25 years'!G66 -> 0 | C115: ='Data SHS2 25 years'!H66 -> 0 | D115: ='Data SHS2 25 years'!I66 -> 0 | E115: ='Data SHS2 25 years'!J66 -> 0 | F115: ='Data SHS2 25 years'!K66 -> 0 | G115: ='Data SHS2 25 years'!L66 -> 0 | H115: ='Data SHS2 25 years'!M66 -> 1183724.85 | I115: ='Data SHS2 25 years'!N66 -> 1302097.335 | J115: ='Data SHS2 25 years'!O66 -> 450153.6501 | K115: ='Data SHS2 25 years'!P66 -> 0 | L115: ='Data SHS2 25 years'!Q66 -> 0 | M115: ='Data SHS2 25 years'!R66 -> 1848041.503 | N115: ='Data SHS2 25 years'!S66 -> 2032845.653 | O115: ='Data SHS2 25 years'!T66 -> 696731.0996 | P115: ='Data SHS2 25 years'!U66 -> 0 | Q115: ='Data SHS2 25 years'!V66 -> 0 | R115: ='Data SHS2 25 years'!W66 -> 2882301.237 | S115: ='Data SHS2 25 years'!X66 -> 3170531.361 | T115: ='Data SHS2 25 years'!Y66 -> 1122092.403 | U115: ='Data SHS2 25 years'!Z66 -> 0 | V115: ='Data SHS2 25 years'!AA66 -> 0 | W115: ='Data SHS2 25 years'!AB66 -> 4679817.152 | X115: ='Data SHS2 25 years'!AC66 -> 4799146.183 | Y115: ='Data SHS2 25 years'!AD66 -> 1607848.942 | Z115: ='Data SHS2 25 years'!AE66 -> 0 | AA115: ='Data SHS2 25 years'!AF66 -> 0
A116: SHS1 + SHS2 | B116: =B114+B115 -> 0 | C116: =C114+C115 -> 0 | D116: 0 | E116: 0 | F116: 0 | G116: 0 | H116: 2416344.784 | I116: 2657979.262 | J116: 912934.987 | K116: 0 | L116: 0 | M116: 3754753.46 | N116: 4130228.806 | O116: 1420954.832 | P116: 0 | Q116: 0 | R116: 5868866.588 | S116: 6455753.247 | T116: 2254495.926 | U116: 0 | V116: 0 | W116: 9512276.122 | X116: 9741073.23 | Y116: 3239176.185 | Z116: 0 | AA116: 0
A117: Mini grid + SHS1 | B117: =B114 -> 0 | C117: =C114 -> 0 | D117: 0 | E117: 0 | F117: 0 | G117: 0 | H117: 1232619.934 | I117: 1355881.927 | J117: 462781.3369 | K117: 0 | L117: 0 | M117: 1906711.957 | N117: 2097383.153 | O117: 724223.7322 | P117: 0 | Q117: 0 | R117: 2986565.351 | S117: 3285221.886 | T117: 1132403.523 | U117: 0 | V117: 0 | W117: 4832458.969 | X117: 4941927.047 | Y117: 1631327.244 | Z117: 0 | AA117: 0
A118: Mini grid + SHS2 | B118: =B115 -> 0 | C118: =C115 -> 0 | D118: 0 | E118: 0 | F118: 0 | G118: 0 | H118: 1183724.85 | I118: 1302097.335 | J118: 450153.6501 | K118: 0 | L118: 0 | M118: 1848041.503 | N118: 2032845.653 | O118: 696731.0996 | P118: 0 | Q118: 0 | R118: 2882301.237 | S118: 3170531.361 | T118: 1122092.403 | U118: 0 | V118: 0 | W118: 4679817.152 | X118: 4799146.183 | Y118: 1607848.942 | Z118: 0 | AA118: 0
A119: Total | B119: =SUM(B114:B116) -> 0 | C119: =SUM(C114:C116) -> 0 | D119: 0 | E119: 0 | F119: 0 | G119: 0 | H119: 4832689.567 | I119: 5315958.524 | J119: 1825869.974 | K119: 0 | L119: 0 | M119: 7509506.92 | N119: 8260457.612 | O119: 2841909.664 | P119: 0 | Q119: 0 | R119: 11737733.18 | S119: 12911506.49 | T119: 4508991.852 | U119: 0 | V119: 0 | W119: 19024552.24 | X119: 19482146.46 | Y119: 6478352.371 | Z119: 0 | AA119: 0
A121: Total new SHS
A122: SHS1 | B122: ='Data SHS1 25 years'!G66 -> 0 | C122: ='Data SHS1 25 years'!H66 -> 829200 | D122: ='Data SHS1 25 years'!I66 -> 912120 | E122: ='Data SHS1 25 years'!J66 -> 303613.2 | F122: ='Data SHS1 25 years'!K66 -> 0 | G122: ='Data SHS1 25 years'!L66 -> 0 | H122: ='Data SHS1 25 years'!M66 -> 864650.6088 | I122: ='Data SHS1 25 years'!N66 -> 951115.6697 | J122: ='Data SHS1 25 years'!O66 -> 358018.3056 | K122: ='Data SHS1 25 years'!P66 -> 0 | L122: ='Data SHS1 25 years'!Q66 -> 0 | M122: ='Data SHS1 25 years'!R66 -> 1401243.427 | N122: ='Data SHS1 25 years'!S66 -> 1541367.769 | O122: ='Data SHS1 25 years'!T66 -> 576592.0614 | P122: ='Data SHS1 25 years'!U66 -> 0 | Q122: ='Data SHS1 25 years'!V66 -> 0 | R122: ='Data SHS1 25 years'!W66 -> 2240531.709 | S122: ='Data SHS1 25 years'!X66 -> 594430.874 | T122: ='Data SHS1 25 years'!Y66 -> 367561.0791 | U122: ='Data SHS1 25 years'!Z66 -> 0 | V122: ='Data SHS1 25 years'!AA66 -> 0 | W122: ='Data SHS1 25 years'!AB66 -> 3589255.773 | X122: ='Data SHS1 25 years'!AC66 -> 936279.6229 | Y122: ='Data SHS1 25 years'!AD66 -> 591960.7935 | Z122: ='Data SHS1 25 years'!AE66 -> 0 | AA122: ='Data SHS1 25 years'!AF66 -> 0
A123: SHS2 | B123: ='Data SHS2 25 years'!G65 -> 0 | C123: ='Data SHS2 25 years'!H65 -> 793500 | D123: ='Data SHS2 25 years'!I65 -> 872850 | E123: ='Data SHS2 25 years'!J65 -> 290400 | F123: ='Data SHS2 25 years'!K65 -> 0 | G123: ='Data SHS2 25 years'!L65 -> 0 | H123: ='Data SHS2 25 years'!M65 -> 857596.575 | I123: ='Data SHS2 25 years'!N65 -> 943356.2325 | J123: ='Data SHS2 25 years'!O65 -> 506666.446 | K123: ='Data SHS2 25 years'!P65 -> 0 | L123: ='Data SHS2 25 years'!Q65 -> 0 | M123: ='Data SHS2 25 years'!R65 -> 1381167.86 | N123: ='Data SHS2 25 years'!S65 -> 1519284.646 | O123: ='Data SHS2 25 years'!T65 -> 815991.3779 | P123: ='Data SHS2 25 years'!U65 -> 0 | Q123: ='Data SHS2 25 years'!V65 -> 0 | R123: ='Data SHS2 25 years'!W65 -> 2221251.714 | S123: ='Data SHS2 25 years'!X65 -> 2443376.885 | T123: ='Data SHS2 25 years'!Y65 -> 1508759.38 | U123: ='Data SHS2 25 years'!Z65 -> 0 | V123: ='Data SHS2 25 years'!AA65 -> 0 | W123: ='Data SHS2 25 years'!AB65 -> 3559688.411 | X123: ='Data SHS2 25 years'!AC65 -> 3915657.252 | Y123: ='Data SHS2 25 years'!AD65 -> 1796965.693 | Z123: ='Data SHS2 25 years'!AE65 -> 0 | AA123: ='Data SHS2 25 years'!AF65 -> 0
A124: SHS1 + SHS2 | B124: =SUM(B122:B123) -> 0 | C124: =SUM(C122:C123) -> 1622700 | D124: 1784970 | E124: 594013.2 | F124: 0 | G124: 0 | H124: 1722247.184 | I124: 1894471.902 | J124: 864684.7516 | K124: 0 | L124: 0 | M124: 2782411.287 | N124: 3060652.415 | O124: 1392583.439 | P124: 0 | Q124: 0 | R124: 4461783.423 | S124: 3037807.759 | T124: 1876320.459 | U124: 0 | V124: 0 | W124: 7148944.184 | X124: 4851936.875 | Y124: 2388926.486 | Z124: 0 | AA124: 0
A125: Mini grid + SHS1 | B125: =SUM(B122:B122) -> 0 | C125: 829200 | D125: 912120 | E125: 303613.2 | F125: 0 | G125: 0 | H125: 864650.6088 | I125: 951115.6697 | J125: 358018.3056 | K125: 0 | L125: 0 | M125: 1401243.427 | N125: 1541367.769 | O125: 576592.0614 | P125: 0 | Q125: 0 | R125: 2240531.709 | S125: 594430.874 | T125: 367561.0791 | U125: 0 | V125: 0 | W125: 3589255.773 | X125: 936279.6229 | Y125: 591960.7935 | Z125: 0 | AA125: 0
A126: Mini grid + SHS2 | B126: =B123 -> 0 | C126: =C123 -> 793500 | D126: 872850 | E126: 290400 | F126: 0 | G126: 0 | H126: 857596.575 | I126: 943356.2325 | J126: 506666.446 | K126: 0 | L126: 0 | M126: 1381167.86 | N126: 1519284.646 | O126: 815991.3779 | P126: 0 | Q126: 0 | R126: 2221251.714 | S126: 2443376.885 | T126: 1508759.38 | U126: 0 | V126: 0 | W126: 3559688.411 | X126: 3915657.252 | Y126: 1796965.693 | Z126: 0 | AA126: 0
A127: Total | B127: =SUM(B122:B123) -> 0 | C127: 1622700 | D127: 1784970 | E127: 594013.2 | F127: 0 | G127: 0 | H127: 1722247.184 | I127: 1894471.902 | J127: 864684.7516 | K127: 0 | L127: 0 | M127: 2782411.287 | N127: 3060652.415 | O127: 1392583.439 | P127: 0 | Q127: 0 | R127: 4461783.423 | S127: 3037807.759 | T127: 1876320.459 | U127: 0 | V127: 0 | W127: 7148944.184 | X127: 4851936.875 | Y127: 2388926.486 | Z127: 0 | AA127: 0
A130: Summary Opex
A131: PAYG costs | B131: =INDEX($B$98:$AA$103,MATCH($B$3,$A$98:$A$103,0),_xlfn.SEQUENCE(1,COUNTA(B77:AA77))) -> 0 | C131: 1490700 | D131: 1639770 | E131: 434293.2 | F131: 0 | G131: 0 | H131: 3713417.327 | I131: 4084759.06 | J131: 1263158.424 | K131: 0 | L131: 0 | M131: 5852416.737 | N131: 6437658.411 | O131: 1984993.18 | P131: 0 | Q131: 0 | R131: 9227856.494 | S131: 8280488.138 | T131: 2796436.23 | U131: 0 | V131: 0 | W131: 14885160.32 | X131: 12639344.12 | Y131: 3479070.088 | Z131: 0 | AA131: 0
A132: Other Operationnal Costs | B132: =INDEX($B$106:$AA$111,MATCH($B$3,$A$106:$A$111,0),_xlfn.SEQUENCE(1,COUNTA($B$77:$AA$77))) -> 0 | C132: 264000 | D132: 290400 | E132: 319440 | F132: 0 | G132: 0 | H132: 3729941.16 | I132: 4102935.276 | J132: 1882460.719 | K132: 0 | L132: 0 | M132: 5773670.716 | N132: 6351037.788 | O132: 2918738.39 | P132: 0 | Q132: 0 | R132: 8922602.09 | S132: 9814862.299 | T132: 4700657.365 | U132: 0 | V132: 0 | W132: 14521308.64 | X132: 15176230.76 | Y132: 7086923.362 | Z132: 0 | AA132: 0
A133: Total Opex Battery | B133: =INDEX($B$114:$AA$119,MATCH($B$3,$A$114:$A$119,0),_xlfn.SEQUENCE(1,COUNTA($B$77:$AA$77))) -> 0 | C133: 0 | D133: 0 | E133: 0 | F133: 0 | G133: 0 | H133: 4832689.567 | I133: 5315958.524 | J133: 1825869.974 | K133: 0 | L133: 0 | M133: 7509506.92 | N133: 8260457.612 | O133: 2841909.664 | P133: 0 | Q133: 0 | R133: 11737733.18 | S133: 12911506.49 | T133: 4508991.852 | U133: 0 | V133: 0 | W133: 19024552.24 | X133: 19482146.46 | Y133: 6478352.371 | Z133: 0 | AA133: 0
A134: Total Opex SHS | B134: =INDEX($B$122:$AA$127,MATCH($B$3,$A$122:$A$127,0),_xlfn.SEQUENCE(1,COUNTA($B$77:$AA$77))) -> 0 | C134: 1622700 | D134: 1784970 | E134: 594013.2 | F134: 0 | G134: 0 | H134: 1722247.184 | I134: 1894471.902 | J134: 864684.7516 | K134: 0 | L134: 0 | M134: 2782411.287 | N134: 3060652.415 | O134: 1392583.439 | P134: 0 | Q134: 0 | R134: 4461783.423 | S134: 3037807.759 | T134: 1876320.459 | U134: 0 | V134: 0 | W134: 7148944.184 | X134: 4851936.875 | Y134: 2388926.486 | Z134: 0 | AA134: 0
A135: Total Opex | B135: =INDEX($B$89:$AA$95,MATCH($B$3,$A$89:$A$95,0),_xlfn.SEQUENCE(1,COUNTA($B$77:$AA$77))) -> 0 | C135: 5262055 | D135: 5854222.234 | E135: 5144821.083 | F135: 5090327.027 | G135: 5694894.974 | H135: 11950862.86 | I135: 13268244.89 | J135: 10187976.64 | K135: 8938498.785 | L135: 10009474.89 | M135: 19950078.63 | N135: 22171827.77 | O135: 17515417.5 | P135: 15768414.68 | Q135: 17673655.38 | R135: 33501735.92 | S135: 35402143.04 | T135: 30058045.92 | U135: 27940551.91 | V135: 31343472.64 | W135: 57312517.18 | X135: 59690247.89 | Y135: 51313445.4 | Z135: 49717743.65 | AA135: 55818379.48
A138: Kutool Graph
B139: ='Data Simulation results'!B77 -> 2023 | C139: ='Data Simulation results'!C77 -> 2024 | D139: ='Data Simulation results'!D77 -> 2025 | E139: ='Data Simulation results'!E77 -> 2026 | F139: ='Data Simulation results'!F77 -> 2027 | G139: ='Data Simulation results'!G77 -> 2028 | H139: ='Data Simulation results'!H77 -> 2029 | I139: ='Data Simulation results'!I77 -> 2030 | J139: ='Data Simulation results'!J77 -> 2031 | K139: ='Data Simulation results'!K77 -> 2032 | L139: ='Data Simulation results'!L77 -> 2033 | M139: ='Data Simulation results'!M77 -> 2034 | N139: ='Data Simulation results'!N77 -> 2035 | O139: ='Data Simulation results'!O77 -> 2036 | P139: ='Data Simulation results'!P77 -> 2037 | Q139: ='Data Simulation results'!Q77 -> 2038 | R139: ='Data Simulation results'!R77 -> 2039 | S139: ='Data Simulation results'!S77 -> 2040 | T139: ='Data Simulation results'!T77 -> 2041 | U139: ='Data Simulation results'!U77 -> 2042 | V139: ='Data Simulation results'!V77 -> 2043 | W139: ='Data Simulation results'!W77 -> 2044 | X139: ='Data Simulation results'!X77 -> 2045 | Y139: ='Data Simulation results'!Y77 -> 2046 | Z139: ='Data Simulation results'!Z77 -> 2047 | AA139: ='Data Simulation results'!AA77 -> 2048
A140: ='Data Simulation results'!A131 -> PAYG costs | B140: =IF('Data Simulation results'!$AB140,'Data Simulation results'!B131,NA()) -> 0 | C140: =IF('Data Simulation results'!$AB140,'Data Simulation results'!C131,NA()) -> 1490700 | D140: =IF('Data Simulation results'!$AB140,'Data Simulation results'!D131,NA()) -> 1639770 | E140: =IF('Data Simulation results'!$AB140,'Data Simulation results'!E131,NA()) -> 434293.2 | F140: =IF('Data Simulation results'!$AB140,'Data Simulation results'!F131,NA()) -> 0 | G140: =IF('Data Simulation results'!$AB140,'Data Simulation results'!G131,NA()) -> 0 | H140: =IF('Data Simulation results'!$AB140,'Data Simulation results'!H131,NA()) -> 3713417.327 | I140: =IF('Data Simulation results'!$AB140,'Data Simulation results'!I131,NA()) -> 4084759.06 | J140: =IF('Data Simulation results'!$AB140,'Data Simulation results'!J131,NA()) -> 1263158.424 | K140: =IF('Data Simulation results'!$AB140,'Data Simulation results'!K131,NA()) -> 0 | L140: =IF('Data Simulation results'!$AB140,'Data Simulation results'!L131,NA()) -> 0 | M140: =IF('Data Simulation results'!$AB140,'Data Simulation results'!M131,NA()) -> 5852416.737 | N140: =IF('Data Simulation results'!$AB140,'Data Simulation results'!N131,NA()) -> 6437658.411 | O140: =IF('Data Simulation results'!$AB140,'Data Simulation results'!O131,NA()) -> 1984993.18 | P140: =IF('Data Simulation results'!$AB140,'Data Simulation results'!P131,NA()) -> 0 | Q140: =IF('Data Simulation results'!$AB140,'Data Simulation results'!Q131,NA()) -> 0 | R140: =IF('Data Simulation results'!$AB140,'Data Simulation results'!R131,NA()) -> 9227856.494 | S140: =IF('Data Simulation results'!$AB140,'Data Simulation results'!S131,NA()) -> 8280488.138 | T140: =IF('Data Simulation results'!$AB140,'Data Simulation results'!T131,NA()) -> 2796436.23 | U140: =IF('Data Simulation results'!$AB140,'Data Simulation results'!U131,NA()) -> 0 | V140: =IF('Data Simulation results'!$AB140,'Data Simulation results'!V131,NA()) -> 0 | W140: =IF('Data Simulation results'!$AB140,'Data Simulation results'!W131,NA()) -> 14885160.32 | X140: =IF('Data Simulation results'!$AB140,'Data Simulation results'!X131,NA()) -> 12639344.12 | Y140: =IF('Data Simulation results'!$AB140,'Data Simulation results'!Y131,NA()) -> 3479070.088 | Z140: =IF('Data Simulation results'!$AB140,'Data Simulation results'!Z131,NA()) -> 0 | AA140: =IF('Data Simulation results'!$AB140,'Data Simulation results'!AA131,NA()) -> 0 | AB140: ='3. Simulation results'!U137 -> TRUE
A141: ='Data Simulation results'!A132 -> Other Operationnal Costs | B141: =IF('Data Simulation results'!$AB141,'Data Simulation results'!B132,NA()) -> 0 | C141: =IF('Data Simulation results'!$AB141,'Data Simulation results'!C132,NA()) -> 264000 | D141: =IF('Data Simulation results'!$AB141,'Data Simulation results'!D132,NA()) -> 290400 | E141: =IF('Data Simulation results'!$AB141,'Data Simulation results'!E132,NA()) -> 319440 | F141: =IF('Data Simulation results'!$AB141,'Data Simulation results'!F132,NA()) -> 0 | G141: =IF('Data Simulation results'!$AB141,'Data Simulation results'!G132,NA()) -> 0 | H141: =IF('Data Simulation results'!$AB141,'Data Simulation results'!H132,NA()) -> 3729941.16 | I141: =IF('Data Simulation results'!$AB141,'Data Simulation results'!I132,NA()) -> 4102935.276 | J141: =IF('Data Simulation results'!$AB141,'Data Simulation results'!J132,NA()) -> 1882460.719 | K141: =IF('Data Simulation results'!$AB141,'Data Simulation results'!K132,NA()) -> 0 | L141: =IF('Data Simulation results'!$AB141,'Data Simulation results'!L132,NA()) -> 0 | M141: =IF('Data Simulation results'!$AB141,'Data Simulation results'!M132,NA()) -> 5773670.716 | N141: =IF('Data Simulation results'!$AB141,'Data Simulation results'!N132,NA()) -> 6351037.788 | O141: =IF('Data Simulation results'!$AB141,'Data Simulation results'!O132,NA()) -> 2918738.39 | P141: =IF('Data Simulation results'!$AB141,'Data Simulation results'!P132,NA()) -> 0 | Q141: =IF('Data Simulation results'!$AB141,'Data Simulation results'!Q132,NA()) -> 0 | R141: =IF('Data Simulation results'!$AB141,'Data Simulation results'!R132,NA()) -> 8922602.09 | S141: =IF('Data Simulation results'!$AB141,'Data Simulation results'!S132,NA()) -> 9814862.299 | T141: =IF('Data Simulation results'!$AB141,'Data Simulation results'!T132,NA()) -> 4700657.365 | U141: =IF('Data Simulation results'!$AB141,'Data Simulation results'!U132,NA()) -> 0 | V141: =IF('Data Simulation results'!$AB141,'Data Simulation results'!V132,NA()) -> 0 | W141: =IF('Data Simulation results'!$AB141,'Data Simulation results'!W132,NA()) -> 14521308.64 | X141: =IF('Data Simulation results'!$AB141,'Data Simulation results'!X132,NA()) -> 15176230.76 | Y141: =IF('Data Simulation results'!$AB141,'Data Simulation results'!Y132,NA()) -> 7086923.362 | Z141: =IF('Data Simulation results'!$AB141,'Data Simulation results'!Z132,NA()) -> 0 | AA141: =IF('Data Simulation results'!$AB141,'Data Simulation results'!AA132,NA()) -> 0 | AB141: ='3. Simulation results'!U139 -> TRUE
A142: ='Data Simulation results'!A133 -> Total Opex Battery | B142: =IF('Data Simulation results'!$AB142,'Data Simulation results'!B133,NA()) -> 0 | C142: =IF('Data Simulation results'!$AB142,'Data Simulation results'!C133,NA()) -> 0 | D142: =IF('Data Simulation results'!$AB142,'Data Simulation results'!D133,NA()) -> 0 | E142: =IF('Data Simulation results'!$AB142,'Data Simulation results'!E133,NA()) -> 0 | F142: =IF('Data Simulation results'!$AB142,'Data Simulation results'!F133,NA()) -> 0 | G142: =IF('Data Simulation results'!$AB142,'Data Simulation results'!G133,NA()) -> 0 | H142: =IF('Data Simulation results'!$AB142,'Data Simulation results'!H133,NA()) -> 4832689.567 | I142: =IF('Data Simulation results'!$AB142,'Data Simulation results'!I133,NA()) -> 5315958.524 | J142: =IF('Data Simulation results'!$AB142,'Data Simulation results'!J133,NA()) -> 1825869.974 | K142: =IF('Data Simulation results'!$AB142,'Data Simulation results'!K133,NA()) -> 0 | L142: =IF('Data Simulation results'!$AB142,'Data Simulation results'!L133,NA()) -> 0 | M142: =IF('Data Simulation results'!$AB142,'Data Simulation results'!M133,NA()) -> 7509506.92 | N142: =IF('Data Simulation results'!$AB142,'Data Simulation results'!N133,NA()) -> 8260457.612 | O142: =IF('Data Simulation results'!$AB142,'Data Simulation results'!O133,NA()) -> 2841909.664 | P142: =IF('Data Simulation results'!$AB142,'Data Simulation results'!P133,NA()) -> 0 | Q142: =IF('Data Simulation results'!$AB142,'Data Simulation results'!Q133,NA()) -> 0 | R142: =IF('Data Simulation results'!$AB142,'Data Simulation results'!R133,NA()) -> 11737733.18 | S142: =IF('Data Simulation results'!$AB142,'Data Simulation results'!S133,NA()) -> 12911506.49 | T142: =IF('Data Simulation results'!$AB142,'Data Simulation results'!T133,NA()) -> 4508991.852 | U142: =IF('Data Simulation results'!$AB142,'Data Simulation results'!U133,NA()) -> 0 | V142: =IF('Data Simulation results'!$AB142,'Data Simulation results'!V133,NA()) -> 0 | W142: =IF('Data Simulation results'!$AB142,'Data Simulation results'!W133,NA()) -> 19024552.24 | X142: =IF('Data Simulation results'!$AB142,'Data Simulation results'!X133,NA()) -> 19482146.46 | Y142: =IF('Data Simulation results'!$AB142,'Data Simulation results'!Y133,NA()) -> 6478352.371 | Z142: =IF('Data Simulation results'!$AB142,'Data Simulation results'!Z133,NA()) -> 0 | AA142: =IF('Data Simulation results'!$AB142,'Data Simulation results'!AA133,NA()) -> 0 | AB142: ='3. Simulation results'!U141 -> TRUE
A143: ='Data Simulation results'!A134 -> Total Opex SHS | B143: =IF('Data Simulation results'!$AB143,'Data Simulation results'!B134,NA()) -> 0 | C143: =IF('Data Simulation results'!$AB143,'Data Simulation results'!C134,NA()) -> 1622700 | D143: =IF('Data Simulation results'!$AB143,'Data Simulation results'!D134,NA()) -> 1784970 | E143: =IF('Data Simulation results'!$AB143,'Data Simulation results'!E134,NA()) -> 594013.2 | F143: =IF('Data Simulation results'!$AB143,'Data Simulation results'!F134,NA()) -> 0 | G143: =IF('Data Simulation results'!$AB143,'Data Simulation results'!G134,NA()) -> 0 | H143: =IF('Data Simulation results'!$AB143,'Data Simulation results'!H134,NA()) -> 1722247.184 | I143: =IF('Data Simulation results'!$AB143,'Data Simulation results'!I134,NA()) -> 1894471.902 | J143: =IF('Data Simulation results'!$AB143,'Data Simulation results'!J134,NA()) -> 864684.7516 | K143: =IF('Data Simulation results'!$AB143,'Data Simulation results'!K134,NA()) -> 0 | L143: =IF('Data Simulation results'!$AB143,'Data Simulation results'!L134,NA()) -> 0 | M143: =IF('Data Simulation results'!$AB143,'Data Simulation results'!M134,NA()) -> 2782411.287 | N143: =IF('Data Simulation results'!$AB143,'Data Simulation results'!N134,NA()) -> 3060652.415 | O143: =IF('Data Simulation results'!$AB143,'Data Simulation results'!O134,NA()) -> 1392583.439 | P143: =IF('Data Simulation results'!$AB143,'Data Simulation results'!P134,NA()) -> 0 | Q143: =IF('Data Simulation results'!$AB143,'Data Simulation results'!Q134,NA()) -> 0 | R143: =IF('Data Simulation results'!$AB143,'Data Simulation results'!R134,NA()) -> 4461783.423 | S143: =IF('Data Simulation results'!$AB143,'Data Simulation results'!S134,NA()) -> 3037807.759 | T143: =IF('Data Simulation results'!$AB143,'Data Simulation results'!T134,NA()) -> 1876320.459 | U143: =IF('Data Simulation results'!$AB143,'Data Simulation results'!U134,NA()) -> 0 | V143: =IF('Data Simulation results'!$AB143,'Data Simulation results'!V134,NA()) -> 0 | W143: =IF('Data Simulation results'!$AB143,'Data Simulation results'!W134,NA()) -> 7148944.184 | X143: =IF('Data Simulation results'!$AB143,'Data Simulation results'!X134,NA()) -> 4851936.875 | Y143: =IF('Data Simulation results'!$AB143,'Data Simulation results'!Y134,NA()) -> 2388926.486 | Z143: =IF('Data Simulation results'!$AB143,'Data Simulation results'!Z134,NA()) -> 0 | AA143: =IF('Data Simulation results'!$AB143,'Data Simulation results'!AA134,NA()) -> 0 | AB143: ='3. Simulation results'!U143 -> TRUE
A144: ='Data Simulation results'!A135 -> Total Opex | B144: =IF('Data Simulation results'!$AB144,'Data Simulation results'!B135,NA()) -> 0 | C144: =IF('Data Simulation results'!$AB144,'Data Simulation results'!C135,NA()) -> 5262055 | D144: =IF('Data Simulation results'!$AB144,'Data Simulation results'!D135,NA()) -> 5854222.234 | E144: =IF('Data Simulation results'!$AB144,'Data Simulation results'!E135,NA()) -> 5144821.083 | F144: =IF('Data Simulation results'!$AB144,'Data Simulation results'!F135,NA()) -> 5090327.027 | G144: =IF('Data Simulation results'!$AB144,'Data Simulation results'!G135,NA()) -> 5694894.974 | H144: =IF('Data Simulation results'!$AB144,'Data Simulation results'!H135,NA()) -> 11950862.86 | I144: =IF('Data Simulation results'!$AB144,'Data Simulation results'!I135,NA()) -> 13268244.89 | J144: =IF('Data Simulation results'!$AB144,'Data Simulation results'!J135,NA()) -> 10187976.64 | K144: =IF('Data Simulation results'!$AB144,'Data Simulation results'!K135,NA()) -> 8938498.785 | L144: =IF('Data Simulation results'!$AB144,'Data Simulation results'!L135,NA()) -> 10009474.89 | M144: =IF('Data Simulation results'!$AB144,'Data Simulation results'!M135,NA()) -> 19950078.63 | N144: =IF('Data Simulation results'!$AB144,'Data Simulation results'!N135,NA()) -> 22171827.77 | O144: =IF('Data Simulation results'!$AB144,'Data Simulation results'!O135,NA()) -> 17515417.5 | P144: =IF('Data Simulation results'!$AB144,'Data Simulation results'!P135,NA()) -> 15768414.68 | Q144: =IF('Data Simulation results'!$AB144,'Data Simulation results'!Q135,NA()) -> 17673655.38 | R144: =IF('Data Simulation results'!$AB144,'Data Simulation results'!R135,NA()) -> 33501735.92 | S144: =IF('Data Simulation results'!$AB144,'Data Simulation results'!S135,NA()) -> 35402143.04 | T144: =IF('Data Simulation results'!$AB144,'Data Simulation results'!T135,NA()) -> 30058045.92 | U144: =IF('Data Simulation results'!$AB144,'Data Simulation results'!U135,NA()) -> 27940551.91 | V144: =IF('Data Simulation results'!$AB144,'Data Simulation results'!V135,NA()) -> 31343472.64 | W144: =IF('Data Simulation results'!$AB144,'Data Simulation results'!W135,NA()) -> 57312517.18 | X144: =IF('Data Simulation results'!$AB144,'Data Simulation results'!X135,NA()) -> 59690247.89 | Y144: =IF('Data Simulation results'!$AB144,'Data Simulation results'!Y135,NA()) -> 51313445.4 | Z144: =IF('Data Simulation results'!$AB144,'Data Simulation results'!Z135,NA()) -> 49717743.65 | AA144: =IF('Data Simulation results'!$AB144,'Data Simulation results'!AA135,NA()) -> 55818379.48 | AB144: ='3. Simulation results'!U145 -> TRUE
A147: Capex
B149: ='11. Summary of values'!G10 -> 2023 | C149: ='11. Summary of values'!H10 -> 2024 | D149: ='11. Summary of values'!I10 -> 2025 | E149: ='11. Summary of values'!J10 -> 2026 | F149: ='11. Summary of values'!K10 -> 2027 | G149: ='11. Summary of values'!L10 -> 2028 | H149: ='11. Summary of values'!M10 -> 2029 | I149: ='11. Summary of values'!N10 -> 2030 | J149: ='11. Summary of values'!O10 -> 2031 | K149: ='11. Summary of values'!P10 -> 2032 | L149: ='11. Summary of values'!Q10 -> 2033 | M149: ='11. Summary of values'!R10 -> 2034 | N149: ='11. Summary of values'!S10 -> 2035 | O149: ='11. Summary of values'!T10 -> 2036 | P149: ='11. Summary of values'!U10 -> 2037 | Q149: ='11. Summary of values'!V10 -> 2038 | R149: ='11. Summary of values'!W10 -> 2039 | S149: ='11. Summary of values'!X10 -> 2040 | T149: ='11. Summary of values'!Y10 -> 2041 | U149: ='11. Summary of values'!Z10 -> 2042 | V149: ='11. Summary of values'!AA10 -> 2043 | W149: ='11. Summary of values'!AB10 -> 2044 | X149: ='11. Summary of values'!AC10 -> 2045 | Y149: ='11. Summary of values'!AD10 -> 2046 | Z149: ='11. Summary of values'!AE10 -> 2047 | AA149: ='11. Summary of values'!AF10 -> 2048
A150: ='11. Summary of values'!F55 -> Mini grid | B150: =IF('Data Simulation results'!$AB150,'11. Summary of values'!G55,NA()) -> 85828860 | C150: =IF('Data Simulation results'!$AB150,'11. Summary of values'!H55,NA()) -> 44000 | D150: =IF('Data Simulation results'!$AB150,'11. Summary of values'!I55,NA()) -> 96800 | E150: =IF('Data Simulation results'!$AB150,'11. Summary of values'!J55,NA()) -> 53240 | F150: =IF('Data Simulation results'!$AB150,'11. Summary of values'!K55,NA()) -> 58564 | G150: =IF('Data Simulation results'!$AB150,'11. Summary of values'!L55,NA()) -> 128840.8 | H150: =IF('Data Simulation results'!$AB150,'11. Summary of values'!M55,NA()) -> 70862.44 | I150: =IF('Data Simulation results'!$AB150,'11. Summary of values'!N55,NA()) -> 30058961.27 | J150: =IF('Data Simulation results'!$AB150,'11. Summary of values'!O55,NA()) -> 85743.5524 | K150: =IF('Data Simulation results'!$AB150,'11. Summary of values'!P55,NA()) -> 10386759.58 | L150: =IF('Data Simulation results'!$AB150,'11. Summary of values'!Q55,NA()) -> 103749.6984 | M150: =IF('Data Simulation results'!$AB150,'11. Summary of values'!R55,NA()) -> 33096153.79 | N150: =IF('Data Simulation results'!$AB150,'11. Summary of values'!S55,NA()) -> 251074.2701 | O150: =IF('Data Simulation results'!$AB150,'11. Summary of values'!T55,NA()) -> 53113192.63 | P150: =IF('Data Simulation results'!$AB150,'11. Summary of values'!U55,NA()) -> 303799.8669 | Q150: =IF('Data Simulation results'!$AB150,'11. Summary of values'!V55,NA()) -> 334179.8536 | R150: =IF('Data Simulation results'!$AB150,'11. Summary of values'!W55,NA()) -> 367597.8389 | S150: =IF('Data Simulation results'!$AB150,'11. Summary of values'!X55,NA()) -> 22062762.79 | T150: =IF('Data Simulation results'!$AB150,'11. Summary of values'!Y55,NA()) -> 444793.3851 | U150: =IF('Data Simulation results'!$AB150,'11. Summary of values'!Z55,NA()) -> 94337897.02 | V150: =IF('Data Simulation results'!$AB150,'11. Summary of values'!AA55,NA()) -> 538199.9959 | W150: =IF('Data Simulation results'!$AB150,'11. Summary of values'!AB55,NA()) -> 85842899.35 | X150: =IF('Data Simulation results'!$AB150,'11. Summary of values'!AC55,NA()) -> 651221.9951 | Y150: =IF('Data Simulation results'!$AB150,'11. Summary of values'!AD55,NA()) -> 716344.1946 | Z150: =IF('Data Simulation results'!$AB150,'11. Summary of values'!AE55,NA()) -> 787978.6141 | AA150: =IF('Data Simulation results'!$AB150,'11. Summary of values'!AF55,NA()) -> 213985442.4 | AB150: ='3. Simulation results'!K154 -> TRUE
A151: ='11. Summary of values'!F56 -> SHS1 | B151: =IF('Data Simulation results'!$AB151,'11. Summary of values'!G56,NA()) -> 7266000 | C151: =IF('Data Simulation results'!$AB151,'11. Summary of values'!H56,NA()) -> 0 | D151: =IF('Data Simulation results'!$AB151,'11. Summary of values'!I56,NA()) -> 0 | E151: =IF('Data Simulation results'!$AB151,'11. Summary of values'!J56,NA()) -> 0 | F151: =IF('Data Simulation results'!$AB151,'11. Summary of values'!K56,NA()) -> 0 | G151: =IF('Data Simulation results'!$AB151,'11. Summary of values'!L56,NA()) -> 1444575.193 | H151: =IF('Data Simulation results'!$AB151,'11. Summary of values'!M56,NA()) -> 0 | I151: =IF('Data Simulation results'!$AB151,'11. Summary of values'!N56,NA()) -> 0 | J151: =IF('Data Simulation results'!$AB151,'11. Summary of values'!O56,NA()) -> 0 | K151: =IF('Data Simulation results'!$AB151,'11. Summary of values'!P56,NA()) -> 0 | L151: =IF('Data Simulation results'!$AB151,'11. Summary of values'!Q56,NA()) -> 2660205.937 | M151: =IF('Data Simulation results'!$AB151,'11. Summary of values'!R56,NA()) -> 0 | N151: =IF('Data Simulation results'!$AB151,'11. Summary of values'!S56,NA()) -> 0 | O151: =IF('Data Simulation results'!$AB151,'11. Summary of values'!T56,NA()) -> 0 | P151: =IF('Data Simulation results'!$AB151,'11. Summary of values'!U56,NA()) -> 0 | Q151: =IF('Data Simulation results'!$AB151,'11. Summary of values'!V56,NA()) -> 4271426.243 | R151: =IF('Data Simulation results'!$AB151,'11. Summary of values'!W56,NA()) -> 0 | S151: =IF('Data Simulation results'!$AB151,'11. Summary of values'!X56,NA()) -> 0 | T151: =IF('Data Simulation results'!$AB151,'11. Summary of values'!Y56,NA()) -> 0 | U151: =IF('Data Simulation results'!$AB151,'11. Summary of values'!Z56,NA()) -> 0 | V151: =IF('Data Simulation results'!$AB151,'11. Summary of values'!AA56,NA()) -> 7216910.423 | W151: =IF('Data Simulation results'!$AB151,'11. Summary of values'!AB56,NA()) -> 0 | X151: =IF('Data Simulation results'!$AB151,'11. Summary of values'!AC56,NA()) -> 0 | Y151: =IF('Data Simulation results'!$AB151,'11. Summary of values'!AD56,NA()) -> 0 | Z151: =IF('Data Simulation results'!$AB151,'11. Summary of values'!AE56,NA()) -> 0 | AA151: =IF('Data Simulation results'!$AB151,'11. Summary of values'!AF56,NA()) -> 0 | AB151: ='3. Simulation results'!K156 -> TRUE
A152: ='11. Summary of values'!F57 -> SHS2 | B152: =IF('Data Simulation results'!$AB152,'11. Summary of values'!G57,NA()) -> 15670000 | C152: =IF('Data Simulation results'!$AB152,'11. Summary of values'!H57,NA()) -> 0 | D152: =IF('Data Simulation results'!$AB152,'11. Summary of values'!I57,NA()) -> 0 | E152: =IF('Data Simulation results'!$AB152,'11. Summary of values'!J57,NA()) -> 0 | F152: =IF('Data Simulation results'!$AB152,'11. Summary of values'!K57,NA()) -> 0 | G152: =IF('Data Simulation results'!$AB152,'11. Summary of values'!L57,NA()) -> 4172675.644 | H152: =IF('Data Simulation results'!$AB152,'11. Summary of values'!M57,NA()) -> 0 | I152: =IF('Data Simulation results'!$AB152,'11. Summary of values'!N57,NA()) -> 0 | J152: =IF('Data Simulation results'!$AB152,'11. Summary of values'!O57,NA()) -> 0 | K152: =IF('Data Simulation results'!$AB152,'11. Summary of values'!P57,NA()) -> 0 | L152: =IF('Data Simulation results'!$AB152,'11. Summary of values'!Q57,NA()) -> 6273399.901 | M152: =IF('Data Simulation results'!$AB152,'11. Summary of values'!R57,NA()) -> 0 | N152: =IF('Data Simulation results'!$AB152,'11. Summary of values'!S57,NA()) -> 0 | O152: =IF('Data Simulation results'!$AB152,'11. Summary of values'!T57,NA()) -> 0 | P152: =IF('Data Simulation results'!$AB152,'11. Summary of values'!U57,NA()) -> 0 | Q152: =IF('Data Simulation results'!$AB152,'11. Summary of values'!V57,NA()) -> 9134483.081 | R152: =IF('Data Simulation results'!$AB152,'11. Summary of values'!W57,NA()) -> 0 | S152: =IF('Data Simulation results'!$AB152,'11. Summary of values'!X57,NA()) -> 0 | T152: =IF('Data Simulation results'!$AB152,'11. Summary of values'!Y57,NA()) -> 0 | U152: =IF('Data Simulation results'!$AB152,'11. Summary of values'!Z57,NA()) -> 0 | V152: =IF('Data Simulation results'!$AB152,'11. Summary of values'!AA57,NA()) -> 13889850.49 | W152: =IF('Data Simulation results'!$AB152,'11. Summary of values'!AB57,NA()) -> 0 | X152: =IF('Data Simulation results'!$AB152,'11. Summary of values'!AC57,NA()) -> 0 | Y152: =IF('Data Simulation results'!$AB152,'11. Summary of values'!AD57,NA()) -> 0 | Z152: =IF('Data Simulation results'!$AB152,'11. Summary of values'!AE57,NA()) -> 0 | AA152: =IF('Data Simulation results'!$AB152,'11. Summary of values'!AF57,NA()) -> 0 | AB152: ='3. Simulation results'!K158 -> TRUE
A153: ='11. Summary of values'!F58 -> SHS1 + SHS2 | B153: =IF('Data Simulation results'!$AB153,'11. Summary of values'!G58,NA()) -> 22936000 | C153: =IF('Data Simulation results'!$AB153,'11. Summary of values'!H58,NA()) -> 0 | D153: =IF('Data Simulation results'!$AB153,'11. Summary of values'!I58,NA()) -> 0 | E153: =IF('Data Simulation results'!$AB153,'11. Summary of values'!J58,NA()) -> 0 | F153: =IF('Data Simulation results'!$AB153,'11. Summary of values'!K58,NA()) -> 0 | G153: =IF('Data Simulation results'!$AB153,'11. Summary of values'!L58,NA()) -> 5617250.837 | H153: =IF('Data Simulation results'!$AB153,'11. Summary of values'!M58,NA()) -> 0 | I153: =IF('Data Simulation results'!$AB153,'11. Summary of values'!N58,NA()) -> 0 | J153: =IF('Data Simulation results'!$AB153,'11. Summary of values'!O58,NA()) -> 0 | K153: =IF('Data Simulation results'!$AB153,'11. Summary of values'!P58,NA()) -> 0 | L153: =IF('Data Simulation results'!$AB153,'11. Summary of values'!Q58,NA()) -> 8933605.839 | M153: =IF('Data Simulation results'!$AB153,'11. Summary of values'!R58,NA()) -> 0 | N153: =IF('Data Simulation results'!$AB153,'11. Summary of values'!S58,NA()) -> 0 | O153: =IF('Data Simulation results'!$AB153,'11. Summary of values'!T58,NA()) -> 0 | P153: =IF('Data Simulation results'!$AB153,'11. Summary of values'!U58,NA()) -> 0 | Q153: =IF('Data Simulation results'!$AB153,'11. Summary of values'!V58,NA()) -> 13405909.32 | R153: =IF('Data Simulation results'!$AB153,'11. Summary of values'!W58,NA()) -> 0 | S153: =IF('Data Simulation results'!$AB153,'11. Summary of values'!X58,NA()) -> 0 | T153: =IF('Data Simulation results'!$AB153,'11. Summary of values'!Y58,NA()) -> 0 | U153: =IF('Data Simulation results'!$AB153,'11. Summary of values'!Z58,NA()) -> 0 | V153: =IF('Data Simulation results'!$AB153,'11. Summary of values'!AA58,NA()) -> 21106760.92 | W153: =IF('Data Simulation results'!$AB153,'11. Summary of values'!AB58,NA()) -> 0 | X153: =IF('Data Simulation results'!$AB153,'11. Summary of values'!AC58,NA()) -> 0 | Y153: =IF('Data Simulation results'!$AB153,'11. Summary of values'!AD58,NA()) -> 0 | Z153: =IF('Data Simulation results'!$AB153,'11. Summary of values'!AE58,NA()) -> 0 | AA153: =IF('Data Simulation results'!$AB153,'11. Summary of values'!AF58,NA()) -> 0 | AB153: ='3. Simulation results'!K160 -> TRUE
A154: ='11. Summary of values'!F59 -> Mini grid + SHS1 | B154: =IF('Data Simulation results'!$AB154,'11. Summary of values'!G59,NA()) -> 93094860 | C154: =IF('Data Simulation results'!$AB154,'11. Summary of values'!H59,NA()) -> 44000 | D154: =IF('Data Simulation results'!$AB154,'11. Summary of values'!I59,NA()) -> 96800 | E154: =IF('Data Simulation results'!$AB154,'11. Summary of values'!J59,NA()) -> 53240 | F154: =IF('Data Simulation results'!$AB154,'11. Summary of values'!K59,NA()) -> 58564 | G154: =IF('Data Simulation results'!$AB154,'11. Summary of values'!L59,NA()) -> 1573415.993 | H154: =IF('Data Simulation results'!$AB154,'11. Summary of values'!M59,NA()) -> 70862.44 | I154: =IF('Data Simulation results'!$AB154,'11. Summary of values'!N59,NA()) -> 30058961.27 | J154: =IF('Data Simulation results'!$AB154,'11. Summary of values'!O59,NA()) -> 85743.5524 | K154: =IF('Data Simulation results'!$AB154,'11. Summary of values'!P59,NA()) -> 10386759.58 | L154: =IF('Data Simulation results'!$AB154,'11. Summary of values'!Q59,NA()) -> 2763955.636 | M154: =IF('Data Simulation results'!$AB154,'11. Summary of values'!R59,NA()) -> 33096153.79 | N154: =IF('Data Simulation results'!$AB154,'11. Summary of values'!S59,NA()) -> 251074.2701 | O154: =IF('Data Simulation results'!$AB154,'11. Summary of values'!T59,NA()) -> 53113192.63 | P154: =IF('Data Simulation results'!$AB154,'11. Summary of values'!U59,NA()) -> 303799.8669 | Q154: =IF('Data Simulation results'!$AB154,'11. Summary of values'!V59,NA()) -> 4605606.097 | R154: =IF('Data Simulation results'!$AB154,'11. Summary of values'!W59,NA()) -> 367597.8389 | S154: =IF('Data Simulation results'!$AB154,'11. Summary of values'!X59,NA()) -> 22062762.79 | T154: =IF('Data Simulation results'!$AB154,'11. Summary of values'!Y59,NA()) -> 444793.3851 | U154: =IF('Data Simulation results'!$AB154,'11. Summary of values'!Z59,NA()) -> 94337897.02 | V154: =IF('Data Simulation results'!$AB154,'11. Summary of values'!AA59,NA()) -> 7755110.419 | W154: =IF('Data Simulation results'!$AB154,'11. Summary of values'!AB59,NA()) -> 85842899.35 | X154: =IF('Data Simulation results'!$AB154,'11. Summary of values'!AC59,NA()) -> 651221.9951 | Y154: =IF('Data Simulation results'!$AB154,'11. Summary of values'!AD59,NA()) -> 716344.1946 | Z154: =IF('Data Simulation results'!$AB154,'11. Summary of values'!AE59,NA()) -> 787978.6141 | AA154: =IF('Data Simulation results'!$AB154,'11. Summary of values'!AF59,NA()) -> 213985442.4 | AB154: ='3. Simulation results'!K162 -> TRUE
A155: ='11. Summary of values'!F60 -> Mini grid + SHS2 | B155: =IF('Data Simulation results'!$AB155,'11. Summary of values'!G60,NA()) -> 101498860 | C155: =IF('Data Simulation results'!$AB155,'11. Summary of values'!H60,NA()) -> 44000 | D155: =IF('Data Simulation results'!$AB155,'11. Summary of values'!I60,NA()) -> 96800 | E155: =IF('Data Simulation results'!$AB155,'11. Summary of values'!J60,NA()) -> 53240 | F155: =IF('Data Simulation results'!$AB155,'11. Summary of values'!K60,NA()) -> 58564 | G155: =IF('Data Simulation results'!$AB155,'11. Summary of values'!L60,NA()) -> 4301516.444 | H155: =IF('Data Simulation results'!$AB155,'11. Summary of values'!M60,NA()) -> 70862.44 | I155: =IF('Data Simulation results'!$AB155,'11. Summary of values'!N60,NA()) -> 30058961.27 | J155: =IF('Data Simulation results'!$AB155,'11. Summary of values'!O60,NA()) -> 85743.5524 | K155: =IF('Data Simulation results'!$AB155,'11. Summary of values'!P60,NA()) -> 10386759.58 | L155: =IF('Data Simulation results'!$AB155,'11. Summary of values'!Q60,NA()) -> 6377149.6 | M155: =IF('Data Simulation results'!$AB155,'11. Summary of values'!R60,NA()) -> 33096153.79 | N155: =IF('Data Simulation results'!$AB155,'11. Summary of values'!S60,NA()) -> 251074.2701 | O155: =IF('Data Simulation results'!$AB155,'11. Summary of values'!T60,NA()) -> 53113192.63 | P155: =IF('Data Simulation results'!$AB155,'11. Summary of values'!U60,NA()) -> 303799.8669 | Q155: =IF('Data Simulation results'!$AB155,'11. Summary of values'!V60,NA()) -> 9468662.935 | R155: =IF('Data Simulation results'!$AB155,'11. Summary of values'!W60,NA()) -> 367597.8389 | S155: =IF('Data Simulation results'!$AB155,'11. Summary of values'!X60,NA()) -> 22062762.79 | T155: =IF('Data Simulation results'!$AB155,'11. Summary of values'!Y60,NA()) -> 444793.3851 | U155: =IF('Data Simulation results'!$AB155,'11. Summary of values'!Z60,NA()) -> 94337897.02 | V155: =IF('Data Simulation results'!$AB155,'11. Summary of values'!AA60,NA()) -> 14428050.49 | W155: =IF('Data Simulation results'!$AB155,'11. Summary of values'!AB60,NA()) -> 85842899.35 | X155: =IF('Data Simulation results'!$AB155,'11. Summary of values'!AC60,NA()) -> 651221.9951 | Y155: =IF('Data Simulation results'!$AB155,'11. Summary of values'!AD60,NA()) -> 716344.1946 | Z155: =IF('Data Simulation results'!$AB155,'11. Summary of values'!AE60,NA()) -> 787978.6141 | AA155: =IF('Data Simulation results'!$AB155,'11. Summary of values'!AF60,NA()) -> 213985442.4 | AB155: ='3. Simulation results'!K164 -> TRUE
A156: ='11. Summary of values'!F61 -> Total | B156: =IF('Data Simulation results'!$AB156,'11. Summary of values'!G61,NA()) -> 108764860 | C156: =IF('Data Simulation results'!$AB156,'11. Summary of values'!H61,NA()) -> 44000 | D156: =IF('Data Simulation results'!$AB156,'11. Summary of values'!I61,NA()) -> 96800 | E156: =IF('Data Simulation results'!$AB156,'11. Summary of values'!J61,NA()) -> 53240 | F156: =IF('Data Simulation results'!$AB156,'11. Summary of values'!K61,NA()) -> 58564 | G156: =IF('Data Simulation results'!$AB156,'11. Summary of values'!L61,NA()) -> 5746091.637 | H156: =IF('Data Simulation results'!$AB156,'11. Summary of values'!M61,NA()) -> 70862.44 | I156: =IF('Data Simulation results'!$AB156,'11. Summary of values'!N61,NA()) -> 30058961.27 | J156: =IF('Data Simulation results'!$AB156,'11. Summary of values'!O61,NA()) -> 85743.5524 | K156: =IF('Data Simulation results'!$AB156,'11. Summary of values'!P61,NA()) -> 10386759.58 | L156: =IF('Data Simulation results'!$AB156,'11. Summary of values'!Q61,NA()) -> 9037355.537 | M156: =IF('Data Simulation results'!$AB156,'11. Summary of values'!R61,NA()) -> 33096153.79 | N156: =IF('Data Simulation results'!$AB156,'11. Summary of values'!S61,NA()) -> 251074.2701 | O156: =IF('Data Simulation results'!$AB156,'11. Summary of values'!T61,NA()) -> 53113192.63 | P156: =IF('Data Simulation results'!$AB156,'11. Summary of values'!U61,NA()) -> 303799.8669 | Q156: =IF('Data Simulation results'!$AB156,'11. Summary of values'!V61,NA()) -> 13740089.18 | R156: =IF('Data Simulation results'!$AB156,'11. Summary of values'!W61,NA()) -> 367597.8389 | S156: =IF('Data Simulation results'!$AB156,'11. Summary of values'!X61,NA()) -> 22062762.79 | T156: =IF('Data Simulation results'!$AB156,'11. Summary of values'!Y61,NA()) -> 444793.3851 | U156: =IF('Data Simulation results'!$AB156,'11. Summary of values'!Z61,NA()) -> 94337897.02 | V156: =IF('Data Simulation results'!$AB156,'11. Summary of values'!AA61,NA()) -> 21644960.91 | W156: =IF('Data Simulation results'!$AB156,'11. Summary of values'!AB61,NA()) -> 85842899.35 | X156: =IF('Data Simulation results'!$AB156,'11. Summary of values'!AC61,NA()) -> 651221.9951 | Y156: =IF('Data Simulation results'!$AB156,'11. Summary of values'!AD61,NA()) -> 716344.1946 | Z156: =IF('Data Simulation results'!$AB156,'11. Summary of values'!AE61,NA()) -> 787978.6141 | AA156: =IF('Data Simulation results'!$AB156,'11. Summary of values'!AF61,NA()) -> 213985442.4 | AB156: ='3. Simulation results'!K166 -> TRUE
A159: Net Cash Flows
B160: ='11. Summary of values'!G10 -> 2023 | C160: ='11. Summary of values'!H10 -> 2024 | D160: ='11. Summary of values'!I10 -> 2025 | E160: ='11. Summary of values'!J10 -> 2026 | F160: ='11. Summary of values'!K10 -> 2027 | G160: ='11. Summary of values'!L10 -> 2028 | H160: ='11. Summary of values'!M10 -> 2029 | I160: ='11. Summary of values'!N10 -> 2030 | J160: ='11. Summary of values'!O10 -> 2031 | K160: ='11. Summary of values'!P10 -> 2032 | L160: ='11. Summary of values'!Q10 -> 2033 | M160: ='11. Summary of values'!R10 -> 2034 | N160: ='11. Summary of values'!S10 -> 2035 | O160: ='11. Summary of values'!T10 -> 2036 | P160: ='11. Summary of values'!U10 -> 2037 | Q160: ='11. Summary of values'!V10 -> 2038 | R160: ='11. Summary of values'!W10 -> 2039 | S160: ='11. Summary of values'!X10 -> 2040 | T160: ='11. Summary of values'!Y10 -> 2041 | U160: ='11. Summary of values'!Z10 -> 2042 | V160: ='11. Summary of values'!AA10 -> 2043 | W160: ='11. Summary of values'!AB10 -> 2044 | X160: ='11. Summary of values'!AC10 -> 2045 | Y160: ='11. Summary of values'!AD10 -> 2046 | Z160: ='11. Summary of values'!AE10 -> 2047 | AA160: ='11. Summary of values'!AF10 -> 2048
A161: ='11. Summary of values'!F82 -> Mini grid | B161: =IF('Data Simulation results'!$AB161,'11. Summary of values'!G82,NA()) -> -85547660 | C161: =IF('Data Simulation results'!$AB161,'11. Summary of values'!H82,NA()) -> 3076351 | D161: =IF('Data Simulation results'!$AB161,'11. Summary of values'!I82,NA()) -> 3681544.382 | E161: =IF('Data Simulation results'!$AB161,'11. Summary of values'!J82,NA()) -> 4453012.129 | F161: =IF('Data Simulation results'!$AB161,'11. Summary of values'!K82,NA()) -> 5359928.94 | G161: =IF('Data Simulation results'!$AB161,'11. Summary of values'!L82,NA()) -> 6351768.14 | H161: =IF('Data Simulation results'!$AB161,'11. Summary of values'!M82,NA()) -> 7652817.712 | I161: =IF('Data Simulation results'!$AB161,'11. Summary of values'!N82,NA()) -> -20823132.09 | J161: =IF('Data Simulation results'!$AB161,'11. Summary of values'!O82,NA()) -> 10869031.84 | K161: =IF('Data Simulation results'!$AB161,'11. Summary of values'!P82,NA()) -> 2668682.465 | L161: =IF('Data Simulation results'!$AB161,'11. Summary of values'!Q82,NA()) -> 15416919.46 | M161: =IF('Data Simulation results'!$AB161,'11. Summary of values'!R82,NA()) -> -14704306.2 | N161: =IF('Data Simulation results'!$AB161,'11. Summary of values'!S82,NA()) -> 21578089.98 | O161: =IF('Data Simulation results'!$AB161,'11. Summary of values'!T82,NA()) -> -27281426.57 | P161: =IF('Data Simulation results'!$AB161,'11. Summary of values'!U82,NA()) -> 30287990.18 | Q161: =IF('Data Simulation results'!$AB161,'11. Summary of values'!V82,NA()) -> 35836318.22 | R161: =IF('Data Simulation results'!$AB161,'11. Summary of values'!W82,NA()) -> 42415522.67 | S161: =IF('Data Simulation results'!$AB161,'11. Summary of values'!X82,NA()) -> 28446255.23 | T161: =IF('Data Simulation results'!$AB161,'11. Summary of values'!Y82,NA()) -> 59117320.13 | U161: =IF('Data Simulation results'!$AB161,'11. Summary of values'!Z82,NA()) -> -24028683.47 | V161: =IF('Data Simulation results'!$AB161,'11. Summary of values'!AA82,NA()) -> 82321582.32 | W161: =IF('Data Simulation results'!$AB161,'11. Summary of values'!AB82,NA()) -> 11816431.43 | X161: =IF('Data Simulation results'!$AB161,'11. Summary of values'!AC82,NA()) -> 114320608.7 | Y161: =IF('Data Simulation results'!$AB161,'11. Summary of values'!AD82,NA()) -> 134647242.4 | Z161: =IF('Data Simulation results'!$AB161,'11. Summary of values'!AE82,NA()) -> 158443775.1 | AA161: =IF('Data Simulation results'!$AB161,'11. Summary of values'!AF82,NA()) -> -26686059.42 | AB161: ='3. Simulation results'!N178 -> TRUE
A162: ='11. Summary of values'!F83 -> SHS1 | B162: =IF('Data Simulation results'!$AB162,'11. Summary of values'!G83,NA()) -> -6558369.077 | C162: =IF('Data Simulation results'!$AB162,'11. Summary of values'!H83,NA()) -> 3936030.184 | D162: =IF('Data Simulation results'!$AB162,'11. Summary of values'!I83,NA()) -> 3873010.984 | E162: =IF('Data Simulation results'!$AB162,'11. Summary of values'!J83,NA()) -> 826694.8947 | F162: =IF('Data Simulation results'!$AB162,'11. Summary of values'!K83,NA()) -> 0 | G162: =IF('Data Simulation results'!$AB162,'11. Summary of values'!L83,NA()) -> -1773081.48 | H162: =IF('Data Simulation results'!$AB162,'11. Summary of values'!M83,NA()) -> 1754796.409 | I162: =IF('Data Simulation results'!$AB162,'11. Summary of values'!N83,NA()) -> 1595403.848 | J162: =IF('Data Simulation results'!$AB162,'11. Summary of values'!O83,NA()) -> 188257.6927 | K162: =IF('Data Simulation results'!$AB162,'11. Summary of values'!P83,NA()) -> 0 | L162: =IF('Data Simulation results'!$AB162,'11. Summary of values'!Q83,NA()) -> -2602491.123 | M162: =IF('Data Simulation results'!$AB162,'11. Summary of values'!R83,NA()) -> 2699960.998 | N162: =IF('Data Simulation results'!$AB162,'11. Summary of values'!S83,NA()) -> 2448556.389 | O162: =IF('Data Simulation results'!$AB162,'11. Summary of values'!T83,NA()) -> 214459.1438 | P162: =IF('Data Simulation results'!$AB162,'11. Summary of values'!U83,NA()) -> 0 | Q162: =IF('Data Simulation results'!$AB162,'11. Summary of values'!V83,NA()) -> -3778672.21 | R162: =IF('Data Simulation results'!$AB162,'11. Summary of values'!W83,NA()) -> 3561441.411 | S162: =IF('Data Simulation results'!$AB162,'11. Summary of values'!X83,NA()) -> 4585499.079 | T162: =IF('Data Simulation results'!$AB162,'11. Summary of values'!Y83,NA()) -> 679614.6313 | U162: =IF('Data Simulation results'!$AB162,'11. Summary of values'!Z83,NA()) -> 0 | V162: =IF('Data Simulation results'!$AB162,'11. Summary of values'!AA83,NA()) -> -5976301.313 | W162: =IF('Data Simulation results'!$AB162,'11. Summary of values'!AB83,NA()) -> 5413163.574 | X162: =IF('Data Simulation results'!$AB162,'11. Summary of values'!AC83,NA()) -> 7346229.709 | Y162: =IF('Data Simulation results'!$AB162,'11. Summary of values'!AD83,NA()) -> 1331738.724 | Z162: =IF('Data Simulation results'!$AB162,'11. Summary of values'!AE83,NA()) -> 0 | AA162: =IF('Data Simulation results'!$AB162,'11. Summary of values'!AF83,NA()) -> 0 | AB162: ='3. Simulation results'!N180 -> TRUE
A163: ='11. Summary of values'!F84 -> SHS2 | B163: =IF('Data Simulation results'!$AB163,'11. Summary of values'!G84,NA()) -> -14330367 | C163: =IF('Data Simulation results'!$AB163,'11. Summary of values'!H84,NA()) -> 8077761.84 | D163: =IF('Data Simulation results'!$AB163,'11. Summary of values'!I84,NA()) -> 8017455.84 | E163: =IF('Data Simulation results'!$AB163,'11. Summary of values'!J84,NA()) -> 1708367.52 | F163: =IF('Data Simulation results'!$AB163,'11. Summary of values'!K84,NA()) -> 0 | G163: =IF('Data Simulation results'!$AB163,'11. Summary of values'!L84,NA()) -> -888254.3731 | H163: =IF('Data Simulation results'!$AB163,'11. Summary of values'!M84,NA()) -> 16766211.04 | I163: =IF('Data Simulation results'!$AB163,'11. Summary of values'!N84,NA()) -> 16501646.12 | J163: =IF('Data Simulation results'!$AB163,'11. Summary of values'!O84,NA()) -> 3753976.378 | K163: =IF('Data Simulation results'!$AB163,'11. Summary of values'!P84,NA()) -> 0 | L163: =IF('Data Simulation results'!$AB163,'11. Summary of values'!Q84,NA()) -> -2057680.212 | M163: =IF('Data Simulation results'!$AB163,'11. Summary of values'!R84,NA()) -> 22862128.59 | N163: =IF('Data Simulation results'!$AB163,'11. Summary of values'!S84,NA()) -> 22449350.04 | O163: =IF('Data Simulation results'!$AB163,'11. Summary of values'!T84,NA()) -> 5097439.954 | P163: =IF('Data Simulation results'!$AB163,'11. Summary of values'!U84,NA()) -> 0 | Q163: =IF('Data Simulation results'!$AB163,'11. Summary of values'!V84,NA()) -> -3301366.128 | R163: =IF('Data Simulation results'!$AB163,'11. Summary of values'!W84,NA()) -> 30430629.53 | S163: =IF('Data Simulation results'!$AB163,'11. Summary of values'!X84,NA()) -> 29787512.93 | T163: =IF('Data Simulation results'!$AB163,'11. Summary of values'!Y84,NA()) -> 7965618.204 | U163: =IF('Data Simulation results'!$AB163,'11. Summary of values'!Z84,NA()) -> 0 | V163: =IF('Data Simulation results'!$AB163,'11. Summary of values'!AA84,NA()) -> -4273751.236 | W163: =IF('Data Simulation results'!$AB163,'11. Summary of values'!AB84,NA()) -> 50194051.77 | X163: =IF('Data Simulation results'!$AB163,'11. Summary of values'!AC84,NA()) -> 49718935.54 | Y163: =IF('Data Simulation results'!$AB163,'11. Summary of values'!AD84,NA()) -> 11519052.69 | Z163: =IF('Data Simulation results'!$AB163,'11. Summary of values'!AE84,NA()) -> 0 | AA163: =IF('Data Simulation results'!$AB163,'11. Summary of values'!AF84,NA()) -> 0 | AB163: ='3. Simulation results'!N182 -> TRUE
A164: ='11. Summary of values'!F85 -> SHS1 + SHS2 | B164: =IF('Data Simulation results'!$AB164,'11. Summary of values'!G85,NA()) -> -20888736.08 | C164: =IF('Data Simulation results'!$AB164,'11. Summary of values'!H85,NA()) -> 12013792.02 | D164: =IF('Data Simulation results'!$AB164,'11. Summary of values'!I85,NA()) -> 11890466.82 | E164: =IF('Data Simulation results'!$AB164,'11. Summary of values'!J85,NA()) -> 2535062.415 | F164: =IF('Data Simulation results'!$AB164,'11. Summary of values'!K85,NA()) -> 0 | G164: =IF('Data Simulation results'!$AB164,'11. Summary of values'!L85,NA()) -> -2661335.853 | H164: =IF('Data Simulation results'!$AB164,'11. Summary of values'!M85,NA()) -> 18521007.45 | I164: =IF('Data Simulation results'!$AB164,'11. Summary of values'!N85,NA()) -> 18097049.97 | J164: =IF('Data Simulation results'!$AB164,'11. Summary of values'!O85,NA()) -> 3942234.071 | K164: =IF('Data Simulation results'!$AB164,'11. Summary of values'!P85,NA()) -> 0 | L164: =IF('Data Simulation results'!$AB164,'11. Summary of values'!Q85,NA()) -> -4660171.335 | M164: =IF('Data Simulation results'!$AB164,'11. Summary of values'!R85,NA()) -> 25562089.58 | N164: =IF('Data Simulation results'!$AB164,'11. Summary of values'!S85,NA()) -> 24897906.43 | O164: =IF('Data Simulation results'!$AB164,'11. Summary of values'!T85,NA()) -> 5311899.098 | P164: =IF('Data Simulation results'!$AB164,'11. Summary of values'!U85,NA()) -> 0 | Q164: =IF('Data Simulation results'!$AB164,'11. Summary of values'!V85,NA()) -> -7080038.338 | R164: =IF('Data Simulation results'!$AB164,'11. Summary of values'!W85,NA()) -> 33992070.94 | S164: =IF('Data Simulation results'!$AB164,'11. Summary of values'!X85,NA()) -> 34373012.01 | T164: =IF('Data Simulation results'!$AB164,'11. Summary of values'!Y85,NA()) -> 8645232.836 | U164: =IF('Data Simulation results'!$AB164,'11. Summary of values'!Z85,NA()) -> 0 | V164: =IF('Data Simulation results'!$AB164,'11. Summary of values'!AA85,NA()) -> -10250052.55 | W164: =IF('Data Simulation results'!$AB164,'11. Summary of values'!AB85,NA()) -> 55607215.34 | X164: =IF('Data Simulation results'!$AB164,'11. Summary of values'!AC85,NA()) -> 57065165.25 | Y164: =IF('Data Simulation results'!$AB164,'11. Summary of values'!AD85,NA()) -> 12850791.42 | Z164: =IF('Data Simulation results'!$AB164,'11. Summary of values'!AE85,NA()) -> 0 | AA164: =IF('Data Simulation results'!$AB164,'11. Summary of values'!AF85,NA()) -> 0 | AB164: ='3. Simulation results'!N184 -> TRUE
A165: ='11. Summary of values'!F86 -> Mini grid + SHS1 | B165: =IF('Data Simulation results'!$AB165,'11. Summary of values'!G86,NA()) -> -92106029.08 | C165: =IF('Data Simulation results'!$AB165,'11. Summary of values'!H86,NA()) -> 7012381.184 | D165: =IF('Data Simulation results'!$AB165,'11. Summary of values'!I86,NA()) -> 7554555.366 | E165: =IF('Data Simulation results'!$AB165,'11. Summary of values'!J86,NA()) -> 5279707.024 | F165: =IF('Data Simulation results'!$AB165,'11. Summary of values'!K86,NA()) -> 5359928.94 | G165: =IF('Data Simulation results'!$AB165,'11. Summary of values'!L86,NA()) -> 4578686.66 | H165: =IF('Data Simulation results'!$AB165,'11. Summary of values'!M86,NA()) -> 9407614.122 | I165: =IF('Data Simulation results'!$AB165,'11. Summary of values'!N86,NA()) -> -19227728.24 | J165: =IF('Data Simulation results'!$AB165,'11. Summary of values'!O86,NA()) -> 11057289.53 | K165: =IF('Data Simulation results'!$AB165,'11. Summary of values'!P86,NA()) -> 2668682.465 | L165: =IF('Data Simulation results'!$AB165,'11. Summary of values'!Q86,NA()) -> 12814428.34 | M165: =IF('Data Simulation results'!$AB165,'11. Summary of values'!R86,NA()) -> -12004345.2 | N165: =IF('Data Simulation results'!$AB165,'11. Summary of values'!S86,NA()) -> 24026646.37 | O165: =IF('Data Simulation results'!$AB165,'11. Summary of values'!T86,NA()) -> -27066967.42 | P165: =IF('Data Simulation results'!$AB165,'11. Summary of values'!U86,NA()) -> 30287990.18 | Q165: =IF('Data Simulation results'!$AB165,'11. Summary of values'!V86,NA()) -> 32057646.01 | R165: =IF('Data Simulation results'!$AB165,'11. Summary of values'!W86,NA()) -> 45976964.09 | S165: =IF('Data Simulation results'!$AB165,'11. Summary of values'!X86,NA()) -> 33031754.31 | T165: =IF('Data Simulation results'!$AB165,'11. Summary of values'!Y86,NA()) -> 59796934.76 | U165: =IF('Data Simulation results'!$AB165,'11. Summary of values'!Z86,NA()) -> -24028683.47 | V165: =IF('Data Simulation results'!$AB165,'11. Summary of values'!AA86,NA()) -> 76345281.01 | W165: =IF('Data Simulation results'!$AB165,'11. Summary of values'!AB86,NA()) -> 17229595.01 | X165: =IF('Data Simulation results'!$AB165,'11. Summary of values'!AC86,NA()) -> 121666838.4 | Y165: =IF('Data Simulation results'!$AB165,'11. Summary of values'!AD86,NA()) -> 135978981.1 | Z165: =IF('Data Simulation results'!$AB165,'11. Summary of values'!AE86,NA()) -> 158443775.1 | AA165: =IF('Data Simulation results'!$AB165,'11. Summary of values'!AF86,NA()) -> -26686059.42 | AB165: ='3. Simulation results'!N186 -> TRUE
A166: ='11. Summary of values'!F87 -> Mini grid + SHS2 | B166: =IF('Data Simulation results'!$AB166,'11. Summary of values'!G87,NA()) -> -99878027 | C166: =IF('Data Simulation results'!$AB166,'11. Summary of values'!H87,NA()) -> 11154112.84 | D166: =IF('Data Simulation results'!$AB166,'11. Summary of values'!I87,NA()) -> 11699000.22 | E166: =IF('Data Simulation results'!$AB166,'11. Summary of values'!J87,NA()) -> 6161379.649 | F166: =IF('Data Simulation results'!$AB166,'11. Summary of values'!K87,NA()) -> 5359928.94 | G166: =IF('Data Simulation results'!$AB166,'11. Summary of values'!L87,NA()) -> 5463513.767 | H166: =IF('Data Simulation results'!$AB166,'11. Summary of values'!M87,NA()) -> 24419028.75 | I166: =IF('Data Simulation results'!$AB166,'11. Summary of values'!N87,NA()) -> -4321485.974 | J166: =IF('Data Simulation results'!$AB166,'11. Summary of values'!O87,NA()) -> 14623008.22 | K166: =IF('Data Simulation results'!$AB166,'11. Summary of values'!P87,NA()) -> 2668682.465 | L166: =IF('Data Simulation results'!$AB166,'11. Summary of values'!Q87,NA()) -> 13359239.25 | M166: =IF('Data Simulation results'!$AB166,'11. Summary of values'!R87,NA()) -> 8157822.386 | N166: =IF('Data Simulation results'!$AB166,'11. Summary of values'!S87,NA()) -> 44027440.01 | O166: =IF('Data Simulation results'!$AB166,'11. Summary of values'!T87,NA()) -> -22183986.61 | P166: =IF('Data Simulation results'!$AB166,'11. Summary of values'!U87,NA()) -> 30287990.18 | Q166: =IF('Data Simulation results'!$AB166,'11. Summary of values'!V87,NA()) -> 32534952.09 | R166: =IF('Data Simulation results'!$AB166,'11. Summary of values'!W87,NA()) -> 72846152.2 | S166: =IF('Data Simulation results'!$AB166,'11. Summary of values'!X87,NA()) -> 58233768.16 | T166: =IF('Data Simulation results'!$AB166,'11. Summary of values'!Y87,NA()) -> 67082938.34 | U166: =IF('Data Simulation results'!$AB166,'11. Summary of values'!Z87,NA()) -> -24028683.47 | V166: =IF('Data Simulation results'!$AB166,'11. Summary of values'!AA87,NA()) -> 78047831.08 | W166: =IF('Data Simulation results'!$AB166,'11. Summary of values'!AB87,NA()) -> 62010483.2 | X166: =IF('Data Simulation results'!$AB166,'11. Summary of values'!AC87,NA()) -> 164039544.2 | Y166: =IF('Data Simulation results'!$AB166,'11. Summary of values'!AD87,NA()) -> 146166295.1 | Z166: =IF('Data Simulation results'!$AB166,'11. Summary of values'!AE87,NA()) -> 158443775.1 | AA166: =IF('Data Simulation results'!$AB166,'11. Summary of values'!AF87,NA()) -> -26686059.42 | AB166: ='3. Simulation results'!N188 -> TRUE
A167: ='11. Summary of values'!F88 -> Total | B167: =IF('Data Simulation results'!$AB167,'11. Summary of values'!G88,NA()) -> -106436396.1 | C167: =IF('Data Simulation results'!$AB167,'11. Summary of values'!H88,NA()) -> 15090143.02 | D167: =IF('Data Simulation results'!$AB167,'11. Summary of values'!I88,NA()) -> 15572011.21 | E167: =IF('Data Simulation results'!$AB167,'11. Summary of values'!J88,NA()) -> 6988074.544 | F167: =IF('Data Simulation results'!$AB167,'11. Summary of values'!K88,NA()) -> 5359928.94 | G167: =IF('Data Simulation results'!$AB167,'11. Summary of values'!L88,NA()) -> 3690432.287 | H167: =IF('Data Simulation results'!$AB167,'11. Summary of values'!M88,NA()) -> 26173825.16 | I167: =IF('Data Simulation results'!$AB167,'11. Summary of values'!N88,NA()) -> -2726082.126 | J167: =IF('Data Simulation results'!$AB167,'11. Summary of values'!O88,NA()) -> 14811265.91 | K167: =IF('Data Simulation results'!$AB167,'11. Summary of values'!P88,NA()) -> 2668682.465 | L167: =IF('Data Simulation results'!$AB167,'11. Summary of values'!Q88,NA()) -> 10756748.13 | M167: =IF('Data Simulation results'!$AB167,'11. Summary of values'!R88,NA()) -> 10857783.38 | N167: =IF('Data Simulation results'!$AB167,'11. Summary of values'!S88,NA()) -> 46475996.4 | O167: =IF('Data Simulation results'!$AB167,'11. Summary of values'!T88,NA()) -> -21969527.47 | P167: =IF('Data Simulation results'!$AB167,'11. Summary of values'!U88,NA()) -> 30287990.18 | Q167: =IF('Data Simulation results'!$AB167,'11. Summary of values'!V88,NA()) -> 28756279.88 | R167: =IF('Data Simulation results'!$AB167,'11. Summary of values'!W88,NA()) -> 76407593.61 | S167: =IF('Data Simulation results'!$AB167,'11. Summary of values'!X88,NA()) -> 62819267.24 | T167: =IF('Data Simulation results'!$AB167,'11. Summary of values'!Y88,NA()) -> 67762552.97 | U167: =IF('Data Simulation results'!$AB167,'11. Summary of values'!Z88,NA()) -> -24028683.47 | V167: =IF('Data Simulation results'!$AB167,'11. Summary of values'!AA88,NA()) -> 72071529.77 | W167: =IF('Data Simulation results'!$AB167,'11. Summary of values'!AB88,NA()) -> 67423646.78 | X167: =IF('Data Simulation results'!$AB167,'11. Summary of values'!AC88,NA()) -> 171385774 | Y167: =IF('Data Simulation results'!$AB167,'11. Summary of values'!AD88,NA()) -> 147498033.8 | Z167: =IF('Data Simulation results'!$AB167,'11. Summary of values'!AE88,NA()) -> 158443775.1 | AA167: =IF('Data Simulation results'!$AB167,'11. Summary of values'!AF88,NA()) -> -26686059.42 | AB167: ='3. Simulation results'!N190 -> TRUE
A170: Cumulated Cash Flow
B171: ='11. Summary of values'!G10 -> 2023 | C171: ='11. Summary of values'!H10 -> 2024 | D171: ='11. Summary of values'!I10 -> 2025 | E171: ='11. Summary of values'!J10 -> 2026 | F171: ='11. Summary of values'!K10 -> 2027 | G171: ='11. Summary of values'!L10 -> 2028 | H171: ='11. Summary of values'!M10 -> 2029 | I171: ='11. Summary of values'!N10 -> 2030 | J171: ='11. Summary of values'!O10 -> 2031 | K171: ='11. Summary of values'!P10 -> 2032 | L171: ='11. Summary of values'!Q10 -> 2033 | M171: ='11. Summary of values'!R10 -> 2034 | N171: ='11. Summary of values'!S10 -> 2035 | O171: ='11. Summary of values'!T10 -> 2036 | P171: ='11. Summary of values'!U10 -> 2037 | Q171: ='11. Summary of values'!V10 -> 2038 | R171: ='11. Summary of values'!W10 -> 2039 | S171: ='11. Summary of values'!X10 -> 2040 | T171: ='11. Summary of values'!Y10 -> 2041 | U171: ='11. Summary of values'!Z10 -> 2042 | V171: ='11. Summary of values'!AA10 -> 2043 | W171: ='11. Summary of values'!AB10 -> 2044 | X171: ='11. Summary of values'!AC10 -> 2045 | Y171: ='11. Summary of values'!AD10 -> 2046 | Z171: ='11. Summary of values'!AE10 -> 2047 | AA171: ='11. Summary of values'!AF10 -> 2048
A172: ='11. Summary of values'!F91 -> Mini grid | B172: =IF('Data Simulation results'!$AB172,'11. Summary of values'!G91,NA()) -> -85547660 | C172: =IF('Data Simulation results'!$AB172,'11. Summary of values'!H91,NA()) -> -82471309 | D172: =IF('Data Simulation results'!$AB172,'11. Summary of values'!I91,NA()) -> -78789764.62 | E172: =IF('Data Simulation results'!$AB172,'11. Summary of values'!J91,NA()) -> -74336752.49 | F172: =IF('Data Simulation results'!$AB172,'11. Summary of values'!K91,NA()) -> -68976823.55 | G172: =IF('Data Simulation results'!$AB172,'11. Summary of values'!L91,NA()) -> -62625055.41 | H172: =IF('Data Simulation results'!$AB172,'11. Summary of values'!M91,NA()) -> -54972237.7 | I172: =IF('Data Simulation results'!$AB172,'11. Summary of values'!N91,NA()) -> -75795369.79 | J172: =IF('Data Simulation results'!$AB172,'11. Summary of values'!O91,NA()) -> -64926337.95 | K172: =IF('Data Simulation results'!$AB172,'11. Summary of values'!P91,NA()) -> -62257655.49 | L172: =IF('Data Simulation results'!$AB172,'11. Summary of values'!Q91,NA()) -> -46840736.02 | M172: =IF('Data Simulation results'!$AB172,'11. Summary of values'!R91,NA()) -> -61545042.22 | N172: =IF('Data Simulation results'!$AB172,'11. Summary of values'!S91,NA()) -> -39966952.25 | O172: =IF('Data Simulation results'!$AB172,'11. Summary of values'!T91,NA()) -> -67248378.81 | P172: =IF('Data Simulation results'!$AB172,'11. Summary of values'!U91,NA()) -> -36960388.64 | Q172: =IF('Data Simulation results'!$AB172,'11. Summary of values'!V91,NA()) -> -1124070.419 | R172: =IF('Data Simulation results'!$AB172,'11. Summary of values'!W91,NA()) -> 41291452.25 | S172: =IF('Data Simulation results'!$AB172,'11. Summary of values'!X91,NA()) -> 69737707.49 | T172: =IF('Data Simulation results'!$AB172,'11. Summary of values'!Y91,NA()) -> 128855027.6 | U172: =IF('Data Simulation results'!$AB172,'11. Summary of values'!Z91,NA()) -> 104826344.1 | V172: =IF('Data Simulation results'!$AB172,'11. Summary of values'!AA91,NA()) -> 187147926.5 | W172: =IF('Data Simulation results'!$AB172,'11. Summary of values'!AB91,NA()) -> 198964357.9 | X172: =IF('Data Simulation results'!$AB172,'11. Summary of values'!AC91,NA()) -> 313284966.6 | Y172: =IF('Data Simulation results'!$AB172,'11. Summary of values'!AD91,NA()) -> 447932209 | Z172: =IF('Data Simulation results'!$AB172,'11. Summary of values'!AE91,NA()) -> 606375984.1 | AA172: =IF('Data Simulation results'!$AB172,'11. Summary of values'!AF91,NA()) -> 579689924.6 | AB172: ='3. Simulation results'!N200 -> TRUE
A173: ='11. Summary of values'!F92 -> SHS1 | B173: =IF('Data Simulation results'!$AB173,'11. Summary of values'!G92,NA()) -> -6558369.077 | C173: =IF('Data Simulation results'!$AB173,'11. Summary of values'!H92,NA()) -> -2622338.893 | D173: =IF('Data Simulation results'!$AB173,'11. Summary of values'!I92,NA()) -> 1250672.091 | E173: =IF('Data Simulation results'!$AB173,'11. Summary of values'!J92,NA()) -> 2077366.985 | F173: =IF('Data Simulation results'!$AB173,'11. Summary of values'!K92,NA()) -> 2077366.985 | G173: =IF('Data Simulation results'!$AB173,'11. Summary of values'!L92,NA()) -> 304285.5052 | H173: =IF('Data Simulation results'!$AB173,'11. Summary of values'!M92,NA()) -> 2059081.914 | I173: =IF('Data Simulation results'!$AB173,'11. Summary of values'!N92,NA()) -> 3654485.762 | J173: =IF('Data Simulation results'!$AB173,'11. Summary of values'!O92,NA()) -> 3842743.455 | K173: =IF('Data Simulation results'!$AB173,'11. Summary of values'!P92,NA()) -> 3842743.455 | L173: =IF('Data Simulation results'!$AB173,'11. Summary of values'!Q92,NA()) -> 1240252.332 | M173: =IF('Data Simulation results'!$AB173,'11. Summary of values'!R92,NA()) -> 3940213.33 | N173: =IF('Data Simulation results'!$AB173,'11. Summary of values'!S92,NA()) -> 6388769.719 | O173: =IF('Data Simulation results'!$AB173,'11. Summary of values'!T92,NA()) -> 6603228.863 | P173: =IF('Data Simulation results'!$AB173,'11. Summary of values'!U92,NA()) -> 6603228.863 | Q173: =IF('Data Simulation results'!$AB173,'11. Summary of values'!V92,NA()) -> 2824556.653 | R173: =IF('Data Simulation results'!$AB173,'11. Summary of values'!W92,NA()) -> 6385998.065 | S173: =IF('Data Simulation results'!$AB173,'11. Summary of values'!X92,NA()) -> 10971497.14 | T173: =IF('Data Simulation results'!$AB173,'11. Summary of values'!Y92,NA()) -> 11651111.77 | U173: =IF('Data Simulation results'!$AB173,'11. Summary of values'!Z92,NA()) -> 11651111.77 | V173: =IF('Data Simulation results'!$AB173,'11. Summary of values'!AA92,NA()) -> 5674810.462 | W173: =IF('Data Simulation results'!$AB173,'11. Summary of values'!AB92,NA()) -> 11087974.04 | X173: =IF('Data Simulation results'!$AB173,'11. Summary of values'!AC92,NA()) -> 18434203.74 | Y173: =IF('Data Simulation results'!$AB173,'11. Summary of values'!AD92,NA()) -> 19765942.47 | Z173: =IF('Data Simulation results'!$AB173,'11. Summary of values'!AE92,NA()) -> 19765942.47 | AA173: =IF('Data Simulation results'!$AB173,'11. Summary of values'!AF92,NA()) -> 19765942.47 | AB173: ='3. Simulation results'!N202 -> TRUE
A174: ='11. Summary of values'!F93 -> SHS2 | B174: =IF('Data Simulation results'!$AB174,'11. Summary of values'!G93,NA()) -> -14330367 | C174: =IF('Data Simulation results'!$AB174,'11. Summary of values'!H93,NA()) -> -6252605.16 | D174: =IF('Data Simulation results'!$AB174,'11. Summary of values'!I93,NA()) -> 1764850.68 | E174: =IF('Data Simulation results'!$AB174,'11. Summary of values'!J93,NA()) -> 3473218.2 | F174: =IF('Data Simulation results'!$AB174,'11. Summary of values'!K93,NA()) -> 3473218.2 | G174: =IF('Data Simulation results'!$AB174,'11. Summary of values'!L93,NA()) -> 2584963.827 | H174: =IF('Data Simulation results'!$AB174,'11. Summary of values'!M93,NA()) -> 19351174.87 | I174: =IF('Data Simulation results'!$AB174,'11. Summary of values'!N93,NA()) -> 35852820.98 | J174: =IF('Data Simulation results'!$AB174,'11. Summary of values'!O93,NA()) -> 39606797.36 | K174: =IF('Data Simulation results'!$AB174,'11. Summary of values'!P93,NA()) -> 39606797.36 | L174: =IF('Data Simulation results'!$AB174,'11. Summary of values'!Q93,NA()) -> 37549117.15 | M174: =IF('Data Simulation results'!$AB174,'11. Summary of values'!R93,NA()) -> 60411245.74 | N174: =IF('Data Simulation results'!$AB174,'11. Summary of values'!S93,NA()) -> 82860595.77 | O174: =IF('Data Simulation results'!$AB174,'11. Summary of values'!T93,NA()) -> 87958035.73 | P174: =IF('Data Simulation results'!$AB174,'11. Summary of values'!U93,NA()) -> 87958035.73 | Q174: =IF('Data Simulation results'!$AB174,'11. Summary of values'!V93,NA()) -> 84656669.6 | R174: =IF('Data Simulation results'!$AB174,'11. Summary of values'!W93,NA()) -> 115087299.1 | S174: =IF('Data Simulation results'!$AB174,'11. Summary of values'!X93,NA()) -> 144874812.1 | T174: =IF('Data Simulation results'!$AB174,'11. Summary of values'!Y93,NA()) -> 152840430.3 | U174: =IF('Data Simulation results'!$AB174,'11. Summary of values'!Z93,NA()) -> 152840430.3 | V174: =IF('Data Simulation results'!$AB174,'11. Summary of values'!AA93,NA()) -> 148566679 | W174: =IF('Data Simulation results'!$AB174,'11. Summary of values'!AB93,NA()) -> 198760730.8 | X174: =IF('Data Simulation results'!$AB174,'11. Summary of values'!AC93,NA()) -> 248479666.3 | Y174: =IF('Data Simulation results'!$AB174,'11. Summary of values'!AD93,NA()) -> 259998719 | Z174: =IF('Data Simulation results'!$AB174,'11. Summary of values'!AE93,NA()) -> 259998719 | AA174: =IF('Data Simulation results'!$AB174,'11. Summary of values'!AF93,NA()) -> 259998719 | AB174: ='3. Simulation results'!N204 -> TRUE
A175: ='11. Summary of values'!F94 -> SHS1 + SHS2 | B175: =IF('Data Simulation results'!$AB175,'11. Summary of values'!G94,NA()) -> -20888736.08 | C175: =IF('Data Simulation results'!$AB175,'11. Summary of values'!H94,NA()) -> -8874944.053 | D175: =IF('Data Simulation results'!$AB175,'11. Summary of values'!I94,NA()) -> 3015522.771 | E175: =IF('Data Simulation results'!$AB175,'11. Summary of values'!J94,NA()) -> 5550585.185 | F175: =IF('Data Simulation results'!$AB175,'11. Summary of values'!K94,NA()) -> 5550585.185 | G175: =IF('Data Simulation results'!$AB175,'11. Summary of values'!L94,NA()) -> 2889249.332 | H175: =IF('Data Simulation results'!$AB175,'11. Summary of values'!M94,NA()) -> 21410256.78 | I175: =IF('Data Simulation results'!$AB175,'11. Summary of values'!N94,NA()) -> 39507306.75 | J175: =IF('Data Simulation results'!$AB175,'11. Summary of values'!O94,NA()) -> 43449540.82 | K175: =IF('Data Simulation results'!$AB175,'11. Summary of values'!P94,NA()) -> 43449540.82 | L175: =IF('Data Simulation results'!$AB175,'11. Summary of values'!Q94,NA()) -> 38789369.48 | M175: =IF('Data Simulation results'!$AB175,'11. Summary of values'!R94,NA()) -> 64351459.07 | N175: =IF('Data Simulation results'!$AB175,'11. Summary of values'!S94,NA()) -> 89249365.49 | O175: =IF('Data Simulation results'!$AB175,'11. Summary of values'!T94,NA()) -> 94561264.59 | P175: =IF('Data Simulation results'!$AB175,'11. Summary of values'!U94,NA()) -> 94561264.59 | Q175: =IF('Data Simulation results'!$AB175,'11. Summary of values'!V94,NA()) -> 87481226.25 | R175: =IF('Data Simulation results'!$AB175,'11. Summary of values'!W94,NA()) -> 121473297.2 | S175: =IF('Data Simulation results'!$AB175,'11. Summary of values'!X94,NA()) -> 155846309.2 | T175: =IF('Data Simulation results'!$AB175,'11. Summary of values'!Y94,NA()) -> 164491542 | U175: =IF('Data Simulation results'!$AB175,'11. Summary of values'!Z94,NA()) -> 164491542 | V175: =IF('Data Simulation results'!$AB175,'11. Summary of values'!AA94,NA()) -> 154241489.5 | W175: =IF('Data Simulation results'!$AB175,'11. Summary of values'!AB94,NA()) -> 209848704.8 | X175: =IF('Data Simulation results'!$AB175,'11. Summary of values'!AC94,NA()) -> 266913870.1 | Y175: =IF('Data Simulation results'!$AB175,'11. Summary of values'!AD94,NA()) -> 279764661.5 | Z175: =IF('Data Simulation results'!$AB175,'11. Summary of values'!AE94,NA()) -> 279764661.5 | AA175: =IF('Data Simulation results'!$AB175,'11. Summary of values'!AF94,NA()) -> 279764661.5 | AB175: ='3. Simulation results'!N206 -> TRUE
A176: ='11. Summary of values'!F95 -> Mini grid + SHS1 | B176: =IF('Data Simulation results'!$AB176,'11. Summary of values'!G95,NA()) -> -92106029.08 | C176: =IF('Data Simulation results'!$AB176,'11. Summary of values'!H95,NA()) -> -85093647.89 | D176: =IF('Data Simulation results'!$AB176,'11. Summary of values'!I95,NA()) -> -77539092.53 | E176: =IF('Data Simulation results'!$AB176,'11. Summary of values'!J95,NA()) -> -72259385.5 | F176: =IF('Data Simulation results'!$AB176,'11. Summary of values'!K95,NA()) -> -66899456.56 | G176: =IF('Data Simulation results'!$AB176,'11. Summary of values'!L95,NA()) -> -62320769.9 | H176: =IF('Data Simulation results'!$AB176,'11. Summary of values'!M95,NA()) -> -52913155.78 | I176: =IF('Data Simulation results'!$AB176,'11. Summary of values'!N95,NA()) -> -72140884.03 | J176: =IF('Data Simulation results'!$AB176,'11. Summary of values'!O95,NA()) -> -61083594.5 | K176: =IF('Data Simulation results'!$AB176,'11. Summary of values'!P95,NA()) -> -58414912.03 | L176: =IF('Data Simulation results'!$AB176,'11. Summary of values'!Q95,NA()) -> -45600483.69 | M176: =IF('Data Simulation results'!$AB176,'11. Summary of values'!R95,NA()) -> -57604828.89 | N176: =IF('Data Simulation results'!$AB176,'11. Summary of values'!S95,NA()) -> -33578182.53 | O176: =IF('Data Simulation results'!$AB176,'11. Summary of values'!T95,NA()) -> -60645149.95 | P176: =IF('Data Simulation results'!$AB176,'11. Summary of values'!U95,NA()) -> -30357159.77 | Q176: =IF('Data Simulation results'!$AB176,'11. Summary of values'!V95,NA()) -> 1700486.234 | R176: =IF('Data Simulation results'!$AB176,'11. Summary of values'!W95,NA()) -> 47677450.32 | S176: =IF('Data Simulation results'!$AB176,'11. Summary of values'!X95,NA()) -> 80709204.63 | T176: =IF('Data Simulation results'!$AB176,'11. Summary of values'!Y95,NA()) -> 140506139.4 | U176: =IF('Data Simulation results'!$AB176,'11. Summary of values'!Z95,NA()) -> 116477455.9 | V176: =IF('Data Simulation results'!$AB176,'11. Summary of values'!AA95,NA()) -> 192822736.9 | W176: =IF('Data Simulation results'!$AB176,'11. Summary of values'!AB95,NA()) -> 210052331.9 | X176: =IF('Data Simulation results'!$AB176,'11. Summary of values'!AC95,NA()) -> 331719170.4 | Y176: =IF('Data Simulation results'!$AB176,'11. Summary of values'!AD95,NA()) -> 467698151.5 | Z176: =IF('Data Simulation results'!$AB176,'11. Summary of values'!AE95,NA()) -> 626141926.5 | AA176: =IF('Data Simulation results'!$AB176,'11. Summary of values'!AF95,NA()) -> 599455867.1 | AB176: ='3. Simulation results'!N208 -> TRUE
A177: ='11. Summary of values'!F96 -> Mini grid + SHS2 | B177: =IF('Data Simulation results'!$AB177,'11. Summary of values'!G96,NA()) -> -99878027 | C177: =IF('Data Simulation results'!$AB177,'11. Summary of values'!H96,NA()) -> -88723914.16 | D177: =IF('Data Simulation results'!$AB177,'11. Summary of values'!I96,NA()) -> -77024913.94 | E177: =IF('Data Simulation results'!$AB177,'11. Summary of values'!J96,NA()) -> -70863534.29 | F177: =IF('Data Simulation results'!$AB177,'11. Summary of values'!K96,NA()) -> -65503605.35 | G177: =IF('Data Simulation results'!$AB177,'11. Summary of values'!L96,NA()) -> -60040091.58 | H177: =IF('Data Simulation results'!$AB177,'11. Summary of values'!M96,NA()) -> -35621062.83 | I177: =IF('Data Simulation results'!$AB177,'11. Summary of values'!N96,NA()) -> -39942548.81 | J177: =IF('Data Simulation results'!$AB177,'11. Summary of values'!O96,NA()) -> -25319540.59 | K177: =IF('Data Simulation results'!$AB177,'11. Summary of values'!P96,NA()) -> -22650858.12 | L177: =IF('Data Simulation results'!$AB177,'11. Summary of values'!Q96,NA()) -> -9291618.873 | M177: =IF('Data Simulation results'!$AB177,'11. Summary of values'!R96,NA()) -> -1133796.487 | N177: =IF('Data Simulation results'!$AB177,'11. Summary of values'!S96,NA()) -> 42893643.53 | O177: =IF('Data Simulation results'!$AB177,'11. Summary of values'!T96,NA()) -> 20709656.91 | P177: =IF('Data Simulation results'!$AB177,'11. Summary of values'!U96,NA()) -> 50997647.09 | Q177: =IF('Data Simulation results'!$AB177,'11. Summary of values'!V96,NA()) -> 83532599.18 | R177: =IF('Data Simulation results'!$AB177,'11. Summary of values'!W96,NA()) -> 156378751.4 | S177: =IF('Data Simulation results'!$AB177,'11. Summary of values'!X96,NA()) -> 214612519.5 | T177: =IF('Data Simulation results'!$AB177,'11. Summary of values'!Y96,NA()) -> 281695457.9 | U177: =IF('Data Simulation results'!$AB177,'11. Summary of values'!Z96,NA()) -> 257666774.4 | V177: =IF('Data Simulation results'!$AB177,'11. Summary of values'!AA96,NA()) -> 335714605.5 | W177: =IF('Data Simulation results'!$AB177,'11. Summary of values'!AB96,NA()) -> 397725088.7 | X177: =IF('Data Simulation results'!$AB177,'11. Summary of values'!AC96,NA()) -> 561764632.9 | Y177: =IF('Data Simulation results'!$AB177,'11. Summary of values'!AD96,NA()) -> 707930928 | Z177: =IF('Data Simulation results'!$AB177,'11. Summary of values'!AE96,NA()) -> 866374703.1 | AA177: =IF('Data Simulation results'!$AB177,'11. Summary of values'!AF96,NA()) -> 839688643.7 | AB177: ='3. Simulation results'!N210 -> TRUE
A178: ='11. Summary of values'!F97 -> Total | B178: =IF('Data Simulation results'!$AB178,'11. Summary of values'!G97,NA()) -> -106436396.1 | C178: =IF('Data Simulation results'!$AB178,'11. Summary of values'!H97,NA()) -> -91346253.05 | D178: =IF('Data Simulation results'!$AB178,'11. Summary of values'!I97,NA()) -> -75774241.85 | E178: =IF('Data Simulation results'!$AB178,'11. Summary of values'!J97,NA()) -> -68786167.3 | F178: =IF('Data Simulation results'!$AB178,'11. Summary of values'!K97,NA()) -> -63426238.36 | G178: =IF('Data Simulation results'!$AB178,'11. Summary of values'!L97,NA()) -> -59735806.08 | H178: =IF('Data Simulation results'!$AB178,'11. Summary of values'!M97,NA()) -> -33561980.92 | I178: =IF('Data Simulation results'!$AB178,'11. Summary of values'!N97,NA()) -> -36288063.04 | J178: =IF('Data Simulation results'!$AB178,'11. Summary of values'!O97,NA()) -> -21476797.13 | K178: =IF('Data Simulation results'!$AB178,'11. Summary of values'!P97,NA()) -> -18808114.67 | L178: =IF('Data Simulation results'!$AB178,'11. Summary of values'!Q97,NA()) -> -8051366.54 | M178: =IF('Data Simulation results'!$AB178,'11. Summary of values'!R97,NA()) -> 2806416.843 | N178: =IF('Data Simulation results'!$AB178,'11. Summary of values'!S97,NA()) -> 49282413.24 | O178: =IF('Data Simulation results'!$AB178,'11. Summary of values'!T97,NA()) -> 27312885.78 | P178: =IF('Data Simulation results'!$AB178,'11. Summary of values'!U97,NA()) -> 57600875.95 | Q178: =IF('Data Simulation results'!$AB178,'11. Summary of values'!V97,NA()) -> 86357155.83 | R178: =IF('Data Simulation results'!$AB178,'11. Summary of values'!W97,NA()) -> 162764749.4 | S178: =IF('Data Simulation results'!$AB178,'11. Summary of values'!X97,NA()) -> 225584016.7 | T178: =IF('Data Simulation results'!$AB178,'11. Summary of values'!Y97,NA()) -> 293346569.7 | U178: =IF('Data Simulation results'!$AB178,'11. Summary of values'!Z97,NA()) -> 269317886.2 | V178: =IF('Data Simulation results'!$AB178,'11. Summary of values'!AA97,NA()) -> 341389416 | W178: =IF('Data Simulation results'!$AB178,'11. Summary of values'!AB97,NA()) -> 408813062.7 | X178: =IF('Data Simulation results'!$AB178,'11. Summary of values'!AC97,NA()) -> 580198836.7 | Y178: =IF('Data Simulation results'!$AB178,'11. Summary of values'!AD97,NA()) -> 727696870.5 | Z178: =IF('Data Simulation results'!$AB178,'11. Summary of values'!AE97,NA()) -> 886140645.6 | AA178: =IF('Data Simulation results'!$AB178,'11. Summary of values'!AF97,NA()) -> 859454586.1 | AB178: ='3. Simulation results'!N212 -> TRUE

Sheet 3. Simulation results
C5: This is where all the main results are displayed. The end user can analyse the different graphs (Number of users, OPEX, CAPEX, Revenue, Net cash flow, and Cumulated cash flow). They can use the filters to display only what he wants on the graphs (Mini-grid, SHS1, SHS2, or the Total). Then, it is possible to find the WACC, NPV, and IRR of the project There are 7 scenarios the end user can analyze: Mini-grid, SHS1, SHS2, SHS1 + SHS2, Mini-grid + SHS1, Mini-grid + SHS2, and Total. The end user can select the scenario he wants to analyze thanks to the graphs, KPI calculation, and value table.
D8: PLEASE NOTE THAT THE RESULTS WILL ONLY BE DISPLAYED IF ALL THE REQUIRED FIELDS IN THE CONTROL TABLE HAVE BEEN FILLED
B10: General Commands
C11: This section display the KPIs for 7 different scenarios: 1. Mini grid 2. SHS1 3. SHS2 4. SHS1 + SHS2 5. Mini grid + SHS1 6. Mini grid + SHS2 7. Total (Mini grid + SHS1 + SHS2) Please select the scenario you want to see in the drop-down list below. The corresponding KPIs are displayed in the purple cells. If you click on the plus icons, different types are cash flows appear so that you have more details. This section will allow you to compare the profitability of these 7 scenarios.
D23: Select one of the scenarios | H23: Total | J23: Generate a report
J24: Click on the following button, and it will generate a report including the most important KPIs, investment and revenue about the chosen scenario
B28: Project Performance, KPIs for different scenarios
D30: WACC | H30: ='11. Summary of values'!G160 -> 0.1127
D31: Net Cash Flow [NGN] | I31: ='11. Summary of values'!G154 -> -106436396.1 | J31: ='11. Summary of values'!H154 -> 15090143.02 | K31: ='11. Summary of values'!I154 -> 15572011.21 | L31: ='11. Summary of values'!J154 -> 6988074.544 | M31: ='11. Summary of values'!K154 -> 5359928.94 | N31: ='11. Summary of values'!L154 -> 3690432.287 | O31: ='11. Summary of values'!M154 -> 26173825.16 | P31: ='11. Summary of values'!N154 -> -2726082.126 | Q31: ='11. Summary of values'!O154 -> 14811265.91 | R31: ='11. Summary of values'!P154 -> 2668682.465 | S31: ='11. Summary of values'!Q154 -> 10756748.13 | T31: ='11. Summary of values'!R154 -> 10857783.38 | U31: ='11. Summary of values'!S154 -> 46475996.4 | V31: ='11. Summary of values'!T154 -> -21969527.47 | W31: ='11. Summary of values'!U154 -> 30287990.18 | X31: ='11. Summary of values'!V154 -> 28756279.88 | Y31: ='11. Summary of values'!W154 -> 76407593.61 | Z31: ='11. Summary of values'!X154 -> 62819267.24 | AA31: ='11. Summary of values'!Y154 -> 67762552.97 | AB31: ='11. Summary of values'!Z154 -> -24028683.47 | AC31: ='11. Summary of values'!AA154 -> 72071529.77 | AD31: ='11. Summary of values'!AB154 -> 67423646.78 | AE31: ='11. Summary of values'!AC154 -> 171385774 | AF31: ='11. Summary of values'!AD154 -> 147498033.8 | AG31: ='11. Summary of values'!AE154 -> 158443775.1 | AH31: ='11. Summary of values'!AF154 -> -26686059.42
D32: Discounted Net Cash Flow [NGN] | I32: ='11. Summary of values'!G156 -> -106436396.1 | J32: ='11. Summary of values'!H156 -> 13561735.44 | K32: ='11. Summary of values'!I156 -> 12577332.19 | L32: ='11. Summary of values'!J156 -> 5072514.124 | M32: ='11. Summary of values'!K156 -> 3496605.85 | N32: ='11. Summary of values'!L156 -> 2163648.963 | O32: ='11. Summary of values'!M156 -> 13791092.42 | P32: ='11. Summary of values'!N156 -> -1290899.162 | Q32: ='11. Summary of values'!O156 -> 6303292.701 | R32: ='11. Summary of values'!P156 -> 1020690.587 | S32: ='11. Summary of values'!Q156 -> 3697431.35 | T32: ='11. Summary of values'!R156 -> 3354147.868 | U32: ='11. Summary of values'!S156 -> 12903028.39 | V32: ='11. Summary of values'!T156 -> -5481577.66 | W32: ='11. Summary of values'!U156 -> 6791680.122 | X32: ='11. Summary of values'!V156 -> 5795105.959 | Y32: ='11. Summary of values'!W156 -> 13838439.31 | Z32: ='11. Summary of values'!X156 -> 10225048.33 | AA32: ='11. Summary of values'!Y156 -> 9912522.244 | AB32: ='11. Summary of values'!Z156 -> -3158975.834 | AC32: ='11. Summary of values'!AA156 -> 8515339.731 | AD32: ='11. Summary of values'!AB156 -> 7159330.142 | AE32: ='11. Summary of values'!AC156 -> 16355236.67 | AF32: ='11. Summary of values'!AD156 -> 12649990.69 | AG32: ='11. Summary of values'!AE156 -> 12212401.34 | AH32: ='11. Summary of values'!AF156 -> -1848554.45
D33: NPV [NGN] | H33: =SUM(I32:AH32) -> 63180211.23
D34: Cummulated Cash Flow [NGN] | I34: ='11. Summary of values'!G155 -> -106436396.1 | J34: ='11. Summary of values'!H155 -> -91346253.05 | K34: ='11. Summary of values'!I155 -> -75774241.85 | L34: ='11. Summary of values'!J155 -> -68786167.3 | M34: ='11. Summary of values'!K155 -> -63426238.36 | N34: ='11. Summary of values'!L155 -> -59735806.08 | O34: ='11. Summary of values'!M155 -> -33561980.92 | P34: ='11. Summary of values'!N155 -> -36288063.04 | Q34: ='11. Summary of values'!O155 -> -21476797.13 | R34: ='11. Summary of values'!P155 -> -18808114.67 | S34: ='11. Summary of values'!Q155 -> -8051366.54 | T34: ='11. Summary of values'!R155 -> 2806416.843 | U34: ='11. Summary of values'!S155 -> 49282413.24 | V34: ='11. Summary of values'!T155 -> 27312885.78 | W34: ='11. Summary of values'!U155 -> 57600875.95 | X34: ='11. Summary of values'!V155 -> 86357155.83 | Y34: ='11. Summary of values'!W155 -> 162764749.4 | Z34: ='11. Summary of values'!X155 -> 225584016.7 | AA34: ='11. Summary of values'!Y155 -> 293346569.7 | AB34: ='11. Summary of values'!Z155 -> 269317886.2 | AC34: ='11. Summary of values'!AA155 -> 341389416 | AD34: ='11. Summary of values'!AB155 -> 408813062.7 | AE34: ='11. Summary of values'!AC155 -> 580198836.7 | AF34: ='11. Summary of values'!AD155 -> 727696870.5 | AG34: ='11. Summary of values'!AE155 -> 886140645.6 | AH34: ='11. Summary of values'!AF155 -> 859454586.1
D35: Project cashflow + Remaining value of Assets [NGN] | I35: ='11. Summary of values'!G157 -> -53485934.48 | J35: ='11. Summary of values'!H157 -> 63860664.03 | K35: ='11. Summary of values'!I157 -> 60162591.62 | L35: ='11. Summary of values'!J157 -> 47398714.37 | M35: ='11. Summary of values'!K157 -> 41590628.18 | N35: ='11. Summary of values'!L157 -> 35741190.93 | O35: ='11. Summary of values'!M157 -> 54044643.22 | P35: ='11. Summary of values'!N157 -> 41939303.55 | Q35: ='11. Summary of values'!O157 -> 53544890.63 | R35: ='11. Summary of values'!P157 -> 42691070.88 | S35: ='11. Summary of values'!Q157 -> 44317326.18 | T35: ='11. Summary of values'!R157 -> 61394839.75 | U35: ='11. Summary of values'!S157 -> 89009923.7 | V35: ='11. Summary of values'!T157 -> 50046012.9 | W35: ='11. Summary of values'!U157 -> 91524066.25 | X35: ='11. Summary of values'!V157 -> 79212891.66 | Y35: ='11. Summary of values'!W157 -> 116084741.1 | Z35: ='11. Summary of values'!X157 -> 107278457.2 | AA35: ='11. Summary of values'!Y157 -> 100389741.6 | AB35: ='11. Summary of values'!Z157 -> 63173011.11 | AC35: ='11. Summary of values'!AA157 -> 142522775.8 | AD35: ='11. Summary of values'!AB157 -> 182133061.8 | AE35: ='11. Summary of values'!AC157 -> 265562689.7 | AF35: ='11. Summary of values'!AD157 -> 221142450.2 | AG35: ='11. Summary of values'!AE157 -> 211555692.1 | AH35: ='11. Summary of values'!AF157 -> 156894008.5
D36: LCOE | H36: ='11. Summary of values'!G163 -> 165.7163078
D37: ROI | H37: ='11. Summary of values'!G164 -> 0.4770881933
D38: IRR | H38: ='11. Summary of values'!G162 -> 0.1557213364
D39: Total Scenario Revenue | H39: ='11. Summary of values'!G166 -> 2669860677
B41: Systems Results
B54: Graphs
C66: NUMBER OF USERS
K68: TRUE | V68: Comment
K70: TRUE
K72: TRUE | T72: TRUE
K74: TRUE | T74: TRUE
K76: TRUE | T76: TRUE
K78: TRUE | T78: TRUE
K80: TRUE
C86: REVENUE
T88: Comment
K89: TRUE
K91: TRUE
K93: TRUE
K95: TRUE
K97: TRUE
K99: TRUE
K101: TRUE
C106: INVESTMENT
W108: Comment
I113: Total amount of the investment
J114: ='Data Simulation results'!D64 -> 1312328502 | K114: NGN
C131: OPEX
K134: TRUE | V134: Comment
K136: TRUE
U137: TRUE
K138: TRUE
U139: TRUE
K140: TRUE
U141: TRUE
K142: TRUE
U143: TRUE
K144: TRUE
U145: TRUE
K146: TRUE
C151: CAPEX
T153: Comment
K154: TRUE
K156: TRUE
K158: TRUE
K160: TRUE
K162: TRUE
K164: TRUE
K166: TRUE
C173: NET CASH FLOWS
AA175: Comment
N178: TRUE
N180: TRUE
N182: TRUE
N184: TRUE
N186: TRUE
N188: TRUE
N190: TRUE
C196: CUMULATED CASH FLOWS
AA199: Comment
N200: TRUE
N202: TRUE
N204: TRUE
N206: TRUE
N208: TRUE
N210: TRUE
N212: TRUE

Sheet Data Indexation & Financing (hidden)
H1: Data Indexation and Financing
A3: The objective of this data sheet is to provide indexation and financing data for every scenario.
A4: This sheet is collecting data from Control Table and sends it to the Indexation and Financing sheet
B6: Current scenario | C6: ='3. Simulation results'!H23 -> Total
A8: Debt
C10: Starting Year of the Loan | G10: Interest rate for Loan
C11: Mini grid | D11: ='2. Control table'!H463 -> 2025 | G11: Mini grid | H11: ='2. Control table'!H465 -> 0.11
C12: SHS1 | D12: ='2. Control table'!H472 -> 2025 | G12: SHS1 | H12: ='2. Control table'!H474 -> 0.11
C13: SHS2 | D13: ='2. Control table'!H481 -> 2025 | G13: SHS2 | H13: ='2. Control table'!H483 -> 0.11
C14: SHS1 + SHS2 | D14: =IF(D12<D13,D12,D13) -> 2025 | G14: SHS1 + SHS2 | H14: Not specified
C15: Mini grid + SHS1 | D15: =IF(D11<D12,D11,D12) -> 2025 | G15: Mini grid + SHS1 | H15: Not specified
C16: Mini grid + SHS2 | D16: =IF(D13<D11,D13,D11) -> 2025 | G16: Mini grid + SHS2 | H16: Not specified
C17: Total | D17: =MIN(D11:D13) -> 2025 | G17: Total | H17: Not specified
C19: Load Tenor [years] | G19: Debt Grace Period [years]
C20: Mini grid | D20: ='2. Control table'!H464 -> 25 | G20: Mini grid | H20: ='2. Control table'!H466 -> 3
C21: SHS1 | D21: ='2. Control table'!H473 -> 25 | G21: SHS1 | H21: ='2. Control table'!H475 -> 3
C22: SHS2 | D22: ='2. Control table'!H482 -> 25 | G22: SHS2 | H22: ='2. Control table'!H484 -> 3
C23: SHS1 + SHS2 | D23: Not specified | G23: SHS1 + SHS2 | H23: Not specified
C24: Mini grid + SHS1 | D24: Not specified | G24: Mini grid + SHS1 | H24: Not specified
C25: Mini grid + SHS2 | D25: Not specified | G25: Mini grid + SHS2 | H25: Not specified
C26: Total | D26: Not specified | G26: Total | H26: Not specified
A31: Input for Cashflow and KPI calculation
C34: Company income tax rate
C35: Mini grid | D35: ='2. Control table'!N463 -> 0.24
C36: SHS1 | D36: ='2. Control table'!N472 -> 0.24
C37: SHS2 | D37: ='2. Control table'!N481 -> 0.24
C38: SHS1 + SHS2 | D38: Not specified
C39: Mini grid + SHS1 | D39: Not specified
C40: Mini grid + SHS2 | D40: Not specified
C41: Total | D41: Not specified
C43: Interest Rate Equity
C44: Mini grid | D44: ='2. Control table'!N464 -> 0.2
C45: SHS1 | D45: ='2. Control table'!N473 -> 0.2
C46: SHS2 | D46: ='2. Control table'!N482 -> 0.2
C47: SHS1 + SHS2 | D47: Not specified
C48: Mini grid + SHS1 | D48: Not specified
C49: Mini grid + SHS2 | D49: Not specified
C50: Total | D50: Not specified
C52: WACC
C53: Mini grid | D53: =(1-'2. Control table'!$H$458)*'Data Indexation & Financing'!D44+'2. Control table'!$H$458*'Data Indexation & Financing'!H11*(1-'Data Indexation & Financing'!D35) -> 0.1127
C54: SHS1 | D54: =(1-'2. Control table'!$H$458)*'Data Indexation & Financing'!D45+'2. Control table'!$H$458*'Data Indexation & Financing'!H12*(1-'Data Indexation & Financing'!D36) -> 0.1127
C55: SHS2 | D55: =(1-'2. Control table'!$H$458)*'Data Indexation & Financing'!D46+'2. Control table'!$H$458*'Data Indexation & Financing'!H13*(1-'Data Indexation & Financing'!D37) -> 0.1127

Sheet Data Report (hidden)
G1: Report generation
A3: Investment
A5: OpEx
A7: Total | B7: ='Data Simulation results'!B64 -> 606579055.4 | D7: Current system | E7: Filtered list | F7: Filtered list
A8: Minigrid | B8: =IF('Data Simulation results'!$B$3="Mini grid",'Data Simulation results'!B55,IF(OR('Data Simulation results'!$B$3="SHS1",'Data Simulation results'!$B$3="SHS2",'Data Simulation results'!$B$3="SHS1 + SHS2"),"",'Data Simulation results'!B55)) -> 485441929.4 | D8: =IF(OR('Data Simulation results'!$B$3="Mini grid",'Data Simulation results'!$B$3="Mini grid + SHS1",'Data Simulation results'!$B$3="Mini grid + SHS2",'Data Simulation results'!$B$3="Total"),"Mini grid","") -> Mini grid | E8: =_xlfn._xlws.FILTER(D8:D10, D8:D10<>"") -> Mini grid | F8: =_xlfn._xlws.FILTER(B8:B10, B8:B10<>"") -> 485441929.4
A9: SHS1 | B9: =IF('Data Simulation results'!$B$3="SHS1",'Data Simulation results'!B56,IF(OR('Data Simulation results'!$B$3="Mini grid", 'Data Simulation results'!$B$3="SHS2",'Data Simulation results'!$B$3="Mini grid + SHS2"),"",'Data Simulation results'!B56)) -> 42647446.95 | D9: =IF(OR('Data Simulation results'!$B$3="SHS1",'Data Simulation results'!$B$3="Mini grid + SHS1",'Data Simulation results'!$B$3="SHS1 + SHS2",'Data Simulation results'!$B$3="Total"),"SHS1","") -> SHS1 | E9: SHS1 | F9: 42647446.95
A10: SHS2 | B10: =IF('Data Simulation results'!$B$3="SHS2",'Data Simulation results'!B57,IF(OR('Data Simulation results'!$B$3="SHS1", 'Data Simulation results'!$B$3="Mini grid",'Data Simulation results'!$B$3="Mini grid + SHS1"),"",'Data Simulation results'!B57)) -> 78489679.06 | D10: =IF(OR('Data Simulation results'!$B$3="SHS2",'Data Simulation results'!$B$3="SHS1 + SHS2",'Data Simulation results'!$B$3="Mini-grid + SHS2",'Data Simulation results'!$B$3="Total"),"SHS2","") -> SHS2 | E10: SHS2 | F10: 78489679.06
A12: CapEx
A14: Total | B14: ='Data Simulation results'!C64 -> 705749446.2 | D14: Current system | E14: Filtered list | F14: Filtered list
A15: Minigrid | B15: =IF('Data Simulation results'!$B$3="Mini grid",'Data Simulation results'!C55,IF(OR('Data Simulation results'!$B$3="SHS1",'Data Simulation results'!$B$3="SHS2",'Data Simulation results'!$B$3="SHS1 + SHS2"),"",'Data Simulation results'!C55)) -> 633749919.3 | D15: =IF(OR('Data Simulation results'!$B$3="Mini grid",'Data Simulation results'!$B$3="Mini grid + SHS1",'Data Simulation results'!$B$3="Mini grid + SHS2",'Data Simulation results'!$B$3="Total"),"Mini grid","") -> Mini grid | E15: =_xlfn._xlws.FILTER(D15:D17, D15:D17<>"") -> Mini grid | F15: =_xlfn._xlws.FILTER(B15:B17, B15:B17<>"") -> 633749919.3
A16: SHS1 | B16: =IF('Data Simulation results'!$B$3="SHS1",'Data Simulation results'!C56,IF(OR('Data Simulation results'!$B$3="Mini grid", 'Data Simulation results'!$B$3="SHS2",'Data Simulation results'!$B$3="Mini grid + SHS2"),"",'Data Simulation results'!C56)) -> 22859117.8 | D16: =IF(OR('Data Simulation results'!$B$3="SHS1",'Data Simulation results'!$B$3="Mini grid + SHS1",'Data Simulation results'!$B$3="SHS1 + SHS2",'Data Simulation results'!$B$3="Total"),"SHS1","") -> SHS1 | E16: SHS1 | F16: 22859117.8
A17: SHS2 | B17: =IF('Data Simulation results'!$B$3="SHS2",'Data Simulation results'!C57,IF(OR('Data Simulation results'!$B$3="SHS1", 'Data Simulation results'!$B$3="Mini grid",'Data Simulation results'!$B$3="Mini grid + SHS1"),"",'Data Simulation results'!C57)) -> 49140409.12 | D17: =IF(OR('Data Simulation results'!$B$3="SHS2",'Data Simulation results'!$B$3="SHS1 + SHS2",'Data Simulation results'!$B$3="Mini-grid + SHS2",'Data Simulation results'!$B$3="Total"),"SHS2","") -> SHS2 | E17: SHS2 | F17: 49140409.12
A20: Revenue
B22: 25 YEARS Revenue | D22: =IF(OR('Data Simulation results'!$B$3="Mini grid",'Data Simulation results'!$B$3="Mini grid + SHS1",'Data Simulation results'!$B$3="Mini grid + SHS2",'Data Simulation results'!$B$3="Total"),"Mini grid","") -> Mini grid | E22: =IF(OR('Data Simulation results'!$B$3="Mini grid",'Data Simulation results'!$B$3="Mini grid + SHS1",'Data Simulation results'!$B$3="Mini grid + SHS2",'Data Simulation results'!$B$3="Total"),'11. Summary of values'!U136,"") -> 2082073303 | G22: =_xlfn._xlws.FILTER(D22:D24, D22:D24<>"") -> Mini grid | H22: =_xlfn._xlws.FILTER(E22:E24, E22:E24<>"") -> 2082073303
B23: ='11. Summary of values'!G166 -> 2669860677 | D23: =IF(OR('Data Simulation results'!$B$3="SHS1",'Data Simulation results'!$B$3="Mini grid + SHS1",'Data Simulation results'!$B$3="SHS1 + SHS2",'Data Simulation results'!$B$3="Total"),"SHS1","") -> SHS1 | E23: =IF(OR('Data Simulation results'!$B$3="SHS1",'Data Simulation results'!$B$3="Mini grid + SHS1",'Data Simulation results'!$B$3="SHS1 + SHS2",'Data Simulation results'!$B$3="Total"),'11. Summary of values'!U137,"") -> 102535684.1 | G23: SHS1 | H23: 102535684.1
D24: =IF(OR('Data Simulation results'!$B$3="SHS2",'Data Simulation results'!$B$3="SHS1 + SHS2",'Data Simulation results'!$B$3="Mini-grid + SHS2",'Data Simulation results'!$B$3="Total"),"SHS2","") -> SHS2 | E24: =IF(OR('Data Simulation results'!$B$3="SHS2",'Data Simulation results'!$B$3="SHS1 + SHS2",'Data Simulation results'!$B$3="Mini-grid + SHS2",'Data Simulation results'!$B$3="Total"),'11. Summary of values'!U138,"") -> 485251689.8 | G24: SHS2 | H24: 485251689.8
B27: 1 YEAR Revenue | D27: =IF(OR('Data Simulation results'!$B$3="Mini grid",'Data Simulation results'!$B$3="Mini grid + SHS1",'Data Simulation results'!$B$3="Mini grid + SHS2",'Data Simulation results'!$B$3="Total"),"Mini grid","") -> Mini grid | E27: =IF(OR('Data Simulation results'!$B$3="Mini grid",'Data Simulation results'!$B$3="Mini grid + SHS1",'Data Simulation results'!$B$3="Mini grid + SHS2",'Data Simulation results'!$B$3="Total"),'11. Summary of values'!G118,"") -> 8115079.938 | G27: =_xlfn._xlws.FILTER(D27:D29, D27:D29<>"") -> Mini grid | H27: =_xlfn._xlws.FILTER(E27:E29, E27:E29<>"") -> 8115079.938
D28: =IF(OR('Data Simulation results'!$B$3="SHS1",'Data Simulation results'!$B$3="Mini grid + SHS1",'Data Simulation results'!$B$3="SHS1 + SHS2",'Data Simulation results'!$B$3="Total"),"SHS1","") -> SHS1 | E28: =IF(OR('Data Simulation results'!$B$3="SHS1",'Data Simulation results'!$B$3="Mini grid + SHS1",'Data Simulation results'!$B$3="SHS1 + SHS2",'Data Simulation results'!$B$3="Total"),'11. Summary of values'!G119,"") -> 6939280.404 | G28: SHS1 | H28: 6939280.404
D29: =IF(OR('Data Simulation results'!$B$3="SHS2",'Data Simulation results'!$B$3="SHS1 + SHS2",'Data Simulation results'!$B$3="Mini-grid + SHS2",'Data Simulation results'!$B$3="Total"),"SHS2","") -> SHS2 | E29: =IF(OR('Data Simulation results'!$B$3="SHS2",'Data Simulation results'!$B$3="SHS1 + SHS2",'Data Simulation results'!$B$3="Mini-grid + SHS2",'Data Simulation results'!$B$3="Total"),'11. Summary of values'!G120,"") -> 13184809 | G29: SHS2 | H29: 13184809

Sheet Generate report (hidden)
E3: Project : | F3: ='2. Control table'!E30 -> 0 | I3: Scenario : | J3: ='3. Simulation results'!H23 -> Total | K3: Date : | L3: =TODAY() -> 2023-07-27
C5: Company Information
D6: ='2. Control table'!E29 -> 0
D7: ='2. Control table'!E31 -> 0
D8: ='2. Control table'!E32 -> 0
C10: Abstract
D11: This financial report provides crucial data, including key performance indicators (KPIs), revenue figures, and investment insights. Additionally, the report offers a holistic view of the chosen scenario, shedding light on its potential impact on the company's operations.
D18: Return On Investment | F18: LCOE | I18: Internal Rate of Return | K18: Total revenue | L18: Total investment
D19: ='11. Summary of values'!G164 -> 0.4770881933 | F19: ='11. Summary of values'!G163 -> 165.7163078 | G19: NGN | I19: ='11. Summary of values'!G162 -> 0.1557213364 | K19: ='11. Summary of values'!G166 -> 2669860677 | L19: ='Data Simulation results'!D64 -> 1312328502
D20: after 25 years | F20: after 25 years | I20: after 25 years | K20: after 25 years | L20: after 25 years
A26: 5 | L26: INVESTMENT FOR 25 YEARS
I28: OpEx | K28: ='Data Simulation results'!B$64 -> 606579055.4 | L28: NGN
J29: =_xlfn.ANCHORARRAY('Data Report'!E8) -> Mini grid | K29: =_xlfn.ANCHORARRAY('Data Report'!F8) -> 485441929.4
J30: SHS1 | K30: 42647446.95
J31: SHS2 | K31: 78489679.06
I33: CapEx | K33: ='Data Simulation results'!C$64 -> 705749446.2 | L33: NGN
J34: =_xlfn.ANCHORARRAY('Data Report'!E15) -> Mini grid | K34: =_xlfn.ANCHORARRAY('Data Report'!F15) -> 633749919.3
J35: SHS1 | K35: 22859117.8
J36: SHS2 | K36: 49140409.12
I39: Total | K39: ='Data Simulation results'!D$64 -> 1312328502 | L39: NGN
L50: GLOBAL REVENUE AFTER 25 YEARS
J51: =_xlfn.ANCHORARRAY('Data Report'!E8) -> Mini grid | K51: =_xlfn.ANCHORARRAY('Data Report'!H27) -> 8115079.938
J52: SHS1 | K52: 6939280.404
J53: SHS2 | K53: 13184809
J55: Total | K55: ='11. Summary of values'!G166 -> 2669860677 | L55: NGN

Sheet Feuil2 (hidden)

Sheet 4. Indexation&Financing
J2: Indexation and Financing
C6: This sheet sets the different indexation rates you want for the forecasting (inflation, electricity tariff increase, increase in the number of users), and the data on debt and equity which is used to determine the WACC of the project. There is an inflation rate for diesel prices, metering charges, and fixed charges, and there is a general cost inflation rate that is used for everything else.
B9: Data
U10: Year 0 | V10: Year 1 | W10: Year 2 | X10: Year 3 | Y10: Year 4 | Z10: Year 5 | AA10: Year 6 | AB10: Year 7 | AC10: Year 8 | AD10: Year 9 | AE10: Year 10 | AF10: Year 11 | AG10: Year 12 | AH10: Year 13 | AI10: Year 14 | AJ10: Year 15 | AK10: Year 16 | AL10: Year 17 | AM10: Year 18 | AN10: Year 19 | AO10: Year 20 | AP10: Year 21 | AQ10: Year 22 | AR10: Year 23 | AS10: Year 24 | AT10: Year 25
C11: Starting Year of the Project (Year 0) | H11: ='2. Control table'!H415 -> 2023
D13: This sheet is taking the scenario into account, the value referenced here are associated with the scenario
C15: Chosen scenario | O15: Cost and Revenue Indexation
C16: ='3. Simulation results'!H23 -> Total | U16: =H11 -> 2023 | V16: =H11+1 -> 2024 | W16: =V16+1 -> 2025 | X16: 2026 | Y16: 2027 | Z16: 2028 | AA16: 2029 | AB16: 2030 | AC16: 2031 | AD16: 2032 | AE16: 2033 | AF16: 2034 | AG16: 2035 | AH16: 2036 | AI16: 2037 | AJ16: 2038 | AK16: =AJ16+1 -> 2039 | AL16: 2040 | AM16: 2041 | AN16: 2042 | AO16: 2043 | AP16: 2044 | AQ16: 2045 | AR16: 2046 | AS16: 2047 | AT16: 2048
T17: Indexation[%]
S18: Diesel fuel Price Indexation [NGN/L] | T18: ='2. Control table'!H421 -> 0.038 | U18: ='Data Mini Grid'!E62 -> 809 | V18: =U18*(1+$T18) -> 839.742 | W18: =V18*(1+$T18) -> 871.652196 | X18: 904.7749794 | Y18: 939.1564287 | Z18: 974.844373 | AA18: 1011.888459 | AB18: 1050.340221 | AC18: 1090.253149 | AD18: 1131.682769 | AE18: 1174.686714 | AF18: 1219.324809 | AG18: 1265.659152 | AH18: 1313.754199 | AI18: 1363.676859 | AJ18: 1415.49658 | AK18: 1469.28545 | AL18: 1525.118297 | AM18: 1583.072792 | AN18: 1643.229558 | AO18: 1705.672281 | AP18: =AO18*(1+$T18) -> 1770.487828 | AQ18: 1837.766366 | AR18: 1907.601487 | AS18: 1980.090344 | AT18: 2055.333777
S19: General Cost Indexation [%] | T19: ='2. Control table'!N415 -> 0.1 | U19: 1 | V19: =U19*(1+$T19) -> 1.1 | W19: =V19*(1+$T19) -> 1.21 | X19: 1.331 | Y19: 1.4641 | Z19: 1.61051 | AA19: 1.771561 | AB19: 1.9487171 | AC19: 2.14358881 | AD19: 2.357947691 | AE19: 2.59374246 | AF19: 2.853116706 | AG19: 3.138428377 | AH19: 3.452271214 | AI19: 3.797498336 | AJ19: 4.177248169 | AK19: =AJ19*(1+$T19) -> 4.594972986 | AL19: =AK19*(1+$T19) -> 5.054470285 | AM19: =AL19*(1+$T19) -> 5.559917313 | AN19: =AM19*(1+$T19) -> 6.115909045 | AO19: =AN19*(1+$T19) -> 6.727499949 | AP19: 7.400249944 | AQ19: 8.140274939 | AR19: 8.954302433 | AS19: 9.849732676 | AT19: 10.83470594
E20: For details of the 25 years of indexation and financing details, click on the + at the top right of the AU column
S21: Fixed charges for residential users [NGN/month/user] | T21: ='2. Control table'!H422 -> 0.065 | U21: ='Data Mini Grid'!E40 -> 120 | V21: =U21*(1+$T21) -> 127.8 | W21: =V21*(1+$T21) -> 136.107 | X21: 144.953955 | Y21: 154.3759621 | Z21: 164.4103996 | AA21: 175.0970756 | AB21: 186.4783855 | AC21: 198.5994806 | AD21: 211.5084468 | AE21: 225.2564958 | AF21: 239.8981681 | AG21: 255.491549 | AH21: 272.0984997 | AI21: 289.7849021 | AJ21: 308.6209208 | AK21: 328.6812806 | AL21: 350.0455639 | AM21: 372.7985255 | AN21: 397.0304297 | AO21: 422.8374076 | AP21: =AO21*(1+$T21) -> 450.3218391 | AQ21: 479.5927587 | AR21: 510.766288 | AS21: 543.9660967 | AT21: 579.323893
S22: Fixed charges for community users [NGN/month/user] | T22: ='2. Control table'!H423 -> 0.065 | U22: ='Data Mini Grid'!E41 -> 110 | V22: =U22*(1+$T22) -> 117.15 | W22: 124.76475 | X22: 132.8744587 | Y22: 141.5112986 | Z22: 150.709533 | AA22: 160.5056526 | AB22: 170.93852 | AC22: 182.0495238 | AD22: 193.8827429 | AE22: 206.4851212 | AF22: 219.9066541 | AG22: 234.2005866 | AH22: 249.4236247 | AI22: 265.6361603 | AJ22: 282.9025107 | AK22: 301.2911739 | AL22: 320.8751002 | AM22: 341.7319817 | AN22: 363.9445606 | AO22: 387.600957 | AP22: 412.7950192 | AQ22: 439.6266954 | AR22: 468.2024306 | AS22: 498.6355886 | AT22: 531.0469019
S23: Fixed charges for commercial small scale users [NGN/month/user] | T23: ='2. Control table'!H424 -> 0.065 | U23: ='Data Mini Grid'!E42 -> 130 | V23: =U23*(1+$T23) -> 138.45 | W23: 147.44925 | X23: 157.0334512 | Y23: 167.2406256 | Z23: 178.1112662 | AA23: 189.6884985 | AB23: 202.018251 | AC23: 215.1494373 | AD23: 229.1341507 | AE23: 244.0278705 | AF23: 259.8896821 | AG23: 276.7825114 | AH23: 294.7733746 | AI23: 313.933644 | AJ23: 334.3393309 | AK23: 356.0713874 | AL23: 379.2160275 | AM23: 403.8650693 | AN23: 430.1162988 | AO23: 458.0738583 | AP23: 487.848659 | AQ23: 519.5588219 | AR23: 553.3301453 | AS23: 589.2966047 | AT23: 627.6008841
S24: Fixed charges for commercial large scale & anchor load users [NGN/month/user] | T24: ='2. Control table'!H425 -> 0.065 | U24: ='Data Mini Grid'!E43 -> 150 | V24: =U24*(1+$T24) -> 159.75 | W24: 170.13375 | X24: 181.1924437 | Y24: 192.9699526 | Z24: 205.5129995 | AA24: 218.8713445 | AB24: 233.0979819 | AC24: 248.2493507 | AD24: 264.3855585 | AE24: 281.5706198 | AF24: 299.8727101 | AG24: 319.3644362 | AH24: 340.1231246 | AI24: 362.2311277 | AJ24: 385.776151 | AK24: 410.8516008 | AL24: 437.5569549 | AM24: 465.9981569 | AN24: 496.2880371 | AO24: 528.5467595 | AP24: 562.9022989 | AQ24: 599.4909483 | AR24: 638.45786 | AS24: 679.9576209 | AT24: 724.1548662
S26: Metering charges for residential users [NGN/month/user] | T26: ='2. Control table'!N421 -> 0.065 | U26: ='Data Mini Grid'!E46 -> 160 | V26: =U26*(1+$T26) -> 170.4 | W26: 181.476 | X26: 193.27194 | Y26: 205.8346161 | Z26: 219.2138661 | AA26: 233.4627674 | AB26: 248.6378473 | AC26: 264.7993074 | AD26: 282.0112624 | AE26: 300.3419944 | AF26: 319.8642241 | AG26: 340.6553986 | AH26: 362.7979996 | AI26: 386.3798695 | AJ26: 411.4945611 | AK26: 438.2417075 | AL26: 466.7274185 | AM26: 497.0647007 | AN26: 529.3739063 | AO26: 563.7832102 | AP26: =AO26*(1+$T26) -> 600.4291188 | AQ26: 639.4570115 | AR26: 681.0217173 | AS26: 725.2881289 | AT26: 772.4318573
S27: Metering charges for community users [NGN/month/user] | T27: ='2. Control table'!N422 -> 0.065 | U27: ='Data Mini Grid'!E47 -> 150 | V27: =U27*(1+$T27) -> 159.75 | W27: 170.13375 | X27: 181.1924437 | Y27: 192.9699526 | Z27: 205.5129995 | AA27: 218.8713445 | AB27: 233.0979819 | AC27: 248.2493507 | AD27: 264.3855585 | AE27: 281.5706198 | AF27: 299.8727101 | AG27: 319.3644362 | AH27: 340.1231246 | AI27: 362.2311277 | AJ27: 385.776151 | AK27: 410.8516008 | AL27: 437.5569549 | AM27: 465.9981569 | AN27: 496.2880371 | AO27: 528.5467595 | AP27: 562.9022989 | AQ27: 599.4909483 | AR27: 638.45786 | AS27: 679.9576209 | AT27: 724.1548662
S28: Metering charges for commercial small scale users [NGN/month/user] | T28: ='2. Control table'!N423 -> 0.065 | U28: ='Data Mini Grid'!E48 -> 170 | V28: =U28*(1+$T28) -> 181.05 | W28: 192.81825 | X28: 205.3514362 | Y28: 218.6992796 | Z28: 232.9147328 | AA28: 248.0541904 | AB28: 264.1777128 | AC28: 281.3492641 | AD28: 299.6369663 | AE28: 319.1133691 | AF28: 339.8557381 | AG28: 361.9463611 | AH28: 385.4728745 | AI28: 410.5286114 | AJ28: 437.2129711 | AK28: 465.6318142 | AL28: 495.8978822 | AM28: 528.1312445 | AN28: 562.4597754 | AO28: 599.0196608 | AP28: 637.9559387 | AQ28: 679.4230748 | AR28: 723.5855746 | AS28: 770.618637 | AT28: 820.7088484
S29: Metering charges for commercial large scale & anchor load users [NGN/month/user] | T29: ='2. Control table'!N424 -> 0.065 | U29: ='Data Mini Grid'!E49 -> 180 | V29: =U29*(1+$T29) -> 191.7 | W29: 204.1605 | X29: 217.4309325 | Y29: 231.5639431 | Z29: 246.6155994 | AA29: 262.6456134 | AB29: 279.7175782 | AC29: 297.8992208 | AD29: 317.2626702 | AE29: 337.8847437 | AF29: 359.8472521 | AG29: 383.2373235 | AH29: 408.1477495 | AI29: 434.6773532 | AJ29: 462.9313812 | AK29: 493.021921 | AL29: 525.0683458 | AM29: 559.1977883 | AN29: 595.5456445 | AO29: 634.2561114 | AP29: 675.4827587 | AQ29: 719.389138 | AR29: 766.149432 | AS29: 815.949145 | AT29: 868.9858395
S31: Expected increase in the mini grid electricity tariff per year [NGN/kWh] | T31: ='2. Control table'!N425 -> 0.07
S32: Expected increase in mini grid demand per year [kWh/year] | T32: ='2. Control table'!N426 -> 0.09
S33: per month | T33: =(1+T32)^(1/12)-1 -> 0.007207323316
S34: Expected increase in number of mini grid users per year | T34: ='2. Control table'!N427 -> 0.02
S35: per month | T35: =(1+T34)^(1/12)-1 -> 0.001651581302
S36: Expected increase in number of SHS users per year | T36: ='2. Control table'!H432 -> 0.02
S37: per month | T37: =(1+T36)^(1/12)-1 -> 0.001651581302
S38: Percentage of people who want their batteries changed and maintained SHS1 | T38: ='2. Control table'!N432 -> 0.8
S39: Percentage of people who want their batteries changed and maintained SHS2 | T39: ='2. Control table'!N433 -> 0.8
O41: Financing
S43: Total Investment[NGN] | T43: =INDEX('11. Summary of values'!G55:G61,MATCH('11. Summary of values'!D147,'11. Summary of values'!F55:F61,0)) -> 108764860
S44: Share of grant for assets | T44: ='2. Control table'!H457 -> 0.05
S45: Grant for assets[NGN] | T45: =T43*T44 -> 5438243
S47: Private Investments [NGN] | T47: =(T43-T45) -> 103326617
S48: Share of the debt | T48: ='2. Control table'!H458 -> 0.75
S49: Share of equity | T49: =(1-T48) -> 0.25
S50: Debt from investment costs [NGN] | T50: =(T47*T48) -> 77494962.75
S51: Equity from private investment costs [NGN] | T51: =(T47-T50) -> 25831654.25
O53: Debt
S54: Amount of the Loan [NGN] | T54: =$T$47*$T$48 -> 77494962.75
S55: Starting Year of the Loan | T55: =INDEX('Data Indexation & Financing'!D11:D17,MATCH('4. Indexation&Financing'!C16,'Data Indexation & Financing'!C11:C17,0)) -> 2025
S56: Load Tenor [years] | T56: =INDEX('Data Indexation & Financing'!D20:D26,MATCH('4. Indexation&Financing'!C16,'Data Indexation & Financing'!C20:C26,0)) -> Not specified
S57: Interest rate for Loan | T57: =INDEX('Data Indexation & Financing'!H11:H17,MATCH('4. Indexation&Financing'!C16,'Data Indexation & Financing'!G11:G17,0)) -> Not specified
S58: Debt Grace Period [years] | T58: =INDEX('Data Indexation & Financing'!H20:H26,MATCH('4. Indexation&Financing'!C16,'Data Indexation & Financing'!G20:G26,0)) -> Not specified
O60: Input for Cashflow and KPI calculation
S61: Company income tax rate | T61: =INDEX('Data Indexation & Financing'!D35:D41,MATCH('4. Indexation&Financing'!C16,'Data Indexation & Financing'!C35:C41,0)) -> Not specified
S62: Interest Rate Equity | T62: =INDEX('Data Indexation & Financing'!D44:D50,MATCH('4. Indexation&Financing'!C16,'Data Indexation & Financing'!C44:C50,0)) -> Not specified

Sheet Data Mini Grid (hidden)
J1: Data Minigrid
B3: In this sheet, you can have access to all the different calculations made for the financial outlet for the mini-grid.
A5: Demand
F6: Year 0 | G6: Year 1 | H6: Year 2 | I6: Year 3 | J6: Year 4 | K6: Year 5 | L6: Year 6 | M6: Year 7 | N6: Year 8 | O6: Year 9 | P6: Year 10 | Q6: Year 11 | R6: Year 12 | S6: Year 13 | T6: Year 14 | U6: Year 15 | V6: Year 16 | W6: Year 17 | X6: Year 18 | Y6: Year 19 | Z6: Year 20 | AA6: Year 21 | AB6: Year 22 | AC6: Year 23 | AD6: Year 24 | AE6: Year 25
F7: =('4. Indexation&Financing'!U16) -> 2023 | G7: =('4. Indexation&Financing'!V16) -> 2024 | H7: =('4. Indexation&Financing'!W16) -> 2025 | I7: =('4. Indexation&Financing'!X16) -> 2026 | J7: =('4. Indexation&Financing'!Y16) -> 2027 | K7: =('4. Indexation&Financing'!Z16) -> 2028 | L7: =('4. Indexation&Financing'!AA16) -> 2029 | M7: =('4. Indexation&Financing'!AB16) -> 2030 | N7: =('4. Indexation&Financing'!AC16) -> 2031 | O7: =('4. Indexation&Financing'!AD16) -> 2032 | P7: =('4. Indexation&Financing'!AE16) -> 2033 | Q7: =('4. Indexation&Financing'!AF16) -> 2034 | R7: =('4. Indexation&Financing'!AG16) -> 2035 | S7: =('4. Indexation&Financing'!AH16) -> 2036 | T7: =('4. Indexation&Financing'!AI16) -> 2037 | U7: =('4. Indexation&Financing'!AJ16) -> 2038 | V7: =('4. Indexation&Financing'!AK16) -> 2039 | W7: =('4. Indexation&Financing'!AL16) -> 2040 | X7: =('4. Indexation&Financing'!AM16) -> 2041 | Y7: =('4. Indexation&Financing'!AN16) -> 2042 | Z7: =('4. Indexation&Financing'!AO16) -> 2043 | AA7: =('4. Indexation&Financing'!AP16) -> 2044 | AB7: =('4. Indexation&Financing'!AQ16) -> 2045 | AC7: =('4. Indexation&Financing'!AR16) -> 2046 | AD7: =('4. Indexation&Financing'!AS16) -> 2047 | AE7: =('4. Indexation&Financing'!AT16) -> 2048
F8: 0 | G8: =F8+1 -> 1 | H8: =G8+1 -> 2 | I8: 3 | J8: 4 | K8: 5 | L8: 6 | M8: 7 | N8: 8 | O8: 9 | P8: 10 | Q8: 11 | R8: 12 | S8: 13 | T8: 14 | U8: 15 | V8: 16 | W8: 17 | X8: 18 | Y8: 19 | Z8: 20 | AA8: 21 | AB8: 22 | AC8: 23 | AD8: 24 | AE8: 25
A10: Consumer Sector Wise Energy demand [kWh/year]
A11: Residential | E11: =IF('2. Control table'!$T$84=TRUE,NA(),IF('2. Control table'!I54="Default",('14. Default data'!L16*365),('2. Control table'!M78*365))) -> 22738.405 | F11: 0 | G11: =(E11*(1+'4. Indexation&Financing'!$T$32)) -> 24784.86145 | H11: =(G11*(1+'4. Indexation&Financing'!$T$32)) -> 27015.49898 | I11: =(H11*(1+'4. Indexation&Financing'!$T$32)) -> 29446.89389 | J11: =(I11*(1+'4. Indexation&Financing'!$T$32)) -> 32097.11434 | K11: =(J11*(1+'4. Indexation&Financing'!$T$32)) -> 34985.85463 | L11: =(K11*(1+'4. Indexation&Financing'!$T$32)) -> 38134.58155 | M11: =(L11*(1+'4. Indexation&Financing'!$T$32)) -> 41566.69388 | N11: =(M11*(1+'4. Indexation&Financing'!$T$32)) -> 45307.69633 | O11: =(N11*(1+'4. Indexation&Financing'!$T$32)) -> 49385.389 | P11: =(O11*(1+'4. Indexation&Financing'!$T$32)) -> 53830.07402 | Q11: =(P11*(1+'4. Indexation&Financing'!$T$32)) -> 58674.78068 | R11: =(Q11*(1+'4. Indexation&Financing'!$T$32)) -> 63955.51094 | S11: =(R11*(1+'4. Indexation&Financing'!$T$32)) -> 69711.50692 | T11: =(S11*(1+'4. Indexation&Financing'!$T$32)) -> 75985.54254 | U11: =(T11*(1+'4. Indexation&Financing'!$T$32)) -> 82824.24137 | V11: =(U11*(1+'4. Indexation&Financing'!$T$32)) -> 90278.4231 | W11: =(V11*(1+'4. Indexation&Financing'!$T$32)) -> 98403.48118 | X11: =(W11*(1+'4. Indexation&Financing'!$T$32)) -> 107259.7945 | Y11: =(X11*(1+'4. Indexation&Financing'!$T$32)) -> 116913.176 | Z11: =(Y11*(1+'4. Indexation&Financing'!$T$32)) -> 127435.3618 | AA11: =(Z11*(1+'4. Indexation&Financing'!$T$32)) -> 138904.5444 | AB11: =(AA11*(1+'4. Indexation&Financing'!$T$32)) -> 151405.9534 | AC11: =(AB11*(1+'4. Indexation&Financing'!$T$32)) -> 165032.4892 | AD11: =(AC11*(1+'4. Indexation&Financing'!$T$32)) -> 179885.4132 | AE11: =(AD11*(1+'4. Indexation&Financing'!$T$32)) -> 196075.1004
A12: Community | E12: =IF('2. Control table'!$T$84=TRUE,NA(),IF('2. Control table'!I54="Default",('14. Default data'!L20*365),('2. Control table'!M79*365))) -> 38303.1 | F12: 0 | G12: =(E12*(1+'4. Indexation&Financing'!$T$32)) -> 41750.379 | H12: =(G12*(1+'4. Indexation&Financing'!$T$32)) -> 45507.91311 | I12: =(H12*(1+'4. Indexation&Financing'!$T$32)) -> 49603.62529 | J12: =(I12*(1+'4. Indexation&Financing'!$T$32)) -> 54067.95157 | K12: =(J12*(1+'4. Indexation&Financing'!$T$32)) -> 58934.06721 | L12: =(K12*(1+'4. Indexation&Financing'!$T$32)) -> 64238.13326 | M12: =(L12*(1+'4. Indexation&Financing'!$T$32)) -> 70019.56525 | N12: =(M12*(1+'4. Indexation&Financing'!$T$32)) -> 76321.32612 | O12: =(N12*(1+'4. Indexation&Financing'!$T$32)) -> 83190.24547 | P12: =(O12*(1+'4. Indexation&Financing'!$T$32)) -> 90677.36756 | Q12: =(P12*(1+'4. Indexation&Financing'!$T$32)) -> 98838.33065 | R12: =(Q12*(1+'4. Indexation&Financing'!$T$32)) -> 107733.7804 | S12: =(R12*(1+'4. Indexation&Financing'!$T$32)) -> 117429.8206 | T12: =(S12*(1+'4. Indexation&Financing'!$T$32)) -> 127998.5045 | U12: =(T12*(1+'4. Indexation&Financing'!$T$32)) -> 139518.3699 | V12: =(U12*(1+'4. Indexation&Financing'!$T$32)) -> 152075.0232 | W12: =(V12*(1+'4. Indexation&Financing'!$T$32)) -> 165761.7753 | X12: =(W12*(1+'4. Indexation&Financing'!$T$32)) -> 180680.3351 | Y12: =(X12*(1+'4. Indexation&Financing'!$T$32)) -> 196941.5652 | Z12: =(Y12*(1+'4. Indexation&Financing'!$T$32)) -> 214666.3061 | AA12: =(Z12*(1+'4. Indexation&Financing'!$T$32)) -> 233986.2736 | AB12: =(AA12*(1+'4. Indexation&Financing'!$T$32)) -> 255045.0383 | AC12: =(AB12*(1+'4. Indexation&Financing'!$T$32)) -> 277999.0917 | AD12: =(AC12*(1+'4. Indexation&Financing'!$T$32)) -> 303019.0099 | AE12: =(AD12*(1+'4. Indexation&Financing'!$T$32)) -> 330290.7208
A13: Commercial Small Scale | E13: =IF('2. Control table'!$T$84=TRUE,NA(),IF('2. Control table'!I54="Default",('14. Default data'!L24*365),('2. Control table'!M80*365))) -> 7617.55 | F13: 0 | G13: =(E13*(1+'4. Indexation&Financing'!$T$32)) -> 8303.1295 | H13: =(G13*(1+'4. Indexation&Financing'!$T$32)) -> 9050.411155 | I13: =(H13*(1+'4. Indexation&Financing'!$T$32)) -> 9864.948159 | J13: =(I13*(1+'4. Indexation&Financing'!$T$32)) -> 10752.79349 | K13: =(J13*(1+'4. Indexation&Financing'!$T$32)) -> 11720.54491 | L13: =(K13*(1+'4. Indexation&Financing'!$T$32)) -> 12775.39395 | M13: =(L13*(1+'4. Indexation&Financing'!$T$32)) -> 13925.1794 | N13: =(M13*(1+'4. Indexation&Financing'!$T$32)) -> 15178.44555 | O13: =(N13*(1+'4. Indexation&Financing'!$T$32)) -> 16544.50565 | P13: =(O13*(1+'4. Indexation&Financing'!$T$32)) -> 18033.51116 | Q13: =(P13*(1+'4. Indexation&Financing'!$T$32)) -> 19656.52716 | R13: =(Q13*(1+'4. Indexation&Financing'!$T$32)) -> 21425.61461 | S13: =(R13*(1+'4. Indexation&Financing'!$T$32)) -> 23353.91992 | T13: =(S13*(1+'4. Indexation&Financing'!$T$32)) -> 25455.77272 | U13: =(T13*(1+'4. Indexation&Financing'!$T$32)) -> 27746.79226 | V13: =(U13*(1+'4. Indexation&Financing'!$T$32)) -> 30244.00356 | W13: =(V13*(1+'4. Indexation&Financing'!$T$32)) -> 32965.96389 | X13: =(W13*(1+'4. Indexation&Financing'!$T$32)) -> 35932.90063 | Y13: =(X13*(1+'4. Indexation&Financing'!$T$32)) -> 39166.86169 | Z13: =(Y13*(1+'4. Indexation&Financing'!$T$32)) -> 42691.87924 | AA13: =(Z13*(1+'4. Indexation&Financing'!$T$32)) -> 46534.14838 | AB13: =(AA13*(1+'4. Indexation&Financing'!$T$32)) -> 50722.22173 | AC13: =(AB13*(1+'4. Indexation&Financing'!$T$32)) -> 55287.22169 | AD13: =(AC13*(1+'4. Indexation&Financing'!$T$32)) -> 60263.07164 | AE13: =(AD13*(1+'4. Indexation&Financing'!$T$32)) -> 65686.74808
A14: Commercial Large Scale & Anchor Load | E14: =IF('2. Control table'!$T$84=TRUE,NA(),IF('2. Control table'!I54="Default",('14. Default data'!L28*365),('2. Control table'!M81*365))) -> 24893 | F14: 0 | G14: =(E14*(1+'4. Indexation&Financing'!$T$32)) -> 27133.37 | H14: =(G14*(1+'4. Indexation&Financing'!$T$32)) -> 29575.3733 | I14: =(H14*(1+'4. Indexation&Financing'!$T$32)) -> 32237.1569 | J14: =(I14*(1+'4. Indexation&Financing'!$T$32)) -> 35138.50102 | K14: =(J14*(1+'4. Indexation&Financing'!$T$32)) -> 38300.96611 | L14: =(K14*(1+'4. Indexation&Financing'!$T$32)) -> 41748.05306 | M14: =(L14*(1+'4. Indexation&Financing'!$T$32)) -> 45505.37783 | N14: =(M14*(1+'4. Indexation&Financing'!$T$32)) -> 49600.86184 | O14: =(N14*(1+'4. Indexation&Financing'!$T$32)) -> 54064.93941 | P14: =(O14*(1+'4. Indexation&Financing'!$T$32)) -> 58930.78395 | Q14: =(P14*(1+'4. Indexation&Financing'!$T$32)) -> 64234.55451 | R14: =(Q14*(1+'4. Indexation&Financing'!$T$32)) -> 70015.66441 | S14: =(R14*(1+'4. Indexation&Financing'!$T$32)) -> 76317.07421 | T14: =(S14*(1+'4. Indexation&Financing'!$T$32)) -> 83185.61089 | U14: =(T14*(1+'4. Indexation&Financing'!$T$32)) -> 90672.31587 | V14: =(U14*(1+'4. Indexation&Financing'!$T$32)) -> 98832.8243 | W14: =(V14*(1+'4. Indexation&Financing'!$T$32)) -> 107727.7785 | X14: =(W14*(1+'4. Indexation&Financing'!$T$32)) -> 117423.2785 | Y14: =(X14*(1+'4. Indexation&Financing'!$T$32)) -> 127991.3736 | Z14: =(Y14*(1+'4. Indexation&Financing'!$T$32)) -> 139510.5972 | AA14: =(Z14*(1+'4. Indexation&Financing'!$T$32)) -> 152066.551 | AB14: =(AA14*(1+'4. Indexation&Financing'!$T$32)) -> 165752.5406 | AC14: =(AB14*(1+'4. Indexation&Financing'!$T$32)) -> 180670.2692 | AD14: =(AC14*(1+'4. Indexation&Financing'!$T$32)) -> 196930.5935 | AE14: =(AD14*(1+'4. Indexation&Financing'!$T$32)) -> 214654.3469
A15: Overall Demand for mini grid | F15: =SUM(F11:F14) -> 0 | G15: =SUM(G11:G14) -> 101971.74 | H15: 111149.1965 | I15: 121152.6242 | J15: 132056.3604 | K15: 143941.4329 | L15: 156896.1618 | M15: 171016.8164 | N15: 186408.3298 | O15: 203185.0795 | P15: 221471.7367 | Q15: 241404.193 | R15: 263130.5704 | S15: 286812.3217 | T15: 312625.4306 | U15: 340761.7194 | V15: 371430.2742 | W15: 404858.9988 | X15: 441296.3087 | Y15: 481012.9765 | Z15: 524304.1444 | AA15: 571491.5174 | AB15: 622925.7539 | AC15: 678989.0718 | AD15: 740098.0883 | AE15: 806706.9162
A17: Consumer Sector Wise number of users
A18: Residential | E18: =IF('2. Control table'!$T$84=TRUE,NA(),IF('2. Control table'!I54="Default",'14. Default data'!M16,'2. Control table'!N78)) -> 24 | F18: 0 | G18: =E18*(1+'4. Indexation&Financing'!$T$34) -> 24.48 | H18: =G18*(1+'4. Indexation&Financing'!$T$34) -> 24.9696 | I18: =H18*(1+'4. Indexation&Financing'!$T$34) -> 25.468992 | J18: =I18*(1+'4. Indexation&Financing'!$T$34) -> 25.97837184 | K18: =J18*(1+'4. Indexation&Financing'!$T$34) -> 26.49793928 | L18: =K18*(1+'4. Indexation&Financing'!$T$34) -> 27.02789806 | M18: =L18*(1+'4. Indexation&Financing'!$T$34) -> 27.56845602 | N18: =M18*(1+'4. Indexation&Financing'!$T$34) -> 28.11982514 | O18: =N18*(1+'4. Indexation&Financing'!$T$34) -> 28.68222165 | P18: =O18*(1+'4. Indexation&Financing'!$T$34) -> 29.25586608 | Q18: =P18*(1+'4. Indexation&Financing'!$T$34) -> 29.8409834 | R18: =Q18*(1+'4. Indexation&Financing'!$T$34) -> 30.43780307 | S18: =R18*(1+'4. Indexation&Financing'!$T$34) -> 31.04655913 | T18: =S18*(1+'4. Indexation&Financing'!$T$34) -> 31.66749031 | U18: =T18*(1+'4. Indexation&Financing'!$T$34) -> 32.30084012 | V18: =U18*(1+'4. Indexation&Financing'!$T$34) -> 32.94685692 | W18: =V18*(1+'4. Indexation&Financing'!$T$34) -> 33.60579406 | X18: =W18*(1+'4. Indexation&Financing'!$T$34) -> 34.27790994 | Y18: =X18*(1+'4. Indexation&Financing'!$T$34) -> 34.96346814 | Z18: =Y18*(1+'4. Indexation&Financing'!$T$34) -> 35.6627375 | AA18: =Z18*(1+'4. Indexation&Financing'!$T$34) -> 36.37599225 | AB18: =AA18*(1+'4. Indexation&Financing'!$T$34) -> 37.1035121 | AC18: =AB18*(1+'4. Indexation&Financing'!$T$34) -> 37.84558234 | AD18: =AC18*(1+'4. Indexation&Financing'!$T$34) -> 38.60249399 | AE18: =AD18*(1+'4. Indexation&Financing'!$T$34) -> 39.37454387
A19: Community | E19: =IF('2. Control table'!$T$84=TRUE,NA(),IF('2. Control table'!I54="Default",'14. Default data'!M20,'2. Control table'!N79)) -> 18 | F19: 0 | G19: =E19*(1+'4. Indexation&Financing'!$T$34) -> 18.36 | H19: =G19*(1+'4. Indexation&Financing'!$T$34) -> 18.7272 | I19: =H19*(1+'4. Indexation&Financing'!$T$34) -> 19.101744 | J19: =I19*(1+'4. Indexation&Financing'!$T$34) -> 19.48377888 | K19: =J19*(1+'4. Indexation&Financing'!$T$34) -> 19.87345446 | L19: =K19*(1+'4. Indexation&Financing'!$T$34) -> 20.27092355 | M19: =L19*(1+'4. Indexation&Financing'!$T$34) -> 20.67634202 | N19: =M19*(1+'4. Indexation&Financing'!$T$34) -> 21.08986886 | O19: =N19*(1+'4. Indexation&Financing'!$T$34) -> 21.51166624 | P19: =O19*(1+'4. Indexation&Financing'!$T$34) -> 21.94189956 | Q19: =P19*(1+'4. Indexation&Financing'!$T$34) -> 22.38073755 | R19: =Q19*(1+'4. Indexation&Financing'!$T$34) -> 22.8283523 | S19: =R19*(1+'4. Indexation&Financing'!$T$34) -> 23.28491935 | T19: =S19*(1+'4. Indexation&Financing'!$T$34) -> 23.75061774 | U19: =T19*(1+'4. Indexation&Financing'!$T$34) -> 24.22563009 | V19: =U19*(1+'4. Indexation&Financing'!$T$34) -> 24.71014269 | W19: =V19*(1+'4. Indexation&Financing'!$T$34) -> 25.20434555 | X19: =W19*(1+'4. Indexation&Financing'!$T$34) -> 25.70843246 | Y19: =X19*(1+'4. Indexation&Financing'!$T$34) -> 26.22260111 | Z19: =Y19*(1+'4. Indexation&Financing'!$T$34) -> 26.74705313 | AA19: =Z19*(1+'4. Indexation&Financing'!$T$34) -> 27.28199419 | AB19: =AA19*(1+'4. Indexation&Financing'!$T$34) -> 27.82763407 | AC19: =AB19*(1+'4. Indexation&Financing'!$T$34) -> 28.38418676 | AD19: =AC19*(1+'4. Indexation&Financing'!$T$34) -> 28.95187049 | AE19: =AD19*(1+'4. Indexation&Financing'!$T$34) -> 29.5309079
A20: Commercial Small Scale | E20: =IF('2. Control table'!$T$84=TRUE,NA(),IF('2. Control table'!I54="Default",'14. Default data'!M24,'2. Control table'!N80)) -> 7 | F20: 0 | G20: =E20*(1+'4. Indexation&Financing'!$T$34) -> 7.14 | H20: =G20*(1+'4. Indexation&Financing'!$T$34) -> 7.2828 | I20: =H20*(1+'4. Indexation&Financing'!$T$34) -> 7.428456 | J20: =I20*(1+'4. Indexation&Financing'!$T$34) -> 7.57702512 | K20: =J20*(1+'4. Indexation&Financing'!$T$34) -> 7.728565622 | L20: =K20*(1+'4. Indexation&Financing'!$T$34) -> 7.883136935 | M20: =L20*(1+'4. Indexation&Financing'!$T$34) -> 8.040799674 | N20: =M20*(1+'4. Indexation&Financing'!$T$34) -> 8.201615667 | O20: =N20*(1+'4. Indexation&Financing'!$T$34) -> 8.36564798 | P20: =O20*(1+'4. Indexation&Financing'!$T$34) -> 8.53296094 | Q20: =P20*(1+'4. Indexation&Financing'!$T$34) -> 8.703620159 | R20: =Q20*(1+'4. Indexation&Financing'!$T$34) -> 8.877692562 | S20: =R20*(1+'4. Indexation&Financing'!$T$34) -> 9.055246413 | T20: =S20*(1+'4. Indexation&Financing'!$T$34) -> 9.236351341 | U20: =T20*(1+'4. Indexation&Financing'!$T$34) -> 9.421078368 | V20: =U20*(1+'4. Indexation&Financing'!$T$34) -> 9.609499936 | W20: =V20*(1+'4. Indexation&Financing'!$T$34) -> 9.801689934 | X20: =W20*(1+'4. Indexation&Financing'!$T$34) -> 9.997723733 | Y20: =X20*(1+'4. Indexation&Financing'!$T$34) -> 10.19767821 | Z20: =Y20*(1+'4. Indexation&Financing'!$T$34) -> 10.40163177 | AA20: =Z20*(1+'4. Indexation&Financing'!$T$34) -> 10.60966441 | AB20: =AA20*(1+'4. Indexation&Financing'!$T$34) -> 10.8218577 | AC20: =AB20*(1+'4. Indexation&Financing'!$T$34) -> 11.03829485 | AD20: =AC20*(1+'4. Indexation&Financing'!$T$34) -> 11.25906075 | AE20: =AD20*(1+'4. Indexation&Financing'!$T$34) -> 11.48424196
A21: Commercial Large Scale & Anchor Load | E21: =IF('2. Control table'!$T$84=TRUE,NA(),IF('2. Control table'!I54="Default",'14. Default data'!M28, '2. Control table'!N81)) -> 17 | F21: 0 | G21: =E21*(1+'4. Indexation&Financing'!$T$34) -> 17.34 | H21: =G21*(1+'4. Indexation&Financing'!$T$34) -> 17.6868 | I21: =H21*(1+'4. Indexation&Financing'!$T$34) -> 18.040536 | J21: =I21*(1+'4. Indexation&Financing'!$T$34) -> 18.40134672 | K21: =J21*(1+'4. Indexation&Financing'!$T$34) -> 18.76937365 | L21: =K21*(1+'4. Indexation&Financing'!$T$34) -> 19.14476113 | M21: =L21*(1+'4. Indexation&Financing'!$T$34) -> 19.52765635 | N21: =M21*(1+'4. Indexation&Financing'!$T$34) -> 19.91820948 | O21: =N21*(1+'4. Indexation&Financing'!$T$34) -> 20.31657367 | P21: =O21*(1+'4. Indexation&Financing'!$T$34) -> 20.72290514 | Q21: =P21*(1+'4. Indexation&Financing'!$T$34) -> 21.13736324 | R21: =Q21*(1+'4. Indexation&Financing'!$T$34) -> 21.56011051 | S21: =R21*(1+'4. Indexation&Financing'!$T$34) -> 21.99131272 | T21: =S21*(1+'4. Indexation&Financing'!$T$34) -> 22.43113897 | U21: =T21*(1+'4. Indexation&Financing'!$T$34) -> 22.87976175 | V21: =U21*(1+'4. Indexation&Financing'!$T$34) -> 23.33735699 | W21: =V21*(1+'4. Indexation&Financing'!$T$34) -> 23.80410413 | X21: =W21*(1+'4. Indexation&Financing'!$T$34) -> 24.28018621 | Y21: =X21*(1+'4. Indexation&Financing'!$T$34) -> 24.76578993 | Z21: =Y21*(1+'4. Indexation&Financing'!$T$34) -> 25.26110573 | AA21: =Z21*(1+'4. Indexation&Financing'!$T$34) -> 25.76632785 | AB21: =AA21*(1+'4. Indexation&Financing'!$T$34) -> 26.2816544 | AC21: =AB21*(1+'4. Indexation&Financing'!$T$34) -> 26.80728749 | AD21: =AC21*(1+'4. Indexation&Financing'!$T$34) -> 27.34343324 | AE21: =AD21*(1+'4. Indexation&Financing'!$T$34) -> 27.89030191
D22: Total Consumer | E22: =SUM(E18:E21) -> 66 | F22: 0 | G22: 67.32 | H22: 68.6664 | I22: 70.039728 | J22: 71.44052256 | K22: 72.86933301 | L22: 74.32671967 | M22: 75.81325406 | N22: 77.32951915 | O22: 78.87610953 | P22: 80.45363172 | Q22: 82.06270435 | R22: 83.70395844 | S22: 85.37803761 | T22: 87.08559836 | U22: 88.82731033 | V22: 90.60385654 | W22: 92.41593367 | X22: 94.26425234 | Y22: 96.14953739 | Z22: 98.07252813 | AA22: 100.0339787 | AB22: 102.0346583 | AC22: 104.0753514 | AD22: 106.1568585 | AE22: 108.2799956
A25: Revenue
A27: Consumer Sector Wise Tariff [NGN/kWh]
A28: Residential | E28: =IF('2. Control table'!$T$84=TRUE,NA(),'2. Control table'!H140) -> 64 | F28: 0 | G28: =E28*(1+'4. Indexation&Financing'!$T$31) -> 68.48 | H28: =(G$28*(1+'4. Indexation&Financing'!$T$31)) -> 73.2736 | I28: =(H$28*(1+'4. Indexation&Financing'!$T$31)) -> 78.402752 | J28: =(I$28*(1+'4. Indexation&Financing'!$T$31)) -> 83.89094464 | K28: =(J$28*(1+'4. Indexation&Financing'!$T$31)) -> 89.76331076 | L28: =(K$28*(1+'4. Indexation&Financing'!$T$31)) -> 96.04674252 | M28: =(L$28*(1+'4. Indexation&Financing'!$T$31)) -> 102.7700145 | N28: =(M$28*(1+'4. Indexation&Financing'!$T$31)) -> 109.9639155 | O28: =(N$28*(1+'4. Indexation&Financing'!$T$31)) -> 117.6613896 | P28: =(O$28*(1+'4. Indexation&Financing'!$T$31)) -> 125.8976869 | Q28: =(P$28*(1+'4. Indexation&Financing'!$T$31)) -> 134.7105249 | R28: =(Q$28*(1+'4. Indexation&Financing'!$T$31)) -> 144.1402617 | S28: =(R$28*(1+'4. Indexation&Financing'!$T$31)) -> 154.23008 | T28: =(S$28*(1+'4. Indexation&Financing'!$T$31)) -> 165.0261856 | U28: =(T$28*(1+'4. Indexation&Financing'!$T$31)) -> 176.5780186 | V28: =(U$28*(1+'4. Indexation&Financing'!$T$31)) -> 188.9384799 | W28: =(V$28*(1+'4. Indexation&Financing'!$T$31)) -> 202.1641735 | X28: =(W$28*(1+'4. Indexation&Financing'!$T$31)) -> 216.3156656 | Y28: =(X$28*(1+'4. Indexation&Financing'!$T$31)) -> 231.4577622 | Z28: =(Y$28*(1+'4. Indexation&Financing'!$T$31)) -> 247.6598056 | AA28: =(Z$28*(1+'4. Indexation&Financing'!$T$31)) -> 264.995992 | AB28: =(AA$28*(1+'4. Indexation&Financing'!$T$31)) -> 283.5457114 | AC28: =(AB$28*(1+'4. Indexation&Financing'!$T$31)) -> 303.3939112 | AD28: =(AC$28*(1+'4. Indexation&Financing'!$T$31)) -> 324.631485 | AE28: =(AD$28*(1+'4. Indexation&Financing'!$T$31)) -> 347.355689
A29: Community | E29: =IF('2. Control table'!$T$84=TRUE,NA(),'2. Control table'!H141) -> 64 | F29: 0 | G29: =E29*(1+'4. Indexation&Financing'!$T$31) -> 68.48 | H29: =(G$29*(1+'4. Indexation&Financing'!$T$31)) -> 73.2736 | I29: =(H$29*(1+'4. Indexation&Financing'!$T$31)) -> 78.402752 | J29: =(I$29*(1+'4. Indexation&Financing'!$T$31)) -> 83.89094464 | K29: =(J$29*(1+'4. Indexation&Financing'!$T$31)) -> 89.76331076 | L29: =(K$29*(1+'4. Indexation&Financing'!$T$31)) -> 96.04674252 | M29: =(L$29*(1+'4. Indexation&Financing'!$T$31)) -> 102.7700145 | N29: =(M$29*(1+'4. Indexation&Financing'!$T$31)) -> 109.9639155 | O29: =(N$29*(1+'4. Indexation&Financing'!$T$31)) -> 117.6613896 | P29: =(O$29*(1+'4. Indexation&Financing'!$T$31)) -> 125.8976869 | Q29: =(P$29*(1+'4. Indexation&Financing'!$T$31)) -> 134.7105249 | R29: =(Q$29*(1+'4. Indexation&Financing'!$T$31)) -> 144.1402617 | S29: =(R$29*(1+'4. Indexation&Financing'!$T$31)) -> 154.23008 | T29: =(S$29*(1+'4. Indexation&Financing'!$T$31)) -> 165.0261856 | U29: =(T$29*(1+'4. Indexation&Financing'!$T$31)) -> 176.5780186 | V29: =(U$29*(1+'4. Indexation&Financing'!$T$31)) -> 188.9384799 | W29: =(V$29*(1+'4. Indexation&Financing'!$T$31)) -> 202.1641735 | X29: =(W$29*(1+'4. Indexation&Financing'!$T$31)) -> 216.3156656 | Y29: =(X$29*(1+'4. Indexation&Financing'!$T$31)) -> 231.4577622 | Z29: =(Y$29*(1+'4. Indexation&Financing'!$T$31)) -> 247.6598056 | AA29: =(Z$29*(1+'4. Indexation&Financing'!$T$31)) -> 264.995992 | AB29: =(AA$29*(1+'4. Indexation&Financing'!$T$31)) -> 283.5457114 | AC29: =(AB$29*(1+'4. Indexation&Financing'!$T$31)) -> 303.3939112 | AD29: =(AC$29*(1+'4. Indexation&Financing'!$T$31)) -> 324.631485 | AE29: =(AD$29*(1+'4. Indexation&Financing'!$T$31)) -> 347.355689
A30: Commercial Small Scale | E30: =IF('2. Control table'!$T$84=TRUE,NA(),'2. Control table'!H142) -> 70 | F30: 0 | G30: =E30*(1+'4. Indexation&Financing'!$T$31) -> 74.9 | H30: =(G$30*(1+'4. Indexation&Financing'!$T$31)) -> 80.143 | I30: =(H$30*(1+'4. Indexation&Financing'!$T$31)) -> 85.75301 | J30: =(I$30*(1+'4. Indexation&Financing'!$T$31)) -> 91.7557207 | K30: =(J$30*(1+'4. Indexation&Financing'!$T$31)) -> 98.17862115 | L30: =(K$30*(1+'4. Indexation&Financing'!$T$31)) -> 105.0511246 | M30: =(L$30*(1+'4. Indexation&Financing'!$T$31)) -> 112.4047034 | N30: =(M$30*(1+'4. Indexation&Financing'!$T$31)) -> 120.2730326 | O30: =(N$30*(1+'4. Indexation&Financing'!$T$31)) -> 128.6921449 | P30: =(O$30*(1+'4. Indexation&Financing'!$T$31)) -> 137.700595 | Q30: =(P$30*(1+'4. Indexation&Financing'!$T$31)) -> 147.3396367 | R30: =(Q$30*(1+'4. Indexation&Financing'!$T$31)) -> 157.6534112 | S30: =(R$30*(1+'4. Indexation&Financing'!$T$31)) -> 168.68915 | T30: =(S$30*(1+'4. Indexation&Financing'!$T$31)) -> 180.4973905 | U30: =(T$30*(1+'4. Indexation&Financing'!$T$31)) -> 193.1322079 | V30: =(U$30*(1+'4. Indexation&Financing'!$T$31)) -> 206.6514624 | W30: =(V$30*(1+'4. Indexation&Financing'!$T$31)) -> 221.1170648 | X30: =(W$30*(1+'4. Indexation&Financing'!$T$31)) -> 236.5952593 | Y30: =(X$30*(1+'4. Indexation&Financing'!$T$31)) -> 253.1569275 | Z30: =(Y$30*(1+'4. Indexation&Financing'!$T$31)) -> 270.8779124 | AA30: =(Z$30*(1+'4. Indexation&Financing'!$T$31)) -> 289.8393662 | AB30: =(AA$30*(1+'4. Indexation&Financing'!$T$31)) -> 310.1281219 | AC30: =(AB$30*(1+'4. Indexation&Financing'!$T$31)) -> 331.8370904 | AD30: =(AC$30*(1+'4. Indexation&Financing'!$T$31)) -> 355.0656867 | AE30: =(AD$30*(1+'4. Indexation&Financing'!$T$31)) -> 379.9202848
A31: Commercial Large Scale & Anchor Load | E31: =IF('2. Control table'!$T$84=TRUE,NA(),'2. Control table'!H143) -> 80 | F31: 0 | G31: =E31*(1+'4. Indexation&Financing'!$T$31) -> 85.6 | H31: =(G$31*(1+'4. Indexation&Financing'!$T$31)) -> 91.592 | I31: =(H$31*(1+'4. Indexation&Financing'!$T$31)) -> 98.00344 | J31: =(I$31*(1+'4. Indexation&Financing'!$T$31)) -> 104.8636808 | K31: =(J$31*(1+'4. Indexation&Financing'!$T$31)) -> 112.2041385 | L31: =(K$31*(1+'4. Indexation&Financing'!$T$31)) -> 120.0584281 | M31: =(L$31*(1+'4. Indexation&Financing'!$T$31)) -> 128.4625181 | N31: =(M$31*(1+'4. Indexation&Financing'!$T$31)) -> 137.4548944 | O31: =(N$31*(1+'4. Indexation&Financing'!$T$31)) -> 147.076737 | P31: =(O$31*(1+'4. Indexation&Financing'!$T$31)) -> 157.3721086 | Q31: =(P$31*(1+'4. Indexation&Financing'!$T$31)) -> 168.3881562 | R31: =(Q$31*(1+'4. Indexation&Financing'!$T$31)) -> 180.1753271 | S31: =(R$31*(1+'4. Indexation&Financing'!$T$31)) -> 192.7876 | T31: =(S$31*(1+'4. Indexation&Financing'!$T$31)) -> 206.282732 | U31: =(T$31*(1+'4. Indexation&Financing'!$T$31)) -> 220.7225233 | V31: =(U$31*(1+'4. Indexation&Financing'!$T$31)) -> 236.1730999 | W31: =(V$31*(1+'4. Indexation&Financing'!$T$31)) -> 252.7052169 | X31: =(W$31*(1+'4. Indexation&Financing'!$T$31)) -> 270.3945821 | Y31: =(X$31*(1+'4. Indexation&Financing'!$T$31)) -> 289.3222028 | Z31: =(Y$31*(1+'4. Indexation&Financing'!$T$31)) -> 309.574757 | AA31: =(Z$31*(1+'4. Indexation&Financing'!$T$31)) -> 331.24499 | AB31: =(AA$31*(1+'4. Indexation&Financing'!$T$31)) -> 354.4321393 | AC31: =(AB$31*(1+'4. Indexation&Financing'!$T$31)) -> 379.242389 | AD31: =(AC$31*(1+'4. Indexation&Financing'!$T$31)) -> 405.7893563 | AE31: =(AD$31*(1+'4. Indexation&Financing'!$T$31)) -> 434.1946112
A33: Consumer Sector Wise connection fee [NGN/user]
A34: Residential | E34: =IF('2. Control table'!$T$84=TRUE,NA(),'2. Control table'!H146) -> 5000 | F34: =E34*E18 -> 120000 | G34: =IF(E18=ROUND(G18,0),0,(ROUND(G18,0)-E18)*E34)*'4. Indexation&Financing'!V19 -> 0 | H34: =IF(ROUND(H18,0)=ROUND(G18,0),0,(ROUND(H18,0)-ROUND(G18,0))*$E34)*'4. Indexation&Financing'!W$19 -> 6050 | I34: =IF(ROUND(I18,0)=ROUND(H18,0),0,(ROUND(I18,0)-ROUND(H18,0))*$E34)*'4. Indexation&Financing'!X$19 -> 0 | J34: =IF(ROUND(J18,0)=ROUND(I18,0),0,(ROUND(J18,0)-ROUND(I18,0))*$E34)*'4. Indexation&Financing'!Y$19 -> 7320.5 | K34: =IF(ROUND(K18,0)=ROUND(J18,0),0,(ROUND(K18,0)-ROUND(J18,0))*$E34)*'4. Indexation&Financing'!Z$19 -> 0 | L34: =IF(ROUND(L18,0)=ROUND(K18,0),0,(ROUND(L18,0)-ROUND(K18,0))*$E34)*'4. Indexation&Financing'!AA$19 -> 8857.805 | M34: =IF(ROUND(M18,0)=ROUND(L18,0),0,(ROUND(M18,0)-ROUND(L18,0))*$E34)*'4. Indexation&Financing'!AB$19 -> 9743.5855 | N34: =IF(ROUND(N18,0)=ROUND(M18,0),0,(ROUND(N18,0)-ROUND(M18,0))*$E34)*'4. Indexation&Financing'!AC$19 -> 0 | O34: =IF(ROUND(O18,0)=ROUND(N18,0),0,(ROUND(O18,0)-ROUND(N18,0))*$E34)*'4. Indexation&Financing'!AD$19 -> 11789.73846 | P34: =IF(ROUND(P18,0)=ROUND(O18,0),0,(ROUND(P18,0)-ROUND(O18,0))*$E34)*'4. Indexation&Financing'!AE$19 -> 0 | Q34: =IF(ROUND(Q18,0)=ROUND(P18,0),0,(ROUND(Q18,0)-ROUND(P18,0))*$E34)*'4. Indexation&Financing'!AF$19 -> 14265.58353 | R34: =IF(ROUND(R18,0)=ROUND(Q18,0),0,(ROUND(R18,0)-ROUND(Q18,0))*$E34)*'4. Indexation&Financing'!AG$19 -> 0 | S34: =IF(ROUND(S18,0)=ROUND(R18,0),0,(ROUND(S18,0)-ROUND(R18,0))*$E34)*'4. Indexation&Financing'!AH$19 -> 17261.35607 | T34: =IF(ROUND(T18,0)=ROUND(S18,0),0,(ROUND(T18,0)-ROUND(S18,0))*$E34)*'4. Indexation&Financing'!AI$19 -> 18987.49168 | U34: =IF(ROUND(U18,0)=ROUND(T18,0),0,(ROUND(U18,0)-ROUND(T18,0))*$E34)*'4. Indexation&Financing'!AJ$19 -> 0 | V34: =IF(ROUND(V18,0)=ROUND(U18,0),0,(ROUND(V18,0)-ROUND(U18,0))*$E34)*'4. Indexation&Financing'!AK$19 -> 22974.86493 | W34: =IF(ROUND(W18,0)=ROUND(V18,0),0,(ROUND(W18,0)-ROUND(V18,0))*$E34)*'4. Indexation&Financing'!AL$19 -> 25272.35142 | X34: =IF(ROUND(X18,0)=ROUND(W18,0),0,(ROUND(X18,0)-ROUND(W18,0))*$E34)*'4. Indexation&Financing'!AM$19 -> 0 | Y34: =IF(ROUND(Y18,0)=ROUND(X18,0),0,(ROUND(Y18,0)-ROUND(X18,0))*$E34)*'4. Indexation&Financing'!AN$19 -> 30579.54522 | Z34: =IF(ROUND(Z18,0)=ROUND(Y18,0),0,(ROUND(Z18,0)-ROUND(Y18,0))*$E34)*'4. Indexation&Financing'!AO$19 -> 33637.49975 | AA34: =IF(ROUND(AA18,0)=ROUND(Z18,0),0,(ROUND(AA18,0)-ROUND(Z18,0))*$E34)*'4. Indexation&Financing'!AP$19 -> 0 | AB34: =IF(ROUND(AB18,0)=ROUND(AA18,0),0,(ROUND(AB18,0)-ROUND(AA18,0))*$E34)*'4. Indexation&Financing'!AQ$19 -> 40701.37469 | AC34: =IF(ROUND(AC18,0)=ROUND(AB18,0),0,(ROUND(AC18,0)-ROUND(AB18,0))*$E34)*'4. Indexation&Financing'!AR$19 -> 44771.51216 | AD34: =IF(ROUND(AD18,0)=ROUND(AC18,0),0,(ROUND(AD18,0)-ROUND(AC18,0))*$E34)*'4. Indexation&Financing'!AS$19 -> 49248.66338 | AE34: =IF(ROUND(AE18,0)=ROUND(AD18,0),0,(ROUND(AE18,0)-ROUND(AD18,0))*$E34)*'4. Indexation&Financing'!AT$19 -> 0
A35: Community | E35: =IF('2. Control table'!$T$84=TRUE,NA(),'2. Control table'!H147) -> 4000 | F35: =E35*E19 -> 72000 | G35: =IF(E19=ROUND(G19,0),0,(ROUND(G19,0)-E19)*E35)*'4. Indexation&Financing'!V19 -> 0 | H35: =IF(ROUND(H19,0)=ROUND(G19,0),0,(ROUND(H19,0)-ROUND(G19,0))*$E35)*'4. Indexation&Financing'!W$19 -> 4840 | I35: =IF(ROUND(I19,0)=ROUND(H19,0),0,(ROUND(I19,0)-ROUND(H19,0))*$E35)*'4. Indexation&Financing'!X$19 -> 0 | J35: =IF(ROUND(J19,0)=ROUND(I19,0),0,(ROUND(J19,0)-ROUND(I19,0))*$E35)*'4. Indexation&Financing'!Y$19 -> 0 | K35: =IF(ROUND(K19,0)=ROUND(J19,0),0,(ROUND(K19,0)-ROUND(J19,0))*$E35)*'4. Indexation&Financing'!Z$19 -> 6442.04 | L35: =IF(ROUND(L19,0)=ROUND(K19,0),0,(ROUND(L19,0)-ROUND(K19,0))*$E35)*'4. Indexation&Financing'!AA$19 -> 0 | M35: =IF(ROUND(M19,0)=ROUND(L19,0),0,(ROUND(M19,0)-ROUND(L19,0))*$E35)*'4. Indexation&Financing'!AB$19 -> 7794.8684 | N35: =IF(ROUND(N19,0)=ROUND(M19,0),0,(ROUND(N19,0)-ROUND(M19,0))*$E35)*'4. Indexation&Financing'!AC$19 -> 0 | O35: =IF(ROUND(O19,0)=ROUND(N19,0),0,(ROUND(O19,0)-ROUND(N19,0))*$E35)*'4. Indexation&Financing'!AD$19 -> 9431.790764 | P35: =IF(ROUND(P19,0)=ROUND(O19,0),0,(ROUND(P19,0)-ROUND(O19,0))*$E35)*'4. Indexation&Financing'!AE$19 -> 0 | Q35: =IF(ROUND(Q19,0)=ROUND(P19,0),0,(ROUND(Q19,0)-ROUND(P19,0))*$E35)*'4. Indexation&Financing'!AF$19 -> 0 | R35: =IF(ROUND(R19,0)=ROUND(Q19,0),0,(ROUND(R19,0)-ROUND(Q19,0))*$E35)*'4. Indexation&Financing'!AG$19 -> 12553.71351 | S35: =IF(ROUND(S19,0)=ROUND(R19,0),0,(ROUND(S19,0)-ROUND(R19,0))*$E35)*'4. Indexation&Financing'!AH$19 -> 0 | T35: =IF(ROUND(T19,0)=ROUND(S19,0),0,(ROUND(T19,0)-ROUND(S19,0))*$E35)*'4. Indexation&Financing'!AI$19 -> 15189.99334 | U35: =IF(ROUND(U19,0)=ROUND(T19,0),0,(ROUND(U19,0)-ROUND(T19,0))*$E35)*'4. Indexation&Financing'!AJ$19 -> 0 | V35: =IF(ROUND(V19,0)=ROUND(U19,0),0,(ROUND(V19,0)-ROUND(U19,0))*$E35)*'4. Indexation&Financing'!AK$19 -> 18379.89195 | W35: =IF(ROUND(W19,0)=ROUND(V19,0),0,(ROUND(W19,0)-ROUND(V19,0))*$E35)*'4. Indexation&Financing'!AL$19 -> 0 | X35: =IF(ROUND(X19,0)=ROUND(W19,0),0,(ROUND(X19,0)-ROUND(W19,0))*$E35)*'4. Indexation&Financing'!AM$19 -> 22239.66925 | Y35: =IF(ROUND(Y19,0)=ROUND(X19,0),0,(ROUND(Y19,0)-ROUND(X19,0))*$E35)*'4. Indexation&Financing'!AN$19 -> 0 | Z35: =IF(ROUND(Z19,0)=ROUND(Y19,0),0,(ROUND(Z19,0)-ROUND(Y19,0))*$E35)*'4. Indexation&Financing'!AO$19 -> 26909.9998 | AA35: =IF(ROUND(AA19,0)=ROUND(Z19,0),0,(ROUND(AA19,0)-ROUND(Z19,0))*$E35)*'4. Indexation&Financing'!AP$19 -> 0 | AB35: =IF(ROUND(AB19,0)=ROUND(AA19,0),0,(ROUND(AB19,0)-ROUND(AA19,0))*$E35)*'4. Indexation&Financing'!AQ$19 -> 32561.09975 | AC35: =IF(ROUND(AC19,0)=ROUND(AB19,0),0,(ROUND(AC19,0)-ROUND(AB19,0))*$E35)*'4. Indexation&Financing'!AR$19 -> 0 | AD35: =IF(ROUND(AD19,0)=ROUND(AC19,0),0,(ROUND(AD19,0)-ROUND(AC19,0))*$E35)*'4. Indexation&Financing'!AS$19 -> 39398.9307 | AE35: =IF(ROUND(AE19,0)=ROUND(AD19,0),0,(ROUND(AE19,0)-ROUND(AD19,0))*$E35)*'4. Indexation&Financing'!AT$19 -> 43338.82377
A36: Commercial Small Scale | E36: =IF('2. Control table'!$T$84=TRUE,NA(),'2. Control table'!H148) -> 6000 | F36: =E36*E20 -> 42000 | G36: =IF(E20=ROUND(G20,0),0,(ROUND(G20,0)-E20)*E36)*'4. Indexation&Financing'!V19 -> 0 | H36: =IF(ROUND(H20,0)=ROUND(G20,0),0,(ROUND(H20,0)-ROUND(G20,0))*$E36)*'4. Indexation&Financing'!W$19 -> 0 | I36: =IF(ROUND(I20,0)=ROUND(H20,0),0,(ROUND(I20,0)-ROUND(H20,0))*$E36)*'4. Indexation&Financing'!X$19 -> 0 | J36: =IF(ROUND(J20,0)=ROUND(I20,0),0,(ROUND(J20,0)-ROUND(I20,0))*$E36)*'4. Indexation&Financing'!Y$19 -> 8784.6 | K36: =IF(ROUND(K20,0)=ROUND(J20,0),0,(ROUND(K20,0)-ROUND(J20,0))*$E36)*'4. Indexation&Financing'!Z$19 -> 0 | L36: =IF(ROUND(L20,0)=ROUND(K20,0),0,(ROUND(L20,0)-ROUND(K20,0))*$E36)*'4. Indexation&Financing'!AA$19 -> 0 | M36: =IF(ROUND(M20,0)=ROUND(L20,0),0,(ROUND(M20,0)-ROUND(L20,0))*$E36)*'4. Indexation&Financing'!AB$19 -> 0 | N36: =IF(ROUND(N20,0)=ROUND(M20,0),0,(ROUND(N20,0)-ROUND(M20,0))*$E36)*'4. Indexation&Financing'!AC$19 -> 0 | O36: =IF(ROUND(O20,0)=ROUND(N20,0),0,(ROUND(O20,0)-ROUND(N20,0))*$E36)*'4. Indexation&Financing'!AD$19 -> 0 | P36: =IF(ROUND(P20,0)=ROUND(O20,0),0,(ROUND(P20,0)-ROUND(O20,0))*$E36)*'4. Indexation&Financing'!AE$19 -> 15562.45476 | Q36: =IF(ROUND(Q20,0)=ROUND(P20,0),0,(ROUND(Q20,0)-ROUND(P20,0))*$E36)*'4. Indexation&Financing'!AF$19 -> 0 | R36: =IF(ROUND(R20,0)=ROUND(Q20,0),0,(ROUND(R20,0)-ROUND(Q20,0))*$E36)*'4. Indexation&Financing'!AG$19 -> 0 | S36: =IF(ROUND(S20,0)=ROUND(R20,0),0,(ROUND(S20,0)-ROUND(R20,0))*$E36)*'4. Indexation&Financing'!AH$19 -> 0 | T36: =IF(ROUND(T20,0)=ROUND(S20,0),0,(ROUND(T20,0)-ROUND(S20,0))*$E36)*'4. Indexation&Financing'!AI$19 -> 0 | U36: =IF(ROUND(U20,0)=ROUND(T20,0),0,(ROUND(U20,0)-ROUND(T20,0))*$E36)*'4. Indexation&Financing'!AJ$19 -> 0 | V36: =IF(ROUND(V20,0)=ROUND(U20,0),0,(ROUND(V20,0)-ROUND(U20,0))*$E36)*'4. Indexation&Financing'!AK$19 -> 27569.83792 | W36: =IF(ROUND(W20,0)=ROUND(V20,0),0,(ROUND(W20,0)-ROUND(V20,0))*$E36)*'4. Indexation&Financing'!AL$19 -> 0 | X36: =IF(ROUND(X20,0)=ROUND(W20,0),0,(ROUND(X20,0)-ROUND(W20,0))*$E36)*'4. Indexation&Financing'!AM$19 -> 0 | Y36: =IF(ROUND(Y20,0)=ROUND(X20,0),0,(ROUND(Y20,0)-ROUND(X20,0))*$E36)*'4. Indexation&Financing'!AN$19 -> 0 | Z36: =IF(ROUND(Z20,0)=ROUND(Y20,0),0,(ROUND(Z20,0)-ROUND(Y20,0))*$E36)*'4. Indexation&Financing'!AO$19 -> 0 | AA36: =IF(ROUND(AA20,0)=ROUND(Z20,0),0,(ROUND(AA20,0)-ROUND(Z20,0))*$E36)*'4. Indexation&Financing'!AP$19 -> 44401.49967 | AB36: =IF(ROUND(AB20,0)=ROUND(AA20,0),0,(ROUND(AB20,0)-ROUND(AA20,0))*$E36)*'4. Indexation&Financing'!AQ$19 -> 0 | AC36: =IF(ROUND(AC20,0)=ROUND(AB20,0),0,(ROUND(AC20,0)-ROUND(AB20,0))*$E36)*'4. Indexation&Financing'!AR$19 -> 0 | AD36: =IF(ROUND(AD20,0)=ROUND(AC20,0),0,(ROUND(AD20,0)-ROUND(AC20,0))*$E36)*'4. Indexation&Financing'!AS$19 -> 0 | AE36: =IF(ROUND(AE20,0)=ROUND(AD20,0),0,(ROUND(AE20,0)-ROUND(AD20,0))*$E36)*'4. Indexation&Financing'!AT$19 -> 0
A37: Commercial Large Scale & Anchor Load | E37: =IF('2. Control table'!$T$84=TRUE,NA(),'2. Control table'!H149) -> 8000 | F37: =E37*E21 -> 136000 | G37: =IF(E21=ROUND(G21,0),0,(ROUND(G21,0)-E21)*E37)*'4. Indexation&Financing'!V19 -> 0 | H37: =IF(ROUND(H21,0)=ROUND(G21,0),0,(ROUND(H21,0)-ROUND(G21,0))*$E37)*'4. Indexation&Financing'!W$19 -> 9680 | I37: =IF(ROUND(I21,0)=ROUND(H21,0),0,(ROUND(I21,0)-ROUND(H21,0))*$E37)*'4. Indexation&Financing'!X$19 -> 0 | J37: =IF(ROUND(J21,0)=ROUND(I21,0),0,(ROUND(J21,0)-ROUND(I21,0))*$E37)*'4. Indexation&Financing'!Y$19 -> 0 | K37: =IF(ROUND(K21,0)=ROUND(J21,0),0,(ROUND(K21,0)-ROUND(J21,0))*$E37)*'4. Indexation&Financing'!Z$19 -> 12884.08 | L37: =IF(ROUND(L21,0)=ROUND(K21,0),0,(ROUND(L21,0)-ROUND(K21,0))*$E37)*'4. Indexation&Financing'!AA$19 -> 0 | M37: =IF(ROUND(M21,0)=ROUND(L21,0),0,(ROUND(M21,0)-ROUND(L21,0))*$E37)*'4. Indexation&Financing'!AB$19 -> 15589.7368 | N37: =IF(ROUND(N21,0)=ROUND(M21,0),0,(ROUND(N21,0)-ROUND(M21,0))*$E37)*'4. Indexation&Financing'!AC$19 -> 0 | O37: =IF(ROUND(O21,0)=ROUND(N21,0),0,(ROUND(O21,0)-ROUND(N21,0))*$E37)*'4. Indexation&Financing'!AD$19 -> 0 | P37: =IF(ROUND(P21,0)=ROUND(O21,0),0,(ROUND(P21,0)-ROUND(O21,0))*$E37)*'4. Indexation&Financing'!AE$19 -> 20749.93968 | Q37: =IF(ROUND(Q21,0)=ROUND(P21,0),0,(ROUND(Q21,0)-ROUND(P21,0))*$E37)*'4. Indexation&Financing'!AF$19 -> 0 | R37: =IF(ROUND(R21,0)=ROUND(Q21,0),0,(ROUND(R21,0)-ROUND(Q21,0))*$E37)*'4. Indexation&Financing'!AG$19 -> 25107.42701 | S37: =IF(ROUND(S21,0)=ROUND(R21,0),0,(ROUND(S21,0)-ROUND(R21,0))*$E37)*'4. Indexation&Financing'!AH$19 -> 0 | T37: =IF(ROUND(T21,0)=ROUND(S21,0),0,(ROUND(T21,0)-ROUND(S21,0))*$E37)*'4. Indexation&Financing'!AI$19 -> 0 | U37: =IF(ROUND(U21,0)=ROUND(T21,0),0,(ROUND(U21,0)-ROUND(T21,0))*$E37)*'4. Indexation&Financing'!AJ$19 -> 33417.98536 | V37: =IF(ROUND(V21,0)=ROUND(U21,0),0,(ROUND(V21,0)-ROUND(U21,0))*$E37)*'4. Indexation&Financing'!AK$19 -> 0 | W37: =IF(ROUND(W21,0)=ROUND(V21,0),0,(ROUND(W21,0)-ROUND(V21,0))*$E37)*'4. Indexation&Financing'!AL$19 -> 40435.76228 | X37: =IF(ROUND(X21,0)=ROUND(W21,0),0,(ROUND(X21,0)-ROUND(W21,0))*$E37)*'4. Indexation&Financing'!AM$19 -> 0 | Y37: =IF(ROUND(Y21,0)=ROUND(X21,0),0,(ROUND(Y21,0)-ROUND(X21,0))*$E37)*'4. Indexation&Financing'!AN$19 -> 48927.27236 | Z37: =IF(ROUND(Z21,0)=ROUND(Y21,0),0,(ROUND(Z21,0)-ROUND(Y21,0))*$E37)*'4. Indexation&Financing'!AO$19 -> 0 | AA37: =IF(ROUND(AA21,0)=ROUND(Z21,0),0,(ROUND(AA21,0)-ROUND(Z21,0))*$E37)*'4. Indexation&Financing'!AP$19 -> 59201.99955 | AB37: =IF(ROUND(AB21,0)=ROUND(AA21,0),0,(ROUND(AB21,0)-ROUND(AA21,0))*$E37)*'4. Indexation&Financing'!AQ$19 -> 0 | AC37: =IF(ROUND(AC21,0)=ROUND(AB21,0),0,(ROUND(AC21,0)-ROUND(AB21,0))*$E37)*'4. Indexation&Financing'!AR$19 -> 71634.41946 | AD37: =IF(ROUND(AD21,0)=ROUND(AC21,0),0,(ROUND(AD21,0)-ROUND(AC21,0))*$E37)*'4. Indexation&Financing'!AS$19 -> 0 | AE37: =IF(ROUND(AE21,0)=ROUND(AD21,0),0,(ROUND(AE21,0)-ROUND(AD21,0))*$E37)*'4. Indexation&Financing'!AT$19 -> 86677.64755
A39: Consumer Sector Wise fixed costs [NGN/year/user]
A40: Residential | E40: =IF('2. Control table'!$T$84=TRUE,NA(),'2. Control table'!N140) -> 120 | F40: 0 | G40: =($E18+(ROUND($G18,0)-$E18))*12*'4. Indexation&Financing'!$V21 -> 36806.4 | H40: =($E$18+(ROUND(H$18,0)-ROUND(G$18,0)))*12*'4. Indexation&Financing'!W$21 -> 40832.1 | I40: =($E$18+(ROUND(I$18,0)-ROUND(H$18,0)))*12*'4. Indexation&Financing'!X$21 -> 41746.73904 | J40: =($E$18+(ROUND(J$18,0)-ROUND(I$18,0)))*12*'4. Indexation&Financing'!Y$21 -> 46312.78862 | K40: =($E$18+(ROUND(K$18,0)-ROUND(J$18,0)))*12*'4. Indexation&Financing'!Z$21 -> 47350.19509 | L40: =($E$18+(ROUND(L$18,0)-ROUND(K$18,0)))*12*'4. Indexation&Financing'!AA$21 -> 52529.12268 | M40: =($E$18+(ROUND(M$18,0)-ROUND(L$18,0)))*12*'4. Indexation&Financing'!AB$21 -> 55943.51565 | N40: =($E$18+(ROUND(N$18,0)-ROUND(M$18,0)))*12*'4. Indexation&Financing'!AC$21 -> 57196.6504 | O40: =($E$18+(ROUND(O$18,0)-ROUND(N$18,0)))*12*'4. Indexation&Financing'!AD$21 -> 63452.53404 | P40: =($E$18+(ROUND(P$18,0)-ROUND(O$18,0)))*12*'4. Indexation&Financing'!AE$21 -> 64873.8708 | Q40: =($E$18+(ROUND(Q$18,0)-ROUND(P$18,0)))*12*'4. Indexation&Financing'!AF$21 -> 71969.45042 | R40: =($E$18+(ROUND(R$18,0)-ROUND(Q$18,0)))*12*'4. Indexation&Financing'!AG$21 -> 73581.56611 | S40: =($E$18+(ROUND(S$18,0)-ROUND(R$18,0)))*12*'4. Indexation&Financing'!AH$21 -> 81629.5499 | T40: =($E$18+(ROUND(T$18,0)-ROUND(S$18,0)))*12*'4. Indexation&Financing'!AI$21 -> 86935.47064 | U40: =($E$18+(ROUND(U$18,0)-ROUND(T$18,0)))*12*'4. Indexation&Financing'!AJ$21 -> 88882.82519 | V40: =($E$18+(ROUND(V$18,0)-ROUND(U$18,0)))*12*'4. Indexation&Financing'!AK$21 -> 98604.38419 | W40: =($E$18+(ROUND(W$18,0)-ROUND(V$18,0)))*12*'4. Indexation&Financing'!AL$21 -> 105013.6692 | X40: =($E$18+(ROUND(X$18,0)-ROUND(W$18,0)))*12*'4. Indexation&Financing'!AM$21 -> 107365.9754 | Y40: =($E$18+(ROUND(Y$18,0)-ROUND(X$18,0)))*12*'4. Indexation&Financing'!AN$21 -> 119109.1289 | Z40: =($E$18+(ROUND(Z$18,0)-ROUND(Y$18,0)))*12*'4. Indexation&Financing'!AO$21 -> 126851.2223 | AA40: =($E$18+(ROUND(AA$18,0)-ROUND(Z$18,0)))*12*'4. Indexation&Financing'!AP$21 -> 129692.6897 | AB40: =($E$18+(ROUND(AB$18,0)-ROUND(AA$18,0)))*12*'4. Indexation&Financing'!AQ$21 -> 143877.8276 | AC40: =($E$18+(ROUND(AC$18,0)-ROUND(AB$18,0)))*12*'4. Indexation&Financing'!AR$21 -> 153229.8864 | AD40: =($E$18+(ROUND(AD$18,0)-ROUND(AC$18,0)))*12*'4. Indexation&Financing'!AS$21 -> 163189.829 | AE40: =($E$18+(ROUND(AE$18,0)-ROUND(AD$18,0)))*12*'4. Indexation&Financing'!AT$21 -> 166845.2812
A41: Community | E41: =IF('2. Control table'!$T$84=TRUE,NA(),'2. Control table'!N141) -> 110 | F41: 0 | G41: =($E19+(ROUND($G19,0)-$E19))*12*'4. Indexation&Financing'!$V22 -> 25304.4 | H41: =($E$19+(ROUND(H$19,0)-ROUND(G$19,0)))*12*'4. Indexation&Financing'!W$22 -> 28446.363 | I41: =($E$19+(ROUND(I$19,0)-ROUND(H$19,0)))*12*'4. Indexation&Financing'!X$22 -> 28700.88309 | J41: =($E$19+(ROUND(J$19,0)-ROUND(I$19,0)))*12*'4. Indexation&Financing'!Y$22 -> 30566.44049 | K41: =($E$19+(ROUND(K$19,0)-ROUND(J$19,0)))*12*'4. Indexation&Financing'!Z$22 -> 34361.77352 | L41: =($E$19+(ROUND(L$19,0)-ROUND(K$19,0)))*12*'4. Indexation&Financing'!AA$22 -> 34669.22097 | M41: =($E$19+(ROUND(M$19,0)-ROUND(L$19,0)))*12*'4. Indexation&Financing'!AB$22 -> 38973.98257 | N41: =($E$19+(ROUND(N$19,0)-ROUND(M$19,0)))*12*'4. Indexation&Financing'!AC$22 -> 39322.69715 | O41: =($E$19+(ROUND(O$19,0)-ROUND(N$19,0)))*12*'4. Indexation&Financing'!AD$22 -> 44205.26538 | P41: =($E$19+(ROUND(P$19,0)-ROUND(O$19,0)))*12*'4. Indexation&Financing'!AE$22 -> 44600.78617 | Q41: =($E$19+(ROUND(Q$19,0)-ROUND(P$19,0)))*12*'4. Indexation&Financing'!AF$22 -> 47499.83728 | R41: =($E$19+(ROUND(R$19,0)-ROUND(Q$19,0)))*12*'4. Indexation&Financing'!AG$22 -> 53397.73374 | S41: =($E$19+(ROUND(S$19,0)-ROUND(R$19,0)))*12*'4. Indexation&Financing'!AH$22 -> 53875.50293 | T41: =($E$19+(ROUND(T$19,0)-ROUND(S$19,0)))*12*'4. Indexation&Financing'!AI$22 -> 60565.04455 | U41: =($E$19+(ROUND(U$19,0)-ROUND(T$19,0)))*12*'4. Indexation&Financing'!AJ$22 -> 61106.94232 | V41: =($E$19+(ROUND(V$19,0)-ROUND(U$19,0)))*12*'4. Indexation&Financing'!AK$22 -> 68694.38765 | W41: =($E$19+(ROUND(W$19,0)-ROUND(V$19,0)))*12*'4. Indexation&Financing'!AL$22 -> 69309.02165 | X41: =($E$19+(ROUND(X$19,0)-ROUND(W$19,0)))*12*'4. Indexation&Financing'!AM$22 -> 77914.89184 | Y41: =($E$19+(ROUND(Y$19,0)-ROUND(X$19,0)))*12*'4. Indexation&Financing'!AN$22 -> 78612.02508 | Z41: =($E$19+(ROUND(Z$19,0)-ROUND(Y$19,0)))*12*'4. Indexation&Financing'!AO$22 -> 88373.01819 | AA41: =($E$19+(ROUND(AA$19,0)-ROUND(Z$19,0)))*12*'4. Indexation&Financing'!AP$22 -> 89163.72415 | AB41: =($E$19+(ROUND(AB$19,0)-ROUND(AA$19,0)))*12*'4. Indexation&Financing'!AQ$22 -> 100234.8866 | AC41: =($E$19+(ROUND(AC$19,0)-ROUND(AB$19,0)))*12*'4. Indexation&Financing'!AR$22 -> 101131.725 | AD41: =($E$19+(ROUND(AD$19,0)-ROUND(AC$19,0)))*12*'4. Indexation&Financing'!AS$22 -> 113688.9142 | AE41: =($E$19+(ROUND(AE$19,0)-ROUND(AD$19,0)))*12*'4. Indexation&Financing'!AT$22 -> 121078.6936
A42: Commercial Small Scale | E42: =IF('2. Control table'!$T$84=TRUE,NA(),'2. Control table'!N142) -> 130 | F42: 0 | G42: =($E20+(ROUND($G20,0)-$E20))*12*'4. Indexation&Financing'!$V23 -> 11629.8 | H42: =($E$20+(ROUND(H$20,0)-ROUND(G$20,0)))*12*'4. Indexation&Financing'!W$23 -> 12385.737 | I42: =($E$20+(ROUND(I$20,0)-ROUND(H$20,0)))*12*'4. Indexation&Financing'!X$23 -> 13190.8099 | J42: =($E$20+(ROUND(J$20,0)-ROUND(I$20,0)))*12*'4. Indexation&Financing'!Y$23 -> 16055.10006 | K42: =($E$20+(ROUND(K$20,0)-ROUND(J$20,0)))*12*'4. Indexation&Financing'!Z$23 -> 14961.34636 | L42: =($E$20+(ROUND(L$20,0)-ROUND(K$20,0)))*12*'4. Indexation&Financing'!AA$23 -> 15933.83388 | M42: =($E$20+(ROUND(M$20,0)-ROUND(L$20,0)))*12*'4. Indexation&Financing'!AB$23 -> 16969.53308 | N42: =($E$20+(ROUND(N$20,0)-ROUND(M$20,0)))*12*'4. Indexation&Financing'!AC$23 -> 18072.55273 | O42: =($E$20+(ROUND(O$20,0)-ROUND(N$20,0)))*12*'4. Indexation&Financing'!AD$23 -> 19247.26866 | P42: =($E$20+(ROUND(P$20,0)-ROUND(O$20,0)))*12*'4. Indexation&Financing'!AE$23 -> 23426.67557 | Q42: =($E$20+(ROUND(Q$20,0)-ROUND(P$20,0)))*12*'4. Indexation&Financing'!AF$23 -> 21830.73329 | R42: =($E$20+(ROUND(R$20,0)-ROUND(Q$20,0)))*12*'4. Indexation&Financing'!AG$23 -> 23249.73096 | S42: =($E$20+(ROUND(S$20,0)-ROUND(R$20,0)))*12*'4. Indexation&Financing'!AH$23 -> 24760.96347 | T42: =($E$20+(ROUND(T$20,0)-ROUND(S$20,0)))*12*'4. Indexation&Financing'!AI$23 -> 26370.4261 | U42: =($E$20+(ROUND(U$20,0)-ROUND(T$20,0)))*12*'4. Indexation&Financing'!AJ$23 -> 28084.50379 | V42: =($E$20+(ROUND(V$20,0)-ROUND(U$20,0)))*12*'4. Indexation&Financing'!AK$23 -> 34182.85319 | W42: =($E$20+(ROUND(W$20,0)-ROUND(V$20,0)))*12*'4. Indexation&Financing'!AL$23 -> 31854.14631 | X42: =($E$20+(ROUND(X$20,0)-ROUND(W$20,0)))*12*'4. Indexation&Financing'!AM$23 -> 33924.66582 | Y42: =($E$20+(ROUND(Y$20,0)-ROUND(X$20,0)))*12*'4. Indexation&Financing'!AN$23 -> 36129.7691 | Z42: =($E$20+(ROUND(Z$20,0)-ROUND(Y$20,0)))*12*'4. Indexation&Financing'!AO$23 -> 38478.20409 | AA42: =($E$20+(ROUND(AA$20,0)-ROUND(Z$20,0)))*12*'4. Indexation&Financing'!AP$23 -> 46833.47127 | AB42: =($E$20+(ROUND(AB$20,0)-ROUND(AA$20,0)))*12*'4. Indexation&Financing'!AQ$23 -> 43642.94104 | AC42: =($E$20+(ROUND(AC$20,0)-ROUND(AB$20,0)))*12*'4. Indexation&Financing'!AR$23 -> 46479.73221 | AD42: =($E$20+(ROUND(AD$20,0)-ROUND(AC$20,0)))*12*'4. Indexation&Financing'!AS$23 -> 49500.9148 | AE42: =($E$20+(ROUND(AE$20,0)-ROUND(AD$20,0)))*12*'4. Indexation&Financing'!AT$23 -> 52718.47426
A43: Commercial Large Scale & Anchor Load | E43: =IF('2. Control table'!$T$84=TRUE,NA(),'2. Control table'!N143) -> 150 | F43: 0 | G43: =($E21+(ROUND($G21,0)-$E21))*12*'4. Indexation&Financing'!$V24 -> 32589 | H43: =($E$21+(ROUND(H$21,0)-ROUND(G$21,0)))*12*'4. Indexation&Financing'!W$24 -> 36748.89 | I43: =($E$21+(ROUND(I$21,0)-ROUND(H$21,0)))*12*'4. Indexation&Financing'!X$24 -> 36963.25852 | J43: =($E$21+(ROUND(J$21,0)-ROUND(I$21,0)))*12*'4. Indexation&Financing'!Y$24 -> 39365.87033 | K43: =($E$21+(ROUND(K$21,0)-ROUND(J$21,0)))*12*'4. Indexation&Financing'!Z$24 -> 44390.80789 | L43: =($E$21+(ROUND(L$21,0)-ROUND(K$21,0)))*12*'4. Indexation&Financing'!AA$24 -> 44649.75427 | M43: =($E$21+(ROUND(M$21,0)-ROUND(L$21,0)))*12*'4. Indexation&Financing'!AB$24 -> 50349.16408 | N43: =($E$21+(ROUND(N$21,0)-ROUND(M$21,0)))*12*'4. Indexation&Financing'!AC$24 -> 50642.86754 | O43: =($E$21+(ROUND(O$21,0)-ROUND(N$21,0)))*12*'4. Indexation&Financing'!AD$24 -> 53934.65393 | P43: =($E$21+(ROUND(P$21,0)-ROUND(O$21,0)))*12*'4. Indexation&Financing'!AE$24 -> 60819.25387 | Q43: =($E$21+(ROUND(Q$21,0)-ROUND(P$21,0)))*12*'4. Indexation&Financing'!AF$24 -> 61174.03286 | R43: =($E$21+(ROUND(R$21,0)-ROUND(Q$21,0)))*12*'4. Indexation&Financing'!AG$24 -> 68982.71823 | S43: =($E$21+(ROUND(S$21,0)-ROUND(R$21,0)))*12*'4. Indexation&Financing'!AH$24 -> 69385.11742 | T43: =($E$21+(ROUND(T$21,0)-ROUND(S$21,0)))*12*'4. Indexation&Financing'!AI$24 -> 73895.15005 | U43: =($E$21+(ROUND(U$21,0)-ROUND(T$21,0)))*12*'4. Indexation&Financing'!AJ$24 -> 83327.64861 | V43: =($E$21+(ROUND(V$21,0)-ROUND(U$21,0)))*12*'4. Indexation&Financing'!AK$24 -> 83813.72656 | W43: =($E$21+(ROUND(W$21,0)-ROUND(V$21,0)))*12*'4. Indexation&Financing'!AL$24 -> 94512.30225 | X43: =($E$21+(ROUND(X$21,0)-ROUND(W$21,0)))*12*'4. Indexation&Financing'!AM$24 -> 95063.62401 | Y43: =($E$21+(ROUND(Y$21,0)-ROUND(X$21,0)))*12*'4. Indexation&Financing'!AN$24 -> 107198.216 | Z43: =($E$21+(ROUND(Z$21,0)-ROUND(Y$21,0)))*12*'4. Indexation&Financing'!AO$24 -> 107823.5389 | AA43: =($E$21+(ROUND(AA$21,0)-ROUND(Z$21,0)))*12*'4. Indexation&Financing'!AP$24 -> 121586.8966 | AB43: =($E$21+(ROUND(AB$21,0)-ROUND(AA$21,0)))*12*'4. Indexation&Financing'!AQ$24 -> 122296.1535 | AC43: =($E$21+(ROUND(AC$21,0)-ROUND(AB$21,0)))*12*'4. Indexation&Financing'!AR$24 -> 137906.8978 | AD43: =($E$21+(ROUND(AD$21,0)-ROUND(AC$21,0)))*12*'4. Indexation&Financing'!AS$24 -> 138711.3547 | AE43: =($E$21+(ROUND(AE$21,0)-ROUND(AD$21,0)))*12*'4. Indexation&Financing'!AT$24 -> 156417.4511
A45: Consumer Sector Wise metering costs [NGN/year/user]
A46: Residential | E46: =IF('2. Control table'!$T$84=TRUE,NA(),'2. Control table'!N146) -> 160 | F46: 0 | G46: =($E18+(ROUND($G18,0)-$E18))*12*'4. Indexation&Financing'!$V26 -> 49075.2 | H46: =($E$18+(ROUND(H$18,0)-ROUND(G$18,0)))*12*'4. Indexation&Financing'!W$26 -> 54442.8 | I46: =($E$18+(ROUND(I$18,0)-ROUND(H$18,0)))*12*'4. Indexation&Financing'!X$26 -> 55662.31872 | J46: =($E$18+(ROUND(J$18,0)-ROUND(I$18,0)))*12*'4. Indexation&Financing'!Y$26 -> 61750.38483 | K46: =($E$18+(ROUND(K$18,0)-ROUND(J$18,0)))*12*'4. Indexation&Financing'!Z$26 -> 63133.59345 | L46: =($E$18+(ROUND(L$18,0)-ROUND(K$18,0)))*12*'4. Indexation&Financing'!AA$26 -> 70038.83023 | M46: =($E$18+(ROUND(M$18,0)-ROUND(L$18,0)))*12*'4. Indexation&Financing'!AB$26 -> 74591.3542 | N46: =($E$18+(ROUND(N$18,0)-ROUND(M$18,0)))*12*'4. Indexation&Financing'!AC$26 -> 76262.20053 | O46: =($E$18+(ROUND(O$18,0)-ROUND(N$18,0)))*12*'4. Indexation&Financing'!AD$26 -> 84603.37872 | P46: =($E$18+(ROUND(P$18,0)-ROUND(O$18,0)))*12*'4. Indexation&Financing'!AE$26 -> 86498.4944 | Q46: =($E$18+(ROUND(Q$18,0)-ROUND(P$18,0)))*12*'4. Indexation&Financing'!AF$26 -> 95959.26722 | R46: =($E$18+(ROUND(R$18,0)-ROUND(Q$18,0)))*12*'4. Indexation&Financing'!AG$26 -> 98108.75481 | S46: =($E$18+(ROUND(S$18,0)-ROUND(R$18,0)))*12*'4. Indexation&Financing'!AH$26 -> 108839.3999 | T46: =($E$18+(ROUND(T$18,0)-ROUND(S$18,0)))*12*'4. Indexation&Financing'!AI$26 -> 115913.9609 | U46: =($E$18+(ROUND(U$18,0)-ROUND(T$18,0)))*12*'4. Indexation&Financing'!AJ$26 -> 118510.4336 | V46: =($E$18+(ROUND(V$18,0)-ROUND(U$18,0)))*12*'4. Indexation&Financing'!AK$26 -> 131472.5123 | W46: =($E$18+(ROUND(W$18,0)-ROUND(V$18,0)))*12*'4. Indexation&Financing'!AL$26 -> 140018.2256 | X46: =($E$18+(ROUND(X$18,0)-ROUND(W$18,0)))*12*'4. Indexation&Financing'!AM$26 -> 143154.6338 | Y46: =($E$18+(ROUND(Y$18,0)-ROUND(X$18,0)))*12*'4. Indexation&Financing'!AN$26 -> 158812.1719 | Z46: =($E$18+(ROUND(Z$18,0)-ROUND(Y$18,0)))*12*'4. Indexation&Financing'!AO$26 -> 169134.963 | AA46: =($E$18+(ROUND(AA$18,0)-ROUND(Z$18,0)))*12*'4. Indexation&Financing'!AP$26 -> 172923.5862 | AB46: =($E$18+(ROUND(AB$18,0)-ROUND(AA$18,0)))*12*'4. Indexation&Financing'!AQ$26 -> 191837.1035 | AC46: =($E$18+(ROUND(AC$18,0)-ROUND(AB$18,0)))*12*'4. Indexation&Financing'!AR$26 -> 204306.5152 | AD46: =($E$18+(ROUND(AD$18,0)-ROUND(AC$18,0)))*12*'4. Indexation&Financing'!AS$26 -> 217586.4387 | AE46: =($E$18+(ROUND(AE$18,0)-ROUND(AD$18,0)))*12*'4. Indexation&Financing'!AT$26 -> 222460.3749
A47: Community | E47: =IF('2. Control table'!$T$84=TRUE,NA(),'2. Control table'!N147) -> 150 | F47: 0 | G47: =($E19+(ROUND($G19,0)-$E19))*12*'4. Indexation&Financing'!$V27 -> 34506 | H47: =($E$19+(ROUND(H$19,0)-ROUND(G$19,0)))*12*'4. Indexation&Financing'!W$27 -> 38790.495 | I47: =($E$19+(ROUND(I$19,0)-ROUND(H$19,0)))*12*'4. Indexation&Financing'!X$27 -> 39137.56785 | J47: =($E$19+(ROUND(J$19,0)-ROUND(I$19,0)))*12*'4. Indexation&Financing'!Y$27 -> 41681.50976 | K47: =($E$19+(ROUND(K$19,0)-ROUND(J$19,0)))*12*'4. Indexation&Financing'!Z$27 -> 46856.96389 | L47: =($E$19+(ROUND(L$19,0)-ROUND(K$19,0)))*12*'4. Indexation&Financing'!AA$27 -> 47276.21041 | M47: =($E$19+(ROUND(M$19,0)-ROUND(L$19,0)))*12*'4. Indexation&Financing'!AB$27 -> 53146.33987 | N47: =($E$19+(ROUND(N$19,0)-ROUND(M$19,0)))*12*'4. Indexation&Financing'!AC$27 -> 53621.85975 | O47: =($E$19+(ROUND(O$19,0)-ROUND(N$19,0)))*12*'4. Indexation&Financing'!AD$27 -> 60279.90734 | P47: =($E$19+(ROUND(P$19,0)-ROUND(O$19,0)))*12*'4. Indexation&Financing'!AE$27 -> 60819.25387 | Q47: =($E$19+(ROUND(Q$19,0)-ROUND(P$19,0)))*12*'4. Indexation&Financing'!AF$27 -> 64772.50538 | R47: =($E$19+(ROUND(R$19,0)-ROUND(Q$19,0)))*12*'4. Indexation&Financing'!AG$27 -> 72815.09146 | S47: =($E$19+(ROUND(S$19,0)-ROUND(R$19,0)))*12*'4. Indexation&Financing'!AH$27 -> 73466.59491 | T47: =($E$19+(ROUND(T$19,0)-ROUND(S$19,0)))*12*'4. Indexation&Financing'!AI$27 -> 82588.69711 | U47: =($E$19+(ROUND(U$19,0)-ROUND(T$19,0)))*12*'4. Indexation&Financing'!AJ$27 -> 83327.64861 | V47: =($E$19+(ROUND(V$19,0)-ROUND(U$19,0)))*12*'4. Indexation&Financing'!AK$27 -> 93674.16498 | W47: =($E$19+(ROUND(W$19,0)-ROUND(V$19,0)))*12*'4. Indexation&Financing'!AL$27 -> 94512.30225 | X47: =($E$19+(ROUND(X$19,0)-ROUND(W$19,0)))*12*'4. Indexation&Financing'!AM$27 -> 106247.5798 | Y47: =($E$19+(ROUND(Y$19,0)-ROUND(X$19,0)))*12*'4. Indexation&Financing'!AN$27 -> 107198.216 | Z47: =($E$19+(ROUND(Z$19,0)-ROUND(Y$19,0)))*12*'4. Indexation&Financing'!AO$27 -> 120508.6612 | AA47: =($E$19+(ROUND(AA$19,0)-ROUND(Z$19,0)))*12*'4. Indexation&Financing'!AP$27 -> 121586.8966 | AB47: =($E$19+(ROUND(AB$19,0)-ROUND(AA$19,0)))*12*'4. Indexation&Financing'!AQ$27 -> 136683.9362 | AC47: =($E$19+(ROUND(AC$19,0)-ROUND(AB$19,0)))*12*'4. Indexation&Financing'!AR$27 -> 137906.8978 | AD47: =($E$19+(ROUND(AD$19,0)-ROUND(AC$19,0)))*12*'4. Indexation&Financing'!AS$27 -> 155030.3376 | AE47: =($E$19+(ROUND(AE$19,0)-ROUND(AD$19,0)))*12*'4. Indexation&Financing'!AT$27 -> 165107.3095
A48: Commercial Small Scale | E48: =IF('2. Control table'!$T$84=TRUE,NA(),'2. Control table'!N148) -> 170 | F48: 0 | G48: =($E20+(ROUND($G20,0)-$E20))*12*'4. Indexation&Financing'!$V28 -> 15208.2 | H48: =($E$20+(ROUND(H$20,0)-ROUND(G$20,0)))*12*'4. Indexation&Financing'!W$28 -> 16196.733 | I48: =($E$20+(ROUND(I$20,0)-ROUND(H$20,0)))*12*'4. Indexation&Financing'!X$28 -> 17249.52064 | J48: =($E$20+(ROUND(J$20,0)-ROUND(I$20,0)))*12*'4. Indexation&Financing'!Y$28 -> 20995.13084 | K48: =($E$20+(ROUND(K$20,0)-ROUND(J$20,0)))*12*'4. Indexation&Financing'!Z$28 -> 19564.83755 | L48: =($E$20+(ROUND(L$20,0)-ROUND(K$20,0)))*12*'4. Indexation&Financing'!AA$28 -> 20836.55199 | M48: =($E$20+(ROUND(M$20,0)-ROUND(L$20,0)))*12*'4. Indexation&Financing'!AB$28 -> 22190.92787 | N48: =($E$20+(ROUND(N$20,0)-ROUND(M$20,0)))*12*'4. Indexation&Financing'!AC$28 -> 23633.33819 | O48: =($E$20+(ROUND(O$20,0)-ROUND(N$20,0)))*12*'4. Indexation&Financing'!AD$28 -> 25169.50517 | P48: =($E$20+(ROUND(P$20,0)-ROUND(O$20,0)))*12*'4. Indexation&Financing'!AE$28 -> 30634.88343 | Q48: =($E$20+(ROUND(Q$20,0)-ROUND(P$20,0)))*12*'4. Indexation&Financing'!AF$28 -> 28547.882 | R48: =($E$20+(ROUND(R$20,0)-ROUND(Q$20,0)))*12*'4. Indexation&Financing'!AG$28 -> 30403.49433 | S48: =($E$20+(ROUND(S$20,0)-ROUND(R$20,0)))*12*'4. Indexation&Financing'!AH$28 -> 32379.72146 | T48: =($E$20+(ROUND(T$20,0)-ROUND(S$20,0)))*12*'4. Indexation&Financing'!AI$28 -> 34484.40336 | U48: =($E$20+(ROUND(U$20,0)-ROUND(T$20,0)))*12*'4. Indexation&Financing'!AJ$28 -> 36725.88957 | V48: =($E$20+(ROUND(V$20,0)-ROUND(U$20,0)))*12*'4. Indexation&Financing'!AK$28 -> 44700.65417 | W48: =($E$20+(ROUND(W$20,0)-ROUND(V$20,0)))*12*'4. Indexation&Financing'!AL$28 -> 41655.4221 | X48: =($E$20+(ROUND(X$20,0)-ROUND(W$20,0)))*12*'4. Indexation&Financing'!AM$28 -> 44363.02454 | Y48: =($E$20+(ROUND(Y$20,0)-ROUND(X$20,0)))*12*'4. Indexation&Financing'!AN$28 -> 47246.62113 | Z48: =($E$20+(ROUND(Z$20,0)-ROUND(Y$20,0)))*12*'4. Indexation&Financing'!AO$28 -> 50317.65151 | AA48: =($E$20+(ROUND(AA$20,0)-ROUND(Z$20,0)))*12*'4. Indexation&Financing'!AP$28 -> 61243.77012 | AB48: =($E$20+(ROUND(AB$20,0)-ROUND(AA$20,0)))*12*'4. Indexation&Financing'!AQ$28 -> 57071.53828 | AC48: =($E$20+(ROUND(AC$20,0)-ROUND(AB$20,0)))*12*'4. Indexation&Financing'!AR$28 -> 60781.18827 | AD48: =($E$20+(ROUND(AD$20,0)-ROUND(AC$20,0)))*12*'4. Indexation&Financing'!AS$28 -> 64731.96551 | AE48: =($E$20+(ROUND(AE$20,0)-ROUND(AD$20,0)))*12*'4. Indexation&Financing'!AT$28 -> 68939.54326
A49: Commercial Large Scale & Anchor Load | E49: =IF('2. Control table'!$T$84=TRUE,NA(),'2. Control table'!N149) -> 180 | F49: 0 | G49: =($E21+(ROUND($G21,0)-$E21))*12*'4. Indexation&Financing'!$V29 -> 39106.8 | H49: =($E$21+(ROUND(H$21,0)-ROUND(G$21,0)))*12*'4. Indexation&Financing'!W$29 -> 44098.668 | I49: =($E$21+(ROUND(I$21,0)-ROUND(H$21,0)))*12*'4. Indexation&Financing'!X$29 -> 44355.91023 | J49: =($E$21+(ROUND(J$21,0)-ROUND(I$21,0)))*12*'4. Indexation&Financing'!Y$29 -> 47239.04439 | K49: =($E$21+(ROUND(K$21,0)-ROUND(J$21,0)))*12*'4. Indexation&Financing'!Z$29 -> 53268.96947 | L49: =($E$21+(ROUND(L$21,0)-ROUND(K$21,0)))*12*'4. Indexation&Financing'!AA$29 -> 53579.70513 | M49: =($E$21+(ROUND(M$21,0)-ROUND(L$21,0)))*12*'4. Indexation&Financing'!AB$29 -> 60418.9969 | N49: =($E$21+(ROUND(N$21,0)-ROUND(M$21,0)))*12*'4. Indexation&Financing'!AC$29 -> 60771.44105 | O49: =($E$21+(ROUND(O$21,0)-ROUND(N$21,0)))*12*'4. Indexation&Financing'!AD$29 -> 64721.58472 | P49: =($E$21+(ROUND(P$21,0)-ROUND(O$21,0)))*12*'4. Indexation&Financing'!AE$29 -> 72983.10465 | Q49: =($E$21+(ROUND(Q$21,0)-ROUND(P$21,0)))*12*'4. Indexation&Financing'!AF$29 -> 73408.83943 | R49: =($E$21+(ROUND(R$21,0)-ROUND(Q$21,0)))*12*'4. Indexation&Financing'!AG$29 -> 82779.26187 | S49: =($E$21+(ROUND(S$21,0)-ROUND(R$21,0)))*12*'4. Indexation&Financing'!AH$29 -> 83262.1409 | T49: =($E$21+(ROUND(T$21,0)-ROUND(S$21,0)))*12*'4. Indexation&Financing'!AI$29 -> 88674.18006 | U49: =($E$21+(ROUND(U$21,0)-ROUND(T$21,0)))*12*'4. Indexation&Financing'!AJ$29 -> 99993.17834 | V49: =($E$21+(ROUND(V$21,0)-ROUND(U$21,0)))*12*'4. Indexation&Financing'!AK$29 -> 100576.4719 | W49: =($E$21+(ROUND(W$21,0)-ROUND(V$21,0)))*12*'4. Indexation&Financing'!AL$29 -> 113414.7627 | X49: =($E$21+(ROUND(X$21,0)-ROUND(W$21,0)))*12*'4. Indexation&Financing'!AM$29 -> 114076.3488 | Y49: =($E$21+(ROUND(Y$21,0)-ROUND(X$21,0)))*12*'4. Indexation&Financing'!AN$29 -> 128637.8592 | Z49: =($E$21+(ROUND(Z$21,0)-ROUND(Y$21,0)))*12*'4. Indexation&Financing'!AO$29 -> 129388.2467 | AA49: =($E$21+(ROUND(AA$21,0)-ROUND(Z$21,0)))*12*'4. Indexation&Financing'!AP$29 -> 145904.2759 | AB49: =($E$21+(ROUND(AB$21,0)-ROUND(AA$21,0)))*12*'4. Indexation&Financing'!AQ$29 -> 146755.3842 | AC49: =($E$21+(ROUND(AC$21,0)-ROUND(AB$21,0)))*12*'4. Indexation&Financing'!AR$29 -> 165488.2773 | AD49: =($E$21+(ROUND(AD$21,0)-ROUND(AC$21,0)))*12*'4. Indexation&Financing'!AS$29 -> 166453.6256 | AE49: =($E$21+(ROUND(AE$21,0)-ROUND(AD$21,0)))*12*'4. Indexation&Financing'!AT$29 -> 187700.9413
A51: Consumer Sector Wise Total kWh sales [NGN/year]
A52: Residential | F52: =(F11*F28) -> 0 | G52: 1697267.312 | H52: 1979522.866 | I52: 2308717.519 | J52: 2692657.242 | K52: 3140446.141 | L52: 3662702.335 | M52: 4271809.733 | N52: 4982211.692 | O52: 5810753.496 | P52: 6777081.802 | Q52: 7904110.506 | R52: 9218564.083 | S52: 10751611.29 | T52: 12539604.25 | U52: 14624940.43 | V52: 17057068.03 | W52: 19893658.44 | X52: 23201973.84 | Y52: 27060462.09 | Z52: 31560616.94 | AA52: 36809147.53 | AB52: 42930508.77 | AC52: 50069852.37 | AD52: 58396468.82 | AE52: 68107801.59
A53: Community | F53: =(F12*F29) -> 0 | G53: 2859065.954 | H53: 3334528.622 | I53: 3889060.732 | J53: 4535811.532 | K53: 5290116.989 | L53: 6169863.445 | M53: 7195911.736 | N53: 8392591.857 | O53: 9788279.883 | P53: 11416070.83 | Q53: 13314563.41 | R53: 15528775.3 | S53: 18111210.63 | T53: 21123104.96 | U53: 24635877.32 | V53: 28732823.71 | W53: 33511092.3 | X53: 39083986.95 | Y53: 45583653.98 | Z53: 53164215.63 | AA53: 62005424.69 | AB53: 72316926.82 | AC53: 84343231.75 | AD53: 98369511.19 | AE53: 114728360.9
A54: Commercial Small Scale | F54: =(F13*F30) -> 0 | G54: 621904.3995 | H54: 725327.1012 | I54: 845948.9981 | J54: 986630.3165 | K54: 1150706.938 | L54: 1342069.502 | M54: 1565255.66 | N54: 1825557.676 | O54: 2129147.918 | P54: 2483225.217 | Q54: 2896185.57 | R54: 3377821.231 | S54: 3939552.901 | T54: 4594700.549 | U54: 5358799.25 | V54: 6249967.565 | W54: 7289337.171 | X54: 8501553.943 | Y54: 9915362.364 | Z54: 11564287.12 | AA54: 13487428.07 | AB54: 15730387.36 | AC54: 18346350.78 | AD54: 21397348.92 | AE54: 24955728.04
A55: Commercial Large Scale & Anchor Load | F55: =(F14*F31) -> 0 | G55: 2322616.472 | H55: 2708867.591 | I55: 3159352.272 | J55: 3684752.555 | K55: 4297526.904 | L55: 5012205.629 | M55: 5845735.425 | N55: 6817881.226 | O55: 7951694.873 | P55: 9274061.731 | Q55: 10816338.2 | R55: 12615095.24 | S55: 14712985.58 | T55: 17159755.08 | U55: 20013422.35 | V55: 23341654.48 | W55: 27223371.63 | X55: 31750618.33 | Y55: 37030746.15 | Z55: 43188959.24 | AA55: 50371283.16 | AB55: 58748027.55 | AC55: 68517824.53 | AD55: 79912338.75 | AE55: 93201760.69
A56: Total Sales in [NGN/year] | F56: =SUM(F52:F55) -> 0 | G56: =SUM(G52:G55) -> 7500854.138 | H56: 8748246.181 | I56: 10203079.52 | J56: 11899851.64 | K56: 13878796.97 | L56: 16186840.91 | M56: 18878712.55 | N56: 22018242.45 | O56: 25679876.17 | P56: 29950439.58 | Q56: 34931197.68 | R56: 40740255.85 | S56: 47515360.4 | T56: 55417164.84 | U56: 64633039.35 | V56: 75381513.79 | W56: 87917459.54 | X56: 102538133.1 | Y56: 119590224.6 | Z56: 139478078.9 | AA56: 162673283.5 | AB56: 189725850.5 | AC56: 221277259.4 | AD56: 258075667.7 | AE56: 300993651.2
A58: Total Revenue [NGN] | F58: =SUM(F34:F37,F40:F43,F46:F49,F56) -> 370000 | G58: =SUM(G34:G37,G40:G43,G46:G49,G56) -> 7745079.938 | H58: 9040757.967 | I58: 10480086.53 | J58: 12219923.01 | K58: 14222011.58 | L58: 16535211.94 | M58: 19284424.56 | N58: 22397766.06 | O58: 26116711.8 | P58: 30431408.29 | Q58: 35410625.81 | R58: 41281235.35 | S58: 48060220.75 | T58: 56020769.65 | U58: 65266416.4 | V58: 76106157.54 | W58: 88673457.5 | X58: 103282483.5 | Y58: 120452675.4 | Z58: 140369501.9 | AA58: 163665822.3 | AB58: 190741512.7 | AC58: 222400896.5 | AD58: 259233208.7 | AE58: 302264935.8
A61: Operational Costs
A62: Diesel fuel price [NGN/L] | E62: =IF('2. Control table'!$T$84=TRUE,NA(),'2. Control table'!H94) -> 809
A63: Diesel fuel consumption [L/year] | E63: =IF('2. Control table'!$T$84=TRUE,NA(),'2. Control table'!H95) -> 2500 | F63: 0 | G63: =(E63) -> 2500 | H63: =(G63*(1+'4. Indexation&Financing'!$T$32)) -> 2725 | I63: =(H63*(1+'4. Indexation&Financing'!$T$32)) -> 2970.25 | J63: =(I63*(1+'4. Indexation&Financing'!$T$32)) -> 3237.5725 | K63: =(J63*(1+'4. Indexation&Financing'!$T$32)) -> 3528.954025 | L63: =(K63*(1+'4. Indexation&Financing'!$T$32)) -> 3846.559887 | M63: =(L63*(1+'4. Indexation&Financing'!$T$32)) -> 4192.750277 | N63: =(M63*(1+'4. Indexation&Financing'!$T$32)) -> 4570.097802 | O63: =(N63*(1+'4. Indexation&Financing'!$T$32)) -> 4981.406604 | P63: =(O63*(1+'4. Indexation&Financing'!$T$32)) -> 5429.733199 | Q63: =(P63*(1+'4. Indexation&Financing'!$T$32)) -> 5918.409186 | R63: =(Q63*(1+'4. Indexation&Financing'!$T$32)) -> 6451.066013 | S63: =(R63*(1+'4. Indexation&Financing'!$T$32)) -> 7031.661954 | T63: =(S63*(1+'4. Indexation&Financing'!$T$32)) -> 7664.51153 | U63: =(T63*(1+'4. Indexation&Financing'!$T$32)) -> 8354.317568 | V63: =(U63*(1+'4. Indexation&Financing'!$T$32)) -> 9106.206149 | W63: =(V63*(1+'4. Indexation&Financing'!$T$32)) -> 9925.764703 | X63: =(W63*(1+'4. Indexation&Financing'!$T$32)) -> 10819.08353 | Y63: =(X63*(1+'4. Indexation&Financing'!$T$32)) -> 11792.80104 | Z63: =(Y63*(1+'4. Indexation&Financing'!$T$32)) -> 12854.15314 | AA63: =(Z63*(1+'4. Indexation&Financing'!$T$32)) -> 14011.02692 | AB63: =(AA63*(1+'4. Indexation&Financing'!$T$32)) -> 15272.01934 | AC63: =(AB63*(1+'4. Indexation&Financing'!$T$32)) -> 16646.50108 | AD63: =(AC63*(1+'4. Indexation&Financing'!$T$32)) -> 18144.68618 | AE63: =(AD63*(1+'4. Indexation&Financing'!$T$32)) -> 19777.70794
A64: Payments for diesel fuel [NGN/year] | E64: =IF('2. Control table'!$T$84=TRUE,NA(),('4. Indexation&Financing'!U18*E63)) -> 2022500 | F64: =('4. Indexation&Financing'!U18*F$63) -> 0 | G64: =('4. Indexation&Financing'!V18*G$63) -> 2099355 | H64: =('4. Indexation&Financing'!W18*H$63) -> 2375252.234 | I64: =('4. Indexation&Financing'!X18*I$63) -> 2687407.883 | J64: =('4. Indexation&Financing'!Y18*J$63) -> 3040587.027 | K64: =('4. Indexation&Financing'!Z18*K$63) -> 3440180.974 | L64: =('4. Indexation&Financing'!AA18*L$63) -> 3892289.557 | M64: =('4. Indexation&Financing'!AB18*M$63) -> 4403814.251 | N64: =('4. Indexation&Financing'!AC18*N$63) -> 4982563.52 | O64: =('4. Indexation&Financing'!AD18*O$63) -> 5637372.017 | P64: =('4. Indexation&Financing'!AE18*P$63) -> 6378235.448 | Q64: =('4. Indexation&Financing'!AF18*Q$63) -> 7216463.151 | R64: =('4. Indexation&Financing'!AG18*R$63) -> 8164850.738 | S64: =('4. Indexation&Financing'!AH18*S$63) -> 9237875.422 | T64: =('4. Indexation&Financing'!AI18*T$63) -> 10451917.01 | U64: =('4. Indexation&Financing'!AJ18*U$63) -> 11825507.94 | V64: =('4. Indexation&Financing'!AK18*V$63) -> 13379616.2 | W64: =('4. Indexation&Financing'!AL18*W$63) -> 15137965.36 | X64: =('4. Indexation&Financing'!AM18*X$63) -> 17127396.76 | Y64: =('4. Indexation&Financing'!AN18*Y$63) -> 19378279.25 | Z64: =('4. Indexation&Financing'!AO18*Z$63) -> 21924972.71 | AA64: =('4. Indexation&Financing'!AP18*AA$63) -> 24806352.62 | AB64: =('4. Indexation&Financing'!AQ18*AB$63) -> 28066403.48 | AC64: =('4. Indexation&Financing'!AR18*AC$63) -> 31754890.23 | AD64: =('4. Indexation&Financing'!AS18*AD$63) -> 35928117.9 | AE64: =('4. Indexation&Financing'!AT18*AE$63) -> 40649791.15
A65: Service & Maintenance [NGN/year] | E65: =IF('2. Control table'!$T$84=TRUE,NA(),'2. Control table'!H96) -> 150000 | F65: 0 | G65: =($E$65*'4. Indexation&Financing'!V$19) -> 165000 | H65: =($E$65*'4. Indexation&Financing'!W$19) -> 181500 | I65: =($E$65*'4. Indexation&Financing'!X$19) -> 199650 | J65: =($E$65*'4. Indexation&Financing'!Y$19) -> 219615 | K65: =($E$65*'4. Indexation&Financing'!Z$19) -> 241576.5 | L65: =($E$65*'4. Indexation&Financing'!AA$19) -> 265734.15 | M65: =($E$65*'4. Indexation&Financing'!AB$19) -> 292307.565 | N65: =($E$65*'4. Indexation&Financing'!AC$19) -> 321538.3215 | O65: =($E$65*'4. Indexation&Financing'!AD$19) -> 353692.1537 | P65: =($E$65*'4. Indexation&Financing'!AE$19) -> 389061.369 | Q65: =($E$65*'4. Indexation&Financing'!AF$19) -> 427967.5059 | R65: =($E$65*'4. Indexation&Financing'!AG$19) -> 470764.2565 | S65: =($E$65*'4. Indexation&Financing'!AH$19) -> 517840.6822 | T65: =($E$65*'4. Indexation&Financing'!AI$19) -> 569624.7504 | U65: =($E$65*'4. Indexation&Financing'!AJ$19) -> 626587.2254 | V65: =($E$65*'4. Indexation&Financing'!AK$19) -> 689245.948 | W65: =($E$65*'4. Indexation&Financing'!AL$19) -> 758170.5427 | X65: =($E$65*'4. Indexation&Financing'!AM$19) -> 833987.597 | Y65: =($E$65*'4. Indexation&Financing'!AN$19) -> 917386.3567 | Z65: =($E$65*'4. Indexation&Financing'!AO$19) -> 1009124.992 | AA65: =($E$65*'4. Indexation&Financing'!AP$19) -> 1110037.492 | AB65: =($E$65*'4. Indexation&Financing'!AQ$19) -> 1221041.241 | AC65: =($E$65*'4. Indexation&Financing'!AR$19) -> 1343145.365 | AD65: =($E$65*'4. Indexation&Financing'!AS$19) -> 1477459.901 | AE65: =($E$65*'4. Indexation&Financing'!AT$19) -> 1625205.892
A66: Local operational management [NGN/year] | E66: =IF('2. Control table'!$T$84=TRUE,NA(),'2. Control table'!H97) -> 200000 | F66: 0 | G66: =($E$66*'4. Indexation&Financing'!V$19) -> 220000 | H66: =($E$66*'4. Indexation&Financing'!W$19) -> 242000 | I66: =($E$66*'4. Indexation&Financing'!X$19) -> 266200 | J66: =($E$66*'4. Indexation&Financing'!Y$19) -> 292820 | K66: =($E$66*'4. Indexation&Financing'!Z$19) -> 322102 | L66: =($E$66*'4. Indexation&Financing'!AA$19) -> 354312.2 | M66: =($E$66*'4. Indexation&Financing'!AB$19) -> 389743.42 | N66: =($E$66*'4. Indexation&Financing'!AC$19) -> 428717.762 | O66: =($E$66*'4. Indexation&Financing'!AD$19) -> 471589.5382 | P66: =($E$66*'4. Indexation&Financing'!AE$19) -> 518748.492 | Q66: =($E$66*'4. Indexation&Financing'!AF$19) -> 570623.3412 | R66: =($E$66*'4. Indexation&Financing'!AG$19) -> 627685.6753 | S66: =($E$66*'4. Indexation&Financing'!AH$19) -> 690454.2429 | T66: =($E$66*'4. Indexation&Financing'!AI$19) -> 759499.6672 | U66: =($E$66*'4. Indexation&Financing'!AJ$19) -> 835449.6339 | V66: =($E$66*'4. Indexation&Financing'!AK$19) -> 918994.5973 | W66: =($E$66*'4. Indexation&Financing'!AL$19) -> 1010894.057 | X66: =($E$66*'4. Indexation&Financing'!AM$19) -> 1111983.463 | Y66: =($E$66*'4. Indexation&Financing'!AN$19) -> 1223181.809 | Z66: =($E$66*'4. Indexation&Financing'!AO$19) -> 1345499.99 | AA66: =($E$66*'4. Indexation&Financing'!AP$19) -> 1480049.989 | AB66: =($E$66*'4. Indexation&Financing'!AQ$19) -> 1628054.988 | AC66: =($E$66*'4. Indexation&Financing'!AR$19) -> 1790860.487 | AD66: =($E$66*'4. Indexation&Financing'!AS$19) -> 1969946.535 | AE66: =($E$66*'4. Indexation&Financing'!AT$19) -> 2166941.189
